{"text_format":"1","workbook":"xlsx","n_sheets":86,"sheets":["TitlePage","Disclaimer","General Notes","Chemical Notes","Revisions","Contents","A01","A02a","A02b","A02c","A02d","A03","A04","B01","B02","B03a","B03b","B04Rt","B04a","B04b","B05a","B05b","B05c","B05d","C01","C01-Sup","C02a","C02b","C03a","C03b","D05","D06","D07","D08a","D08b","D09a","D09b","D09c","D09d","D11","E01","E02","E03","E04","F02a","F02b","F02c","F02d","F02e","F02f","F03a","F03b","F03c","F08a","F08b","F08c","F08d","F08e","F08f","F11a","F11b","F11c","F16a","F16b","F16c","F16d","F16e","F16f","F17a","F17b","F17c","G01a","G01b","G02a","G02b","G03","G07a","G07b","G07c","G07d","G08a","G08b","G10","G11","References","PlntRunoV5"],"not_rendered":{"charts":21,"images":20,"macros":1,"external_links":0,"defined_names":789,"comments":0,"pivot_tables":0},"unopened":[],"bounds":{"document_bytes":16777216,"sheet_cells":100000,"rows_first":2000,"rows_last":500,"rows_between":2000,"halvings":0,"cell_chars":16384,"cell_head_chars":4096},"cells_cut":0,"cells_raw":0,"read":"whole","date_system":"1900"}

{"sheet":"TitlePage","index":0,"n_rows":51,"n_cols":9,"rows_kept":51,"cut":false,"hidden":false,"merged":[[5,2,7,6],[50,0,50,8]]}
["Title page",null,null,null,null,null,null,null,"SERA XLSM-056-09-02b-Att-02"]
[]
[]
[]
[]
[null,null,"Custom Workbook for Soil Injection of Imidacloprid"]
[]
[]
[]
[]
[]
[]
[]
[]
[]
[]
[null,null,null,null,"WorksheetMaker Version ","6.00.14"]
[]
[]
[]
[]
[]
[]
[]
[]
[]
[]
[]
[]
[]
[]
[]
[]
[]
[]
[]
[]
[]
[]
[]
[]
[]
[]
[]
[]
[]
[]
[]
[]
[]
["2015-08-10"]

{"sheet":"Disclaimer","index":1,"n_rows":1,"n_cols":1,"rows_kept":1,"cut":false,"hidden":false,"merged":[]}
["DISCLAIMER"]

{"sheet":"General Notes","index":2,"n_rows":59,"n_cols":3,"rows_kept":59,"cut":false,"hidden":false,"merged":[[0,0,0,2]]}
["General Notes"]
[null,"Prepared by:","Patrick R. Durkin"]
[null,"Program Version:","6.00.14"]
[null,"Database Used:","FS WsMkr V06-00-01.mdb"]
[null,"Template Workbook:","FS WsMkr V06-00-01.mdb"]
[null,"Base Workbook:","FS WSMkr Blank V06-00-01.xlsm"]
[]
["Color Codes in WorksheetMaker"]
[]
[]
[]
[]
["Color Codes used in Workbook for Front Matter, Data and Calculation Worksheets"]
[null,"Green shading ","This is a default value or a user specified a value.  You can change these values as you see fit but you should have a reason for doing so."]
[null,"Yellow shading ","This is a source for a link in other parts of the workbook.  If you have good reason to change the value, you should note the change (with your reason) in the “Revisions” page."]
[null,"Blue shading ","This cell is linked to another cell in the workbook.  Do not change this value.  If you change any of these values, the workbook may not update correctly."]
[null,"Blue shading blue border ","This cell is linked to a Program parameter in Worksheet A01.  Do not change this value.  If you want the value to change, go to Worksheet A01 and change the value in that worksheet."]
[null,"Purple Shading","Indicates (for information only) that the typical of order of Lower and Upper values is intentionally reversed.  This is only used in the second (label) column."]
[null,"Italics, no shading","The value in this cell is generated by a formula (the number that you see is the result of an equation).  This cell is linked only to other cells in the worksheet.  Do not change this value."]
[]
[]
[]
[]
[]
["Color Codes used in Workbook for Risk Characterization Worksheets"]
[null,"HQ ≥ 2","For hazard quotient greater than 2, the number is in bold font with a red background and rounded to the nearest integer."]
[null,"HQ > 1 but < 2","For hazard quotient greater than 1 but less than two, the number is in bold font with a white background and rounded to one significant place after the decimal."]
[null,"HQ ≥ 0.1 but <1","For hazard quotient greater than 0.1 but less than one, the number is in regular font with a white background and rounded to one significant place after the decimal."]
[null,"HQ < 0.1","For hazard quotient less than 0.1, the number is in regular font with a white background.   The number is expressed in scientific notation and rounded to one significant place -- e.g., 2E-02 rather than 0.02."]
[]
[]
[]
[]
[]
[]
[]
[]
[]
[]
[]
[]
[]
[]
[]
[]
[]
[]
[]
[]
[]
[]
[]
[]
[]
[null,"Prepared by:","Patrick R. Durkin"]
[null,"Program Version:","6.00.14"]
[null,"Database Used:","FS WsMkr V06-00-01.mdb"]
[null,"Template Workbook:","FS WsMkr V06-00-01.mdb"]
[null,"Base Workbook:","FS WSMkr Blank V06-00-01.xlsm"]

{"sheet":"Chemical Notes","index":3,"n_rows":6,"n_cols":4,"rows_kept":6,"cut":false,"hidden":false,"merged":[[0,0,0,2],[1,0,1,2],[1,3,1,5],[2,0,2,2],[2,3,2,4]]}
["Chemical specific notes"]
["Risk Assessment:",null,null,"SERA TR-056-09-01b"]
["Report Date:",null,null,"2015-03-01"]
[]
[]
["The area below is an embedded MS Word Document.  Add chemical-specific notes as appropriate."]

{"sheet":"Revisions","index":4,"n_rows":8,"n_cols":1,"rows_kept":8,"cut":false,"hidden":false,"merged":[]}
["Revision Histroy"]
[]
[]
[]
[]
[]
[]
["The area below is an embedded MS Word Document.  Add revision notes as appropriate."]

{"sheet":"Contents","index":5,"n_rows":86,"n_cols":3,"rows_kept":86,"cut":false,"hidden":false,"merged":[[0,0,0,1]]}
["Table of Contents",null,"Toc"]
["Work-sheet No.","Worksheet Title"]
["TitlePage","Title page"]
["Disclaimer","DISCLAIMER"]
["General Notes","General Notes"]
["Chemical Notes","Chemical specific notes"]
["Revisions","Revision Histroy"]
["Contents","Table of Contents"]
["A01","Program Data: Application rates, application volumns, and concentrations in field solutions"]
["A02a","General reference values and exposure factors used in worksheets."]
["A02b","General reference values and exposure factors used in worksheets."]
["A02c","General reference values and exposure factors used in worksheets."]
["A02d","General reference values and exposure factors used in worksheets."]
["A03","Food items for terrestrial animals"]
["A04","Drift from Backpack Directed Foliar application at distances downwindfrom the application site"]
["B01","Chemical and Physical Properties for  Imidacloprid"]
["B02","Toxicity values for  Imidacloprid"]
["B03a","Calculation of Zero-Order Dermal Permeability Rate (Kp) in cm/hour"]
["B03b","Calculation of First-Order Dermal Absorption Rate"]
["B04Rt","Estimates of Water Contamination Rates -- i.e., the concentration in ambient water per pound applied per acre"]
["B04a","Expected Concentrations in Surface Water"]
["B04b","Pond: Concentration of pesticide (liquid formulation) in pond water after an accidental spill"]
["B05a","Concentration of Pesticide in Contaminated Fruit "]
["B05b","Concentration of Pesticide in Contaminated Broadleaf Vegetation "]
["B05c","Concentration of Pesticide in Contaminated Short Grass "]
["B05d","Concentration of Pesticide in Contaminated Tall Grass "]
["C01","Exposure estimates for Backpack Worker based on the amount of material handled per day"]
["C01-Sup","PHED Scenario 37: Liquid/open pour/termiticide injection"]
["C02a","Accidental Dermal Exposure Assessment Using Zero-Order Absorption, Worker, Surface Area, Hands, for 1 minute(s)"]
["C02b","Accidental Dermal Exposure Assessment Using Zero-Order Absorption, Worker, Surface Area, Hands, for 60 minute(s)"]
["C03a","Accidental Dermal Exposure Assessment Using First-Order Absorption, Worker, Surface Area, Hands, for 60 minute(s)"]
["C03b","Accidental Dermal Exposure Assessment Using First-Order Absorption, Worker, Surface Area, Lower legs, for 60 minute(s)"]
["D05","Consumption of contaminated water by Child, Accidental Spill "]
["D06","Consumption of contaminated water by Child, Peak Conentrations "]
["D07","Consumption of contaminated water by Adult Male, Longer-term Conentrations "]
["D08a","Consumption of Contaminated Fish (Accidental Spill), Adult Male, acute exposure"]
["D08b","Consumption of Contaminated Fish (Accidental Spill), Subsistence Populations, acute exposure"]
["D09a","Consumption of Contaminated Fish (Longer-term), Adult Male, chronic exposure"]
["D09b","Consumption of Contaminated Fish (Longer-term), Subsistence Populations, chronic exposure"]
["D09c","Consumption of Contaminated Fish (Peak Exposure), Adult Male, acute exposure"]
["D09d","Consumption of Contaminated Fish (Peak Exposure), Subsistence Populations, acute exposure"]
["D11","Swimming Exposure Assessment Using Zero-Order Absorption, Adult Female, Surface Area, Whole body, for 60 minute(s)"]
["E01","Summary of Worker Exposure Assessments"]
["E02","Summary of Worker Hazard Quotients (Toxicity)"]
["E03","Summary of Exposure Assessments for the General Public"]
["F02a","Consumption of contaminated water by Mammal, small, Accidental Spill "]
["F02b","Consumption of contaminated water by Mammal, 400 g, Accidental Spill "]
["F02c","Consumption of contaminated water by Mammal, carnivorous, Accidental Spill "]
["F02d","Consumption of contaminated water by Mammal, large, Accidental Spill "]
["F02e","Consumption of contaminated water by Bird, small, Accidental Spill "]
["F02f","Consumption of contaminated water by Bird, large, Accidental Spill "]
["F03a","Acute scenario for the consumption of Contaminated Fish (Accidental Spill) by Mammal, large carnivorous "]
["F03b","Acute scenario for the consumption of Contaminated Fish (Accidental Spill) by Mammal, carnivorous "]
["F03c","Acute scenario for the consumption of Contaminated Fish (Accidental Spill) by Bird, piscivorous "]
["F08a","Consumption of contaminated water by Mammal, small, Peak Concentrations "]
["F08b","Consumption of contaminated water by Mammal, 400 g, Peak Concentrations "]
["F08c","Consumption of contaminated water by Mammal, carnivorous, Peak Concentrations "]
["F08d","Consumption of contaminated water by Mammal, large, Peak Concentrations "]
["F08e","Consumption of contaminated water by Bird, small, Peak Concentrations "]
["F08f","Consumption of contaminated water by Bird, large, Peak Concentrations "]
["F11a","Acute scenario for the consumption of Contaminated Fish (Peak) by Mammal, large carnivorous "]
["F11b","Acute scenario for the consumption of Contaminated Fish (Peak) by Mammal, carnivorous "]
["F11c","Acute scenario for the consumption of Contaminated Fish (Peak) by Bird, piscivorous "]
["F16a","Consumption of contaminated water by Mammal, small, Longer-term Concentrations "]
["F16b","Consumption of contaminated water by Mammal, 400 g, Longer-term Concentrations "]
["F16c","Consumption of contaminated water by Mammal, carnivorous, Longer-term Concentrations "]
["F16d","Consumption of contaminated water by Mammal, large, Longer-term Concentrations "]
["F16e","Consumption of contaminated water by Bird, small, Longer-term Concentrations "]
["F16f","Consumption of contaminated water by Bird, large, Longer-term Concentrations "]
["F17a","Chronic scenario for the consumption of Contaminated Fish (Longer-term) by Mammal, large carnivorous "]
["F17b","Chronic scenario for the consumption of Contaminated Fish (Longer-term) by Mammal, carnivorous "]
["F17c","Chronic scenario for the consumption of Contaminated Fish (Longer-term) by Bird, piscivorous "]
["G01a","Summary of Exposure Assessments for the Mammals"]
["G01b","Summary of Exposure Assessments for the Birds"]
["G02a","Summary of Hazard Quotients (Toxicity) for the Mammals"]
["G02b","Summary of Hazard Quotients (Toxicity) for the Birds"]
["G03","Worksheet G03: Summary of Hazard Quotients for Aquatic Species"]
["G07a","Consumption of Maple Leaves by a Herbivorous Insect, Acute exposure."]
["G07b","Consumption of Ash Leaves by a Herbivorous Insect, Acute exposure."]
["G07c","Consumption of Hemlock needles by a Herbivorous Insect, Acute exposure."]
["G07d","Consumption of Tall Grass by a Herbivorous Insect, Acute exposure."]
["G08a","Summary of Exposure Assessments for the Herbivorous or Predatory Insects"]
["G08b","Summary of Hazard Quotients (Toxicity) for the Herbivorous or Predatory Insects"]
["G10","Risks to Honeybee Foraging for Nectar based Nutritional Requirements"]
["G11","Residue rates in nectar and pollen from Dively and Kamel 2012"]
["References","References cited in workbook"]

{"sheet":"A01","index":6,"n_rows":81,"n_cols":5,"rows_kept":81,"cut":false,"hidden":false,"merged":[[77,0,80,0],[33,0,36,0],[37,0,40,0],[41,0,44,0],[45,0,48,0],[49,0,52,0],[53,0,56,0],[57,0,60,0],[61,0,64,0],[65,0,68,0],[69,0,72,0],[73,0,76,0],[29,0,32,0],[0,0,0,4],[3,0,6,0],[7,0,10,0],[12,0,15,0],[16,0,18,0]]}
["Program Data: Application rates, application volumns, and concentrations in field solutions"]
["Parameter/Assumption","Code / Range","Equation/ Value","Units","Reference/ Equation"]
["Application Rate","ApRt",0.4,"lb/acre","Program Input"]
["Application Volume","ApVol"]
[null,"Central ",4,"gal/acre","Program Input"]
[null,"Upper ",20,null,"Program Input"]
[null,"Lower ",1,null,"Program Input"]
["Concentration in field solution (lb/gal)","Concppg","ApRt (lb/acre) / ApVol (gal/acre)",null,"Note 1"]
[null,"Central ",{"$f":"IF(C5>0, C$3/C5, \"N/A\")","v":0.1},"lb/gal","Eq"]
[null,"Lower ",{"$f":"IF(C6>0, C$3/C6, \"N/A\")","v":0.02},null,"Eq"]
[null,"Upper ",0.4,null,"Eq"]
["Conversion Factor for lbs/gal to mg/mL","CnvF",119.8,"mg/mL per lb/gal"]
["Concentration in field solution (mg/mL)","FldConc","Concppg * CnvF",null,"Note 2"]
[null,"Central ",{"$f":"IF(C5>0, DigitRound( C9*C$12, C$17), \"NA\")","v":12},"mg/mL","Eq"]
[null,"Lower ",{"$f":"IF(C6>0, DigitRound( C10*C$12, C$17), \"NA\")","v":2.4},null,"Eq"]
[null,"Upper ",{"$f":"IF(C7>0, DigitRound( C11*C$12, C$17), \"NA\")","v":48},null,"Eq"]
["Number of significant figures  used for FldConc.","NSig",2]
[]
[]
["Number of Applications","nApps",1,"Unitless","Program Input"]
["Application Interval","ApIntv",1,"Days","Program Input"]
["Standard Values/Options for Scenarios"]
["Surface area of pond for spill","PondSA_M",1000,"Sq. Meters","Risk assessment."]
["Pond depth","PondDepthM",1,"Meters","Risk assessment."]
["Stream flow rate for drift scenario","StreamFlowLD",710000,"Liters/day","Risk assessment."]
["Stream length for drift scenario","StreamLengthFt",1038,"Feet","Risk assessment."]
["Stream width for drift scenario","StreamWidthFt",6,"Feet","Risk assessment."]
["Duration for longer-term exposures","SubChDays",90,"Days","Risk assessment."]
["Duration for swimming scenarios","SwimMin",60,"Minutes","Risk assessment."]
["Protection factor for workers based on PPE.","WrkProtectFact"]
[null,"Central",0,null,"Risk assessment."]
[null,"Lower",0]
[null,"Upper",0]
["Toxic Equivalency Factor for formulation","TEF"]
[null,"Central",1,null,"Risk assessment."]
[null,"Lower",1]
[null,"Upper",1]
["Concentration in nectar (mg/L) per lb a.i./acre","NectRRT"]
[null,"Central",2.9000000000000001E-2,"ppm per lb a.i./acre","Section 4.2.3.3.3.2. Soil Injection of risk assessment."]
[null,"Lower",1.4E-2]
[null,"Upper",4.5999999999999999E-2]
["Drift used in food commody worksheets","DriftToFood"]
[null,"Central",1,null,"Risk assessment."]
[null,"Lower",1]
[null,"Upper",1]
["Amount spilled into ponds","PondSpillVolGal"]
[null,"Central",4,"Gal","Risk assessment."]
[null,"Lower",0.8]
[null,"Upper",8]
["Dislodgeable residue, as a proportion of the application rate.","DislogRes"]
[null,"Central",0.1,null,"Risk assessment."]
[null,"Lower",5.0000000000000001E-3]
[null,"Upper",0.2]
["Residue rates for short grass","VegRRSGT"]
[null,"Central",8.5,"ppm per lb/ac","Risk assessment."]
[null,"Lower",3]
[null,"Upper",24]
["Residue rates for long grass","VegRRTGT"]
[null,"Central",3.6,"ppm per lb/ac","Risk assessment."]
[null,"Lower",1.2]
[null,"Upper",11]
["Residue rates for broadleaf/forage plants and small insects","VegRRBLT"]
[null,"Central",4.5,"ppm per lb/ac","Risk assessment."]
[null,"Lower",1.5]
[null,"Upper",13.5]
["Residue rates for fruit","VegRRFRT"]
[null,"Central",0.7,"ppm per lb/ac","Risk assessment."]
[null,"Lower",0.32]
[null,"Upper",1.5]
["Worker Exposure Rate","WrkExpRate"]
[null,"Central",{"$f":"'C01-Sup'!C20","v":5.0000000000000002E-5},"Mg/kg bw per lb","Worksheet C01-Sup"]
[null,"Lower",{"$f":"'C01-Sup'!C21","v":4.0000000000000003E-5}]
[null,"Upper",{"$f":"'C01-Sup'!C22","v":6.9999999999999994E-5}]
["Number of acres that the worker will treat per hour.","WrkAcPerHr"]
[null,"Central",0.625,"Acres/hr","Risk assessment."]
[null,"Lower",0.25]
[null,"Upper",1]
["Number of hours of worker exposure per day.","WrkHsPerDy"]
[null,"Central",7,"Hrs/day","Risk assessment."]
[null,"Lower",6]
[null,"Upper",8]

{"sheet":"A02a","index":7,"n_rows":41,"n_cols":6,"rows_kept":41,"cut":false,"hidden":false,"merged":[[0,0,0,4]]}
["General reference values and exposure factors used in worksheets."]
[]
["Receptor","Factor","Value","Units"," Reference","Reference Note"]
["Adult Female","Body weight",64,"kg","U.S. EPA/ORD 1985","page 5, Table 2-2"]
["Adult Female","Surface Area, Feet and lower Legs",2915,"cm2","U.S. EPA/ORD 1992","p. 8-11, Table 8-3, total for feet and lower legs"]
["Adult Female","Surface Area, Wearing shorts and T-shirt",5300,"cm2","U.S. EPA/ORD 1992","p. 8-11, Table 8-3, total for arms, hands, lower legs, and feet."]
["Adult Female","Surface Area, Whole body",16900,"cm2","U.S. EPA/ORD 1997","p. 6-13, Table 6-3, whole body, 50th percentile"]
["Adult Male","Body weight",70,"kg","ICRP 1975","p. 13."]
["Subsistence Populations","Body weight",70,"kg","ICRP 1975","p. 13"]
["Worker, Aerial Spray","Absorbed dose rate, central estimate",3.0000000000000001E-5,"(mg/kg bw)/(lbs handled per day)","SERA 2007","Acres treated per hour"]
["Worker, Aerial Spray","Absorbed dose rate, lower range",9.9999999999999995E-7,"(mg/kg bw)/(lbs handled per day)","SERA 2007","Acres treated per hour"]
["Worker, Aerial Spray","Absorbed dose rate, upper range",1E-4,"(mg/kg bw)/(lbs handled per day)","SERA 2007","Acres treated per hour"]
["Worker, Aerial Spray","Hours of application per day, central estimate",7,"Hours per day","USDA 1989a","N/A"]
["Worker, Aerial Spray","Hours of application per day, lower range",6,"Hours per day","USDA 1989a","N/A"]
["Worker, Aerial Spray","Hours of application per day, upper range",8,"Hours per day","USDA 1989a","N/A"]
["Worker, Aerial Spray","Acres treated per hour, central estimate",70,"acres/hour","USDA 1989a","Acres treated per hour"]
["Worker, Aerial Spray","Acres treated per hour, lower range",40,"acres/hour","USDA 1989a","Acres treated per hour"]
["Worker, Aerial Spray","Acres treated per hour, upper range",100,"acres/hour","USDA 1989a","Acres treated per hour"]
["Worker, Backpack","Absorbed dose rate, central estimate",3.0000000000000001E-3,"(mg/kg bw)/(lbs handled per day)","SERA 2007","Acres treated per hour"]
["Worker, Backpack","Absorbed dose rate, lower range",2.9999999999999997E-4,"(mg/kg bw)/(lbs handled per day)","SERA 2007","Acres treated per hour"]
["Worker, Backpack","Absorbed dose rate, upper range",0.01,"(mg/kg bw)/(lbs handled per day)","SERA 2007","Acres treated per hour"]
["Worker, Backpack","Hours of application per day, central estimate",7,"Hours per day","USDA 1989a","N/A"]
["Worker, Backpack","Hours of application per day, lower range",6,"Hours per day","USDA 1989a","N/A"]
["Worker, Backpack","Hours of application per day, upper range",8,"Hours per day","USDA 1989a","N/A"]
["Worker, Backpack","Acres treated per hour, central estimate",0.625,"acres/hour","USDA 1989a","Acres treated per hour"]
["Worker, Backpack","Acres treated per hour, lower range",0.25,"acres/hour","USDA 1989a","Acres treated per hour"]
["Worker, Backpack","Acres treated per hour, upper range",1,"acres/hour","USDA 1989a","Acres treated per hour"]
["Child","Body weight",13.3,"kg","U.S. EPA/ORD 1996","p. 7-1, Table 7-2"]
["Child","Surface Area, Whole body",6030,"cm2","U.S. EPA/ORD 1996","p. 6-15, Table 6-6, 50th percentile."]
["Worker, Ground Spray","Absorbed dose rate, central estimate",2.0000000000000001E-4,"(mg/kg bw)/(lbs handled per day)","SERA 2007","Acres treated per hour"]
["Worker, Ground Spray","Absorbed dose rate, lower range",1.0000000000000001E-5,"(mg/kg bw)/(lbs handled per day)","SERA 2007","Acres treated per hour"]
["Worker, Ground Spray","Absorbed dose rate, upper range",8.9999999999999998E-4,"(mg/kg bw)/(lbs handled per day)","SERA 2007","Acres treated per hour"]
["Worker, Ground Spray","Hours of application per day, central estimate",7,"Hours per day","USDA 1989a","N/A"]
["Worker, Ground Spray","Hours of application per day, lower range",6,"Hours per day","USDA 1989a","N/A"]
["Worker, Ground Spray","Hours of application per day, upper range",8,"Hours per day","USDA 1989a","N/A"]
["Worker, Ground Spray","Acres treated per hour, central estimate",16,"acres/hour","USDA 1989a","Acres treated per hour"]
["Worker, Ground Spray","Acres treated per hour, lower range",11,"acres/hour","USDA 1989a","Acres treated per hour"]
["Worker, Ground Spray","Acres treated per hour, upper range",21,"acres/hour","USDA 1989a","Acres treated per hour"]
["Worker","Body weight",70,"kg","ICRP 1975","p. 13"]
["Worker","Surface Area, Hands",840,"cm2","U.S. EPA/ORD 1992"," p. 8-11"]
["Worker","Surface Area, Lower legs",2070,"cm2","U.S. EPA/ORD 1992","p. 8-11"]

{"sheet":"A02b","index":8,"n_rows":80,"n_cols":6,"rows_kept":80,"cut":false,"hidden":false,"merged":[[0,0,0,4]]}
["General reference values and exposure factors used in worksheets."]
[]
["Receptor","Factor","Value","Units"," Reference","Reference Note"]
["Amphibian","Kilocalories, alpha parameter for allometric equation",5.3999999999999999E-2,"BW(g),Kcal (kcal/day)","U.S. EPA/ORD 1993","p. 3-7, equation 3-14"]
["Amphibian","Kilocalories, beta parameter for allometric equation",0.79900000000000004,"BW(g),Kcal (kcal/day)","U.S. EPA/ORD 1993","p. 3-7, equation 3-14"]
["Amphibian, bull frog","Food consumption, alpha parameter for allometric equation",1.0900000000000001,"BW(g),FC(g)","SERA 2010","Figure 15"]
["Amphibian, bull frog","Food consumption, beta parameter for allometric equation",0.17230000000000001,"BW(g),FC(g)","SERA 2010","Figure 15"]
["Bird, NOS","Food consumption, alpha parameter for allometric equation",0.64800000000000002,"BW(g),FC(g)","U.S. EPA/ORD 1993","Eq. 3-3, p. 3-4, all birds"]
["Bird, NOS","Food consumption, beta parameter for allometric equation",0.65100000000000002,"BW(g),FC(g)","U.S. EPA/ORD 1993","Eq. 3-3, p. 3-4, all birds"]
["Bird, carnivorous","Body weight",0.64,"kg","Dunning 1993","p. 97. Female Spotted Owl (Strix occidentalis).  Range of 548 to 760 g."]
["Bird, carnivorous","Kilocalories, alpha parameter for allometric equation",1.1459999999999999,"BW(g),KCal(kcal/day)","U.S. EPA/ORD 1993","Eq. 3-37, nonpasserines"]
["Bird, carnivorous","Kilocalories, beta parameter for allometric equation",0.749,"BW(g),KCal(kcal/day)","U.S. EPA/ORD 1993","Eq. 3-37, nonpasserines"]
["Bird, carnivorous","Water consumption, alpha parameter for allometric equation",5.8999999999999997E-2,"BW(kg), WC(L)","U.S. EPA/ORD 1993","Eq. 3-15, p. 3-8"]
["Bird, carnivorous","Water consumption, beta parameter for allometric equation",0.67,"BW(kg), WC(L)","U.S. EPA/ORD 1993","Eq. 3-15, p. 3-8"]
["Bird, large","Body weight",4,"kg","Default","Canada goose"]
["Bird, large","Kilocalories, alpha parameter for allometric equation",1.1459999999999999,"BW(g),KCal(kcal/day)","U.S. EPA/ORD 1993","Eq. 3-37, non-passerines"]
["Bird, large","Kilocalories, beta parameter for allometric equation",0.749,"BW(g),KCal(kcal/day)","U.S. EPA/ORD 1993","Eq. 3-37, non-passerines"]
["Bird, large","Water consumption, alpha parameter for allometric equation",5.8999999999999997E-2,"BW(kg), WC(L)","U.S. EPA/ORD 1993","Eq. 3-15, p. 3-8"]
["Bird, large","Water consumption, beta parameter for allometric equation",0.67,"BW(kg), WC(L)","U.S. EPA/ORD 1993","Eq. 3-15, p. 3-8"]
["Bird, non-Passerine","Food consumption, alpha parameter for allometric equation",0.30099999999999999,"BW(g),FC(g)","U.S. EPA/ORD 1993","Eq. 3-5, p. 3-5, non-passerines"]
["Bird, non-Passerine","Food consumption, beta parameter for allometric equation",0.751,"BW(g),FC(g)","U.S. EPA/ORD 1993","Eq. 3-5, p. 3-5, non-passerines"]
["Bird, Passerine","Food consumption, alpha parameter for allometric equation",0.39800000000000002,"BW(g),FC(g)","U.S. EPA/ORD 1993","Eq. 3-4, p. 3-4, passerines"]
["Bird, Passerine","Food consumption, beta parameter for allometric equation",0.85,"BW(g),FC(g)","U.S. EPA/ORD 1993","Eq. 3-4, p. 3-4, passerines"]
["Bird, piscivorous","Body weight",2.4,"kg","Sibley 2000","p. 60. Great Blue Heron"]
["Bird, piscivorous","Food consumption, alpha parameter for allometric equation",0.495,"BW(g), FC(g)","U.S. EPA/ORD 1993","Eq. 3-6, p. 3-5, seabird"]
["Bird, piscivorous","Food consumption, beta parameter for allometric equation",0.70399999999999996,"BW(g), FC(g)","U.S. EPA/ORD 1993","Eq. 3-6, p. 3-5, seabird"]
["Bird, piscivorous","Kilocalories, alpha parameter for allometric equation",1.9159999999999999,"BW(g),KCal(kcal/day)","U.S. EPA/ORD 1993","Eq. 3-38, p. 3-23, seabird"]
["Bird, piscivorous","Kilocalories, beta parameter for allometric equation",0.70399999999999996,"BW(g),KCal(kcal/day)","U.S. EPA/ORD 1993","Eq. 3-38, p. 3-23, seabird"]
["Bird, piscivorous","Water consumption, alpha parameter for allometric equation",5.8999999999999997E-2,"BW(kg), WC(L)","U.S. EPA/ORD 1993","Eq. 3-15, p. 3-8"]
["Bird, piscivorous","Water consumption, beta parameter for allometric equation",0.67,"BW(kg), WC(L)","U.S. EPA/ORD 1993","Eq. 3-15, p. 3-8"]
["Bird, small","Body weight",0.01,"kg","Default","N/A"]
["Bird, small","Kilocalories, alpha parameter for allometric equation",3.12,"BW(g),KCal(kcal/day)","U.S. EPA/ORD 1993","Equation 3-36, passerines"]
["Bird, small","Kilocalories, beta parameter for allometric equation",0.60499999999999998,"BW(g),KCal(kcal/day)","U.S. EPA/ORD 1993","Equation 3-36, passerines"]
["Bird, small","Water consumption, alpha parameter for allometric equation",5.8999999999999997E-2,"BW(kg), WC(L)","U.S. EPA/ORD 1993","Eq. 3-15, p. 3-8"]
["Bird, small","Water consumption, beta parameter for allometric equation",0.67,"BW(kg), WC(L)","U.S. EPA/ORD 1993","Eq. 3-15, p. 3-8"]
["Honeybee","Body weight",1.16E-4,"kg","Winston 1987","p. 54. Arithmetic average of range: 81 to 151 mg/bee."]
["Honeybee","Surface Area, Whole body",1.42,"cm2","Humphery and Dykes 2008","Based on a bee with a body length of 1.44 cm."]
["Mammal, Nos","Food consumption, alpha parameter for allometric equation",0.23499999999999999,"BW(g),FC(g)","U.S. EPA/ORD 1993","Eq. 3-7 ,p. 3-6, all mammals"]
["Mammal, Nos","Food consumption, beta parameter for allometric equation",0.82199999999999995,"BW(g),FC(g)","U.S. EPA/ORD 1993","Eq. 3-7 ,p. 3-6, all mammals"]
["Mammal, 400 g","Body weight",0.4,"kg","Default","N/A"]
["Mammal, 400 g","Food consumption, alpha parameter for allometric equation",0.621,"BW(g),FC(g)","U.S. EPA/ORD 1993","Eq. 3-8, p. 3-6, equation for rodents"]
["Mammal, 400 g","Food consumption, beta parameter for allometric equation",0.56399999999999995,"BW(g),FC(g)","U.S. EPA/ORD 1993","Eq. 3-8, p. 3-6, equation for rodents"]
["Mammal, 400 g","Kilocalories, alpha parameter for allometric equation",2.5139999999999998,"BW(g),KCal(kcal/day)","U.S. EPA/ORD 1993","Equation 3-48, rodent"]
["Mammal, 400 g","Kilocalories, beta parameter for allometric equation",0.50700000000000001,"BW(g),KCal(kcal/day)","U.S. EPA/ORD 1993","Equation 3-48, rodent"]
["Mammal, 400 g","Water consumption, alpha parameter for allometric equation",9.9000000000000005E-2,"BW(kg),WC(L)","U.S. EPA/ORD 1993","Eq. 3-17, p. 3-10, all mammals"]
["Mammal, 400 g","Water consumption, beta parameter for allometric equation",0.9,"BW(kg),WC(L)","U.S. EPA/ORD 1993","Eq. 3-17, p. 3-10, all mammals"]
["Mammal, carnivorous","Body weight",5,"kg","U.S. EPA/ORD 1993","p. 2-221.  Central value for red fox with a range of 3 to 7 kg."]
["Mammal, carnivorous","Kilocalories, alpha parameter for allometric equation",0.61670000000000003,"BW(g),KCal(kcal/day)","U.S. EPA/ORD 1993","Equation 3-47, non-herbivore"]
["Mammal, carnivorous","Kilocalories, beta parameter for allometric equation",0.86199999999999999,"BW(g),KCal(kcal/day)","U.S. EPA/ORD 1993","Equation 3-47, non-herbivore"]
["Mammal, carnivorous","Water consumption, alpha parameter for allometric equation",9.9000000000000005E-2,"BW(kg),WC(L)","U.S. EPA/ORD 1993","Eq. 3-17, p. 3-10, all mammals"]
["Mammal, carnivorous","Water consumption, beta parameter for allometric equation",0.9,"BW(kg), WC(L)","U.S. EPA/ORD 1993","Eq. 3-17, p. 3-10, all mammals"]
["Mammal, large carnivorous","Body weight",70,"kg","Reid 2006"," pp. 451-453.  Black bear or small grizzly."]
["Mammal, large carnivorous","Kilocalories, alpha parameter for allometric equation",0.61670000000000003,"BW(g),KCal(kcal/day)","U.S. EPA/ORD 1993","Equation 3-47, non-herbivore"]
["Mammal, large carnivorous","Kilocalories, beta parameter for allometric equation",0.86199999999999999,"BW(g),KCal(kcal/day)","U.S. EPA/ORD 1993","Equation 3-47, non-herbivore"]
["Mammal, large carnivorous","Water consumption, alpha parameter for allometric equation",9.9000000000000005E-2,"BW(kg),WC(L)","U.S. EPA/ORD 1993","Eq. 3-17, p. 3-10, all mammals"]
["Mammal, large carnivorous","Water consumption, beta parameter for allometric equation",0.9,"BW(kg), WC(L)","U.S. EPA/ORD 1993","Eq. 3-17, p. 3-10, all mammals"]
["Mammal, herbivorous","Food consumption, alpha parameter for allometric equation",0.57699999999999996,"BW(g),FC(g)","U.S. EPA/ORD 1993","Eq. 3-9, p. 3-6, equation for herbivores"]
["Mammal, herbivorous","Food consumption, beta parameter for allometric equation",0.72699999999999998,"BW(g),FC(g)","U.S. EPA/ORD 1993","Eq. 3-9, p. 3-6, equation for herbivores"]
["Mammal, herbivorous","Kilocalories, alpha parameter for allometric equation",1.518,"BW(g),KCal(kcal/day)","U.S. EPA/ORD 1993","Equation 3-46, herbivores"]
["Mammal, herbivorous","Kilocalories, beta parameter for allometric equation",0.73,"BW(g),KCal(kcal/day)","U.S. EPA/ORD 1993","Equation 3-46, herbivores"]
["Mammal, large","Body weight",70,"kg","Default","N/A"]
["Mammal, large","Kilocalories, alpha parameter for allometric equation",1.518,"BW(g),KCal(kcal/day)","U.S. EPA/ORD 1993","p. 3-6, Eq. 3-10, herbivores"]
["Mammal, large","Kilocalories, beta parameter for allometric equation",0.73,"BW(g),KCal(kcal/day)","U.S. EPA/ORD 1993","p. 3-6, Eq. 3-10, herbivores"]
["Mammal, large","Water consumption, alpha parameter for allometric equation",9.9000000000000005E-2,"BW(kg),WC(L)","U.S. EPA/ORD 1993","Eq. 3-17, p. 3-10, all mammals"]
["Mammal, large","Water consumption, beta parameter for allometric equation",0.9,"BW(kg), WC(L)","U.S. EPA/ORD 1993","Eq. 3-17, p. 3-10, all mammals"]
["Mammal, rabbit","Body weight",1.3,"kg","Default","N/A"]
["Mammal, rabbit","Surface Area, alpha parameter for allometric equation",0.11,"BW(kg),SA(m2)","U.S. EPA/ORD 1993","p. 3-14, Eq. 3-22, for all mammals"]
["Mammal, rabbit","Surface Area, beta parameter for allometric equation",0.65,"BW(kg),SA(m2)","U.S. EPA/ORD 1993","p. 3-14, Eq. 3-22, for all mammals"]
["Mammal, rodent","Food consumption, alpha parameter for allometric equation",0.621,"BW(g),FC(g)","U.S. EPA/ORD 1993","Eq. 3-8, p. 3-6, equation for rodents"]
["Mammal, rodent","Food consumption, beta parameter for allometric equation",0.58399999999999996,"BW(g),FC(g)","U.S. EPA/ORD 1993","Eq. 3-8,p. 3-6, equation for rodents"]
["Mammal, small","Body weight",0.02,"kg","Default","N/A"]
["Mammal, small","Caloric content (wet weight)",1.7,"kcal/g  (wet weight)","U.S. EPA/ORD 1993","Table 4-1, p. 4-13. Value for small mammals. Wet weight."]
["Mammal, small","Food consumption, alpha parameter for allometric equation",0.621,"BW(g),FC(g)","U.S. EPA/ORD 1993","Eq. 3-8, p. 3-6, equation for rodents"]
["Mammal, small","Food consumption, beta parameter for allometric equation",0.56399999999999995,"BW(g),FC(g)","U.S. EPA/ORD 1993","Eq. 3-8, p. 3-6, equation for rodents"]
["Mammal, small","Kilocalories, alpha parameter for allometric equation",2.5139999999999998,"BW(g),KCal(kcal/day)","U.S. EPA/ORD 1993","Equation 3-48, rodent"]
["Mammal, small","Kilocalories, beta parameter for allometric equation",0.50700000000000001,"BW(g),KCal(kcal/day)","U.S. EPA/ORD 1993","Equation 3-48, rodent"]
["Mammal, small","Surface Area, alpha parameter for allometric equation",0.11,"BW(kg),SA(m2)","U.S. EPA/ORD 1993","p. 3-14, Eq. 3-22, for all mammals"]
["Mammal, small","Surface Area, beta parameter for allometric equation",0.65,"BW(kg),SA(m2)","U.S. EPA/ORD 1993","p. 3-14, Eq. 3-22, for all mammals"]
["Mammal, small","Water consumption, alpha parameter for allometric equation",9.9000000000000005E-2,"BW(kg),WC(L)","U.S. EPA/ORD 1993","Eq. 3-17, p. 3-10, all mammals"]
["Mammal, small","Water consumption, beta parameter for allometric equation",0.9,"BW(kg),WC(L)","U.S. EPA/ORD 1993","Eq. 3-17, p. 3-10, all mammals"]

{"sheet":"A02c","index":9,"n_rows":24,"n_cols":6,"rows_kept":24,"cut":false,"hidden":false,"merged":[[0,0,0,4]]}
["General reference values and exposure factors used in worksheets."]
[]
["Receptor","Factor","Value","Units"," Reference","Reference Note"]
["Small Insects","Caloric content (wet weight)",1.5,"kcal/g (wet weight)","U.S. EPA/ORD 1993","Table 4-1, p. 4-13.  Value for beetles. Wet weight"]
["Fish","Caloric content (wet weight)",1.2,"kcal/g (wet weight)","U.S. EPA/ORD 1993","Table 4-1, p. 4-13.  Value for bony fish. Wet weight"]
["Vegetation","Caloric content (dry weight)",2.2599999999999998,"kcal/g","U.S. EPA/ORD 1993","p. 3-5, Table 3-1"]
["Vegetation","Water content (proportion)",0.85,"unitless","U.S. EPA/ORD 1993","p. 4-14"]
["VegRR","Broadleaf/forage plants and small insects, central estimate",45,"mg chem/kg veg","Fletcher et al. 1994","Broadleaf/forage plants and small insects"]
["VegRR","Broadleaf/forage plants and small insects, upper range",135,"mg chem/kg veg","Fletcher et al. 1994","Broadleaf/forage plants and small insects"]
["VegRR","Fruits, pods, seeds, and large insects, central estimate",7,"mg chem/kg veg","Fletcher et al. 1994","Fruits, pods, seeds, and large insects"]
["VegRR","Fruits, pods, seeds, and large insects, upper range",15,"mg chem/kg veg","Fletcher et al. 1994","Fruits, pods, seeds, and large insects"]
["VegRR","Broadleaf plants and small insects, granular applications, central estimate",1.8,"mg chem/kg veg","SERA 2005","Broadleaf forage plants and contaminated insects after granular application"]
["VegRR","Broadleaf plants and small insects, granular applications, upper range",5.4,"mg chem/kg veg","SERA 2005","Broadleaf forage plants and contaminated insects after granular application"]
["VegRR","Fruits, granular applications, central estimate",0.28000000000000003,"mg chem/kg veg","SERA 2005","Fruit after granular application"]
["VegRR","Fruits, granular applications, upper range",0.6,"mg chem/kg veg","SERA 2005","Fruit after granular application"]
["VegRR","Short grass, granular applications, lower range",1.2,"mg chem/kg veg","SERA 2005","Short grass after granular application"]
["VegRR","Short grass, granular applications, upper range",9.6,"mg chem/kg veg","SERA 2005","Short grass after granular application"]
["VegRR","Tall grass, granular applications, central estimate",1.44,"mg chem/kg veg","SERA 2005","Tall grass after granular application"]
["VegRR","Tall grass, granular applications, upper range",4.4000000000000004,"mg chem/kg veg","SERA 2005","Tall grass after granular application"]
["VegRR","Short grass, central estimate",85,"mg chem/kg veg","Fletcher et al. 1994","Short grass"]
["VegRR","Short grass, lower range",30,"mg chem/kg veg","SERA 2007","Short grass"]
["VegRR","Short grass, upper range",240,"mg chem/kg veg","Fletcher et al. 1994","Short grass"]
["VegRR","Tall grass, central estimate",36,"mg chem/kg veg","Fletcher et al. 1994","Tall grass"]
["VegRR","Tall grass, upper range",110,"mg chem/kg veg","Fletcher et al. 1994","Tall grass"]

{"sheet":"A02d","index":10,"n_rows":24,"n_cols":6,"rows_kept":24,"cut":false,"hidden":false,"merged":[[0,0,0,4]]}
["General reference values and exposure factors used in worksheets."]
[]
["Receptor","Factor","Value","Units"," Reference","Reference Note"]
["Conversion Factors","acrefoot2gal",325900,"gal/acre-foot","Budavari  1989","N/A"]
["Conversion Factors","liters per gal",3.7850000000000001,"L/gal","Budavari  1989","N/A"]
["Conversion Factors","pound per milligram",453600,"mg/lb","Budavari  1989","N/A"]
["Conversion Factors","lbac2mgcm2",1.1209999999999999E-2,"mg/cm2 per lb/acre","Budavari  1989","N/A"]
["Conversion Factors","lbac2ugcm2",11.21,"ug/cm2 per lb/acre","Budavari  1989","N/A"]
["Conversion Factors","conversion for milligrams to pounds",2.204E-6,"lb/mg","Budavari  1989","N/A"]
["Conversion Factors","conversion for milliliters to gallons",3785,"ml/gal","Budavari  1989","N/A"]
["Misc","Liquid adhering to skin",8.0000000000000002E-3,"mL/cm2","Mason and Johnson 1987","Weight of liquid adhering to surface of skin after a spill"]
["Misc","Dislodgeable residue as proportion",0.1,"none","Harris and Solomon 1992","Estimate of dislodgeable residue as a proportion of application rate shortly after application based on 2,4-D."]
["Standard Pond","Depth",1,"m","Default","Depth of pond"]
["Standard Pond","Surface Area",1000,"m^2","Default","Surface Area"]
["Standard Pond","Volume of Spill ",200,"gallons","Default","Volume of spill"]
["VegRR","Broadleaf/forage plants and small insects, lower range",15,"mg chem/kg veg","SERA 2007","Broadleaf/forage plants and small insects"]
["VegRR","Fruits, pods, seeds, and large insects, lower range",3.2,"mg chem/kg veg","SERA 2007","Fruits, pods, seeds, and large insects"]
["VegRR","Broadleaf plants and small insects, granular applications, lower range",0.6,"mg chem/kg veg","SERA 2007","Broadleaf/forage plants after granular application"]
["VegRR","Fruits, granular applications, lower range",0.13,"mg chem/kg veg","SERA 2007","Fruit after granular application"]
["VegRR","Short grass, granular applications, central estimate",3.4,"mg chem/kg veg","SERA 2005","Short grass after granular application"]
["VegRR","Short grass, granular applications, lower range",1.2,"mg chem/kg veg","SERA 2007","Short grass after granular application"]
["VegRR","Tall grass, granular applications, lower range",0.48,"mg chem/kg veg","SERA 2007","Tall grass after granular application"]
["VegRR","Short grass, lower range",30,"mg chem/kg veg","Fletcher et al. 1994","Short grass"]
["VegRR","Tall grass, lower range",12,"mg chem/kg veg","SERA 2007","Tall grass"]

{"sheet":"A03","index":11,"n_rows":66,"n_cols":8,"rows_kept":66,"cut":false,"hidden":false,"merged":[[0,0,0,6]]}
["Food items for terrestrial animals"]
[]
["Receptor","Consumer","Qualifier","Modifier","Value","Units"," Reference","Reference Note"]
["Adult Female","Fish","Amount","central estimate",0.01,"kg/day","U.S. EPA/ORD 1996","p. 10-51, average of means from four studies rounded to one significant place."]
["Adult Female","Fish","Amount","upper range",0.158,"kg/day","Ruffle et al. 1994","N/A"]
["Adult Female","Fruit","Proportion of body weight","central estimate",1.6800000000000001E-3,"kg fruit/kg bw/day","U.S. EPA/ORD 1996","Table 9-3, p. 9-11, mean value."]
["Adult Female","Fruit","Proportion of body weight","lower range",1.6800000000000001E-3,"kg fruit/kg bw/day","U.S. EPA/ORD 1996","Table 9-3, p. 9-11. The 5th percentile is given as zero.  For these worksheets, the central estimate is used for the lower bound."]
["Adult Female","Fruit","Proportion of body weight","upper range",1.244E-2,"kg fruit/kg bw/day","U.S. EPA/ORD 1996","Table 9-3, p. 9-11, 95th percentile value."]
["Adult Female","Vegetation, home grown","Proportion of body weight","central estimate",7.6000000000000004E-4,"kg veg/kg bw/day","U.S. EPA/ORD 1996","Table 12-15, p. 9-14, mean for individuals between 20 and 39 years old."]
["Adult Female","Vegetation, home grown","Proportion of body weight","lower range",8.0000000000000007E-5,"kg veg/kg bw/day","U.S. EPA/ORD 1996","Table 12-15, p. 9-14, 5th percentile for individuals between 20 and 39 years old."]
["Adult Female","Vegetation, home grown","Proportion of body weight","upper range",4.9199999999999999E-3,"kg veg/kg bw/day","U.S. EPA/ORD 1996","Table 12-15, p. 9-14, 95th percentile for individuals between 20 and 39 years old."]
["Adult Female","Vegetation","Amount","Extreme",0.45400000000000001,"kg food","U.S. EPA/ORD 1996","1 lb.  The approximate mid range of the above typical and upper limits based on the 64 kg body weight."]
["Adult Female","Vegetation","Proportion of body weight","central estimate",3.5999999999999999E-3,"kg veg/kg bw/day","U.S. EPA/ORD 1996","Table 9-12, p. 9-12, mean."]
["Adult Female","Vegetation","Proportion of body weight","lower range",7.5000000000000002E-4,"kg veg/kg bw/day","U.S. EPA/ORD 1996","Table 9-12, p. 9-12, 5th percentile."]
["Adult Female","Vegetation","Proportion of body weight","upper range",0.01,"kg veg/kg bw/day","U.S. EPA/ORD 1996","Table 9-12, p. 9-12, 95th percentile."]
["Adult Female","Water","Amount","central estimate",2,"L/day","U.S. EPA/ORD 1996","p. 3-28, Table 3-30, midpoint of mean (1.4 L/day) and 90th percentile (2.4 L/day) rounded to one significant place."]
["Adult Female","Water","Amount","lower range",1.4,"L/day","U.S. EPA/ORD 1996","p. 3-28, Table 3-30, mean"]
["Adult Female","Water","Amount","upper range",2.4,"L/day","U.S. EPA/ORD 1996","p. 3-28, Table 3-30, 90th percentile"]
["Adult Male","Fish","Amount","central estimate",0.01,"kg/day","U.S. EPA/ORD 1996","p. 10-51, average of means from four studies rounded to one significant place."]
["Adult Male","Fish","Amount","upper range",0.158,"kg/day","Ruffle et al. 1994","N/A"]
["Adult Male","Fruit","Proportion of body weight","central estimate",1.6800000000000001E-3,"unitless","U.S. EPA/ORD 1996","Table 9-3, p. 9-11, mean value."]
["Adult Male","Fruit","Proportion of body weight","lower range",1.6800000000000001E-3,"unitless","U.S. EPA/ORD 1996","Table 9-3, p. 9-11. The 5th percentile is given as zero.  For these worksheets, the central estimate is used for the lower bound."]
["Adult Male","Fruit","Proportion of body weight","upper range",1.244E-2,"unitless","U.S. EPA/ORD 1996","Table 9-3, p. 9-11, 95th percentile value."]
["Adult Male","Vegetation, home grown","Proportion of body weight","central estimate",7.6000000000000004E-4,"unitless","U.S. EPA/ORD 1996","Table 12-15, p. 9-14, mean for individuals between 20 and 39 years old."]
["Adult Male","Vegetation, home grown","Proportion of body weight","lower range",8.0000000000000007E-5,"unitless","U.S. EPA/ORD 1996","Table 12-15, p. 9-14, 5th percentile for individuals between 20 and 39 years old."]
["Adult Male","Vegetation, home grown","Proportion of body weight","upper range",4.9199999999999999E-3,"unitless","U.S. EPA/ORD 1996","Table 12-15, p. 9-14, 95th percentile for individuals between 20 and 39 years old."]
["Adult Male","Vegetation","Amount","Extreme",0.45400000000000001,"kg/day","U.S. EPA/ORD 1996","1 lb.  The approximate mid range of the above typical and upper limits based on the 64 kg body weight."]
["Adult Male","Vegetation","Proportion of body weight","central estimate",3.5999999999999999E-3,"unitless","U.S. EPA/ORD 1996","Table 9-12, p. 9-12, mean."]
["Adult Male","Vegetation","Proportion of body weight","lower range",7.5000000000000002E-4,"unitless","U.S. EPA/ORD 1996","Table 9-12, p. 9-12, 5th percentile."]
["Adult Male","Vegetation","Proportion of body weight","upper range",0.01,"unitless","U.S. EPA/ORD 1996","Table 9-12, p. 9-12, 95th percentile."]
["Adult Male","Water","Amount","central estimate",2,"L/day","U.S. EPA/ORD 1996","p. 3-28, Table 3-30, midpoint of mean (1.4 L/day) and 90th percentile (2.4 L/day) rounded to one significant place."]
["Adult Male","Water","Amount","lower range",1.4,"L/day","U.S. EPA/ORD 1996","p. 3-28, Table 3-30, mean"]
["Adult Male","Water","Amount","upper range",2.4,"L/day","U.S. EPA/ORD 1996","p. 3-28, Table 3-30, 90th percentile"]
["Subsistence Populations","Fish","Amount","central estimate",8.1000000000000003E-2,"kg/day","U.S. EPA/ORD 1996","p. 10-51, median value of 94 individuals"]
["Subsistence Populations","Fish","Amount","upper range",0.77,"kg/day","U.S. EPA/ORD 1993","p. 10-51, highest value of 94 individuals"]
["Bird, NOS","Fish","Kilocalories","FoodVal",3.87,"Kcal/gram (dw)","U.S. EPA/ORD 1993","Table 3-1, p. 3-5"]
["Bird, NOS","Fish","Wat","FoodVal",0.7,"Unitless","Ali et al. 2005","N/A"]
["Bird, NOS","Fruit","Kilocalories","FoodVal",1.1000000000000001,"Kcal/gram (dw)","U.S. EPA/ORD 1993","Gross caloric value of 2.2 kcal/g dw (U.S. EPA/ORD 1993, Table 4-2) with assim fact of 0.51"]
["Bird, NOS","Fruit","Wat","FoodVal",0.77,"Unitless","U.S. EPA/ORD 1993","Table 4-2, p. 4-14"]
["Bird, NOS","Insect","Kilocalories","FoodVal",4.3,"Kcal/gram (dw)","U.S. EPA/ORD 1993","Table 4-2, p. 4-14"]
["Bird, NOS","Insect","Wat","FoodVal",0.7,"Unitless","Chapman 1998","Typrical range 60-80%"]
["Bird, NOS","Vegetation","Kilocalories","FoodVal",2,"Kcal/gram (dw)","U.S. EPA/ORD 1993","gross caloric value of 4.2 kcal/g dw for dicot leaves (U.S. EPA/ORD 1993, Table 4-2) with assim fact of 0.47"]
["Bird, NOS","Vegetation","Wat","FoodVal",0.85,"Unitless","U.S. EPA/ORD 1993","Table 4-2, p. 4-14"]
["Child","Water","Amount","central estimate",1,"L/day","U.S. EPA/ORD 1996","p. 3-28, Table 3-30, midpoint of mean (0.61L/day) and 90th percentile (1.5 L/day) rounded to one significant place."]
["Child","Water","Amount","lower range",0.61,"L/day","U.S. EPA/ORD 1996","p. 3-28, Table 3-30, mean"]
["Child","Water","Amount","upper range",1.5,"L/day","U.S. EPA/ORD 1996","p. 3-28, Table 3-30, 90th percentile"]
["Herbivorous Insect","Broadleaf/Small Insects","Proportion of body weight","central estimate",1.3,"kg food/kg bw/day","Waldbauer 1968","N/A"]
["Herbivorous Insect","Broadleaf/Small Insects","Proportion of body weight","lower range",0.6,"kg food/kg bw/day","Reichle et al. 1973","N/A"]
["Herbivorous Insect","Broadleaf/Small Insects","Proportion of body weight","upper range",2.2000000000000002,"kg food/kg bw/day","Waldbauer 1968","N/A"]
["Herbivorous Insect","Fruit","Proportion of body weight","central estimate",1.3,"kg food/kg bw/day","Waldbauer 1968","N/A"]
["Herbivorous Insect","Fruit","Proportion of body weight","lower range",0.6,"kg food/kg bw/day","Reichle et al. 1973","N/A"]
["Herbivorous Insect","Fruit","Proportion of body weight","upper range",2.2000000000000002,"kg food/kg bw/day","Waldbauer 1968","N/A"]
["Herbivorous Insect","Short grass","Proportion of body weight","central estimate",1.3,"kg food/kg bw/day","Waldbauer 1968","N/A"]
["Herbivorous Insect","Short grass","Proportion of body weight","lower range",0.6,"kg food/kg bw/day","Reichle et al. 1973","N/A"]
["Herbivorous Insect","Short grass","Proportion of body weight","upper range",2.2000000000000002,"kg food/kg bw/day","Waldbauer 1968","N/A"]
["Herbivorous Insect","Tall Grass","Proportion of body weight","central estimate",1.3,"kg food/kg bw/day","Waldbauer 1968","N/A"]
["Herbivorous Insect","Tall Grass","Proportion of body weight","lower range",0.6,"kg food/kg bw/day","Reichle et al. 1973","N/A"]
["Herbivorous Insect","Tall Grass","Proportion of body weight","upper range",2.2000000000000002,"kg food/kg bw/day","Waldbauer 1968","N/A"]
["Mammal, Nos","Fish","Kilocalories","FoodVal",4.47,"Kcal/gram (dw)","U.S. EPA/ORD 1993","Table 3-1, p. 3-5"]
["Mammal, Nos","Fish","Wat","FoodVal",0.7,"Unitless","Ali et al. 2005","N/A"]
["Mammal, Nos","Fruit","Kilocalories","FoodVal",1.1000000000000001,"Kcal/gram (dw)","U.S. EPA/ORD 1993","Gross caloric value of 2.2 kcal/g dw (U.S. EPA/ORD 1993, Table 4-2) with assim fact of 0.51"]
["Mammal, Nos","Fruit","Wat","FoodVal",0.77,"Unitless","U.S. EPA/ORD 1993","Table 4-2, p. 4-14"]
["Mammal, Nos","Insect","Kilocalories","FoodVal",4.47,"Kcal/gram (dw)","U.S. EPA/ORD 1993","Table 4-2, p. 4-14"]
["Mammal, Nos","Insect","Wat","FoodVal",0.7,"Unitless","Chapman 1998","Typrical range 60-80%"]
["Mammal, Nos","Vegetation","Kilocalories","FoodVal",2.2599999999999998,"Kcal/gram (dw)","U.S. EPA/ORD 1993","Table 3-1, p. 3-5"]
["Mammal, Nos","Vegetation","Wat","FoodVal",0.85,"Unitless","U.S. EPA/ORD 1993","Table 4-2, p. 4-14"]

{"sheet":"A04","index":12,"n_rows":13,"n_cols":5,"rows_kept":13,"cut":false,"hidden":false,"merged":[[0,0,0,4],[1,1,1,3],[2,1,2,3],[3,1,3,3]]}
["Drift from Backpack Directed Foliar application at distances downwindfrom the application site"]
["Short Title","Drift",null,null,"DriftArea"]
["Receptor","Downwind receptors"]
["Duration","Acute"]
["Parameter/Assumption","Code / Range","Equation/   Value","Units","Reference/Designation"]
["Proportion of Drift at distances downwind in feet ","Prop",null,null,"Program Speciified"]
["Direct Spray","feet",1,"unitless"]
[25,"feet",8.3199999999999993E-3]
[50,"feet",4.3299999999999996E-3]
[100,"feet",2.4099999999999998E-3]
[300,"feet",9.41E-4]
[500,"feet",5.7899999999999998E-4]
[900,"feet",3.1199999999999999E-4]

{"sheet":"B01","index":13,"n_rows":22,"n_cols":5,"rows_kept":22,"cut":false,"hidden":false,"merged":[[0,0,0,4]]}
["Chemical and Physical Properties for  Imidacloprid"]
[]
["Property","Receptor","Value","Units","Document Reference"]
["Bioconcentration Factor (BCF), edible, acute","N/A",1,"L/kg fish","Section 3.2.3.5."]
["Bioconcentration Factor (BCF), edible, chronic","N/A",1,"L/kg fish","Section 3.2.3.5."]
["Bioconcentration Factor (BCF), whole fish, acute","N/A",1,"L/kg fish","Section 3.2.3.5."]
["Bioconcentration Factor (BCF), whole fish, chronic","N/A",1,"L/kg fish","Section 3.2.3.5."]
["Kow (Octanol-water partition coefficient)","N/A",3.7,"unitless","Table 1"]
["Molecular weight","N/A",255.66,"grams/mole","Table 1"]
["Water Solubility","N/A",580,"mg/L","Table 1"]
["First order dermal absorption rate (ka), central estimate","N/A",1.5E-3,"per hour","Section 3.1.3.2.2"]
["First order dermal absorption rate (ka), lower range","N/A",6.7000000000000002E-4,"per hour","Section 3.1.3.2.2"]
["First order dermal absorption rate (ka), upper range","N/A",3.5999999999999999E-3,"per hour","Section 3.1.3.2.2"]
["Dermal permeability (Kp), central estimate","N/A",1.2999999999999999E-4,"cm/hour","Section 3.1.3.2.3"]
["Dermal permeability (Kp), lower range","N/A",7.1000000000000005E-5,"cm/hour","Section 3.1.3.2.3"]
["Dermal permeability (Kp), upper range","N/A",2.3000000000000001E-4,"cm/hour","Section 3.1.3.2.3"]
["Halftime, central estimate","Fruit",4.5,"days","Section 3.2.3.7"]
["Halftime, lower range","Fruit",2,"days","Section 3.2.3.7"]
["Halftime, upper range","Fruit",10,"days","Section 3.2.3.7"]
["Halftime, central estimate","Vegetation",4.5,"days","Section 3.2.3.7"]
["Halftime, lower range","Vegetation",2,"days","Section 3.2.3.7"]
["Halftime, upper range","Vegetation",10,"days","Section 3.2.3.7"]

{"sheet":"B02","index":14,"n_rows":24,"n_cols":7,"rows_kept":24,"cut":false,"hidden":false,"merged":[[0,0,0,6]]}
["Toxicity values for  Imidacloprid"]
[]
["Receptor","Receptor","Qualifier","Endpoint","Value","Units","Document Reference"]
["Human","acute","N/A","Reference Dose (RfD)",0.14000000000000001,"mg/kg bw","Section 3.3.2."]
["Human","chronic","N/A","Reference Dose (RfD)",5.7000000000000002E-2,"mg/kg bw/day","Section 3.3.3."]
["Mammal, Nos","acute","N/A","NOAEL",14,"mg/kg bw","Section 4.3.2.1."]
["Mammal, Nos","chronic","N/A","NOAEL",5.7,"mg/kg bw/day","Section 4.3.2.1."]
["Bird, NOS","acute","N/A","NOAEL",3,"mg/kg bw","Section 4.3.2.2."]
["Bird, NOS","chronic","N/A","NOAEL",2.52,"mg/kg bw/day","Section 4.3.2.2."]
["Honeybee","acute","N/A","NOAEL*",2.3000000000000001E-4,"mg/kg bw","Section 4.3.2.4.3"]
["Fish","acute","sensitive species","NOEC",25,"mg/L","Section 4.3.3.1."]
["Fish","acute","tolerant species","NOEC",50,"mg/L","Section 4.3.3.1."]
["Fish","chronic","sensitive species","NOEC",1.2,"mg/L","Section 4.3.3.1."]
["Amphibian","acute","sensitive species","NOEC",3.89,"mg/L","Section 4.3.3.2"]
["Aquatic invertebrate","acute","sensitive species","NOEC",3.2499999999999999E-4,"mg/L","Section 4.3.3.3."]
["Aquatic invertebrate","acute","tolerant species","NOEC",42,"mg/L","Section 4.3.3.3."]
["Aquatic invertebrate","chronic","sensitive species","NOEC",2.4000000000000001E-5,"mg/L","Section 4.3.3.3."]
["Aquatic invertebrate","chronic","tolerant species","NOEC",1.1299999999999999,"mg/L","Section 4.3.3.3."]
["Algae","N/A","sensitive species","NOEC",5.6,"mg/L","Section 4.3.3.4."]
["Algae","N/A","tolerant species","NOEC",119,"mg/L","Section 4.3.3.4."]
["Amphibian","acute","tolerant species","NOEC",16.7,"mg/L","Section 4.3.3.2"]
["Honeybee","acute","N/A","NOAEL",9.5000000000000005E-5,"mg/kg bw","Section 4.3.2.4.1"]
["Herbivorous Insect","acute","N/A","NOAEL*",2.3000000000000001E-4,"mg/kg bw","Section 4.3.2.4.2"]
["Macrophyte, aquatic","acute","tolerant species","NOAEC*",37,"mg/L","Section 4.3.3.4."]

{"sheet":"B03a","index":15,"n_rows":28,"n_cols":5,"rows_kept":28,"cut":false,"hidden":false,"merged":[[24,0,27,0],[0,0,0,4],[1,1,1,3],[5,0,7,0],[9,0,12,0],[20,0,23,0]]}
["Calculation of Zero-Order Dermal Permeability Rate (Kp) in cm/hour"]
["Short Title","Calculation of Kp",null,null,"ChemDrmKp"]
["Parameter/Assumption","Code / Range","Equation/   Value","Units","Reference/Designation"]
["Molecular weight","MW",{"$f":"'B01'!$C$9","v":255.66},"g/mole","Table 1"]
["Ko/w","Kow",{"$f":"'B01'!$C$8","v":3.7},"unitless","Table 1"]
["Vector a[]","a[1]",1]
[null,"a[2]",{"$f":"C4","v":255.66}]
[null,"a[3]",{"$f":"LOG10(C5)","v":0.56820172406699498}]
["Transpose of a[] (a')",{"$f":"$C$6","v":1},{"$f":"$C$7","v":255.66},{"$f":"$C$8","v":0.56820172406699498}]
["X'X Cross Product Matrix","X'X"]
[null,5.5931000000000002E-2,-9.4154599999999995E-5,-1.0344300000000001E-2]
[null,-9.4154599999999995E-5,5.9780000000000002E-7,-2.22508E-5]
[null,-1.0344300000000001E-2,-2.22508E-5,7.40677E-3]
["a'X'X a","a'X'X a",{"$f":"MMULT(B9:D9,MMULT(B11:D13, C6:C8))","v":3.1032706436817888E-2}]
["Coefficients for model"]
["Intercept","K0",-2.7257600000000002]
["Coeff for MW","K1",-6.1510000000000002E-3]
["Coeff for Log10(Kow)","K2",0.70664800000000005]
["Standard deviation of model","s",0.72712900000000003]
["Critical value at 0.025 with 87 d.f.","t0.025",1.96]
["Log10 of Estimated dermal permeability rate (Kp)","Log(Kp) = ","K0 + K1  MW + K2 Log10(Kow) "]
[null,"Central",{"$f":" $C$16 + ($C$17*$C$4) + ($C$18*LOG10($C$5))","v":-3.8968060480915065},null,"Eq"]
[null,"Lower 95% CI",{"$f":"$C$22 - ($C$20 * $C$19 * ($C$14^0.5))","v":-4.1478659552059609},null,"Eq"]
[null,"Upper 95% CI",{"$f":"$C$22 + ($C$20 * $C$19 * ($C$14^0.5))","v":-3.6457461409770522},null,"Eq"]
["Estimated dermal permeability rate (Kp)","Kp = ","10Log(Kp)"]
[null,"Central",{"$f":"10^C22","v":1.2682181139160047E-4},"cm/hour","Eq"]
[null,"Lower 95% CI",{"$f":"10^C23","v":7.1143306326059387E-5},null,"Eq"]
[null,"Upper 95% CI",{"$f":"10^C24","v":2.2607568688096327E-4},null,"Eq"]

{"sheet":"B03b","index":16,"n_rows":28,"n_cols":5,"rows_kept":28,"cut":false,"hidden":false,"merged":[[24,0,27,0],[0,0,0,4],[1,1,1,3],[5,0,7,0],[9,0,12,0],[20,0,23,0]]}
["Calculation of First-Order Dermal Absorption Rate"]
["Short Title","Calculation of ka",null,null,"ChemDrmKa"]
["Parameter/Assumption","Code / Range","Equation/   Value","Units","Reference/Designation"]
["Molecular weight","MW",{"$f":"'B01'!$C$9","v":255.66},"g/mole","Table 1"]
["Ko/w","Kow",{"$f":"'B01'!$C$8","v":3.7},"unitless","Table 1"]
["Vector a[]","a[1]",1]
[null,"a[2]",{"$f":"C4","v":255.66}]
[null,"a[3]",{"$f":"LOG10(C5)","v":0.56820172406699498}]
["Transpose of a[] (a')",{"$f":"$C$6","v":1},{"$f":"$C$7","v":255.66},{"$f":"$C$8","v":0.56820172406699498}]
["X'X Cross Product Matrix","X'X"]
[null,0.307537,-1.03089E-3,8.2276899999999993E-3]
[null,-1.03089E-3,4.3769999999999998E-6,-9.4435899999999995E-5]
[null,8.2276899999999993E-3,-9.4435899999999995E-5,8.5286000000000008E-3]
["a'X'X a","a'X'X a",{"$f":"MMULT(B9:D9,MMULT(B11:D13, C6:C8))","v":5.1178679687130441E-2}]
["Coefficients for model"]
["Intercept","K0",-1.4961500000000001]
["Coeff for MW","K1",-5.6569999999999997E-3]
["Coeff for Log10(Kow)","K2",0.23325499999999999]
["Standard deviation of model","s",0.78721799999999997]
["Critical value at 0.025 with 26 d.f.","t0.025",2.056]
["Log10 of Estimated first-order absorption rate","Log(ka) = ","K0 + K1  MW + K2 Log10(Kow) "]
[null,"Central",{"$f":"  $C$16 + ($C$17*$C$4) + ($C$18*LOG10($C$5))","v":-2.8098827268527531},null,"Eq"]
[null,"Lower 95% CI",{"$f":"$C$22 - ($C$20 * $C$19 * ($C$14^0.5))","v":-3.1760357843665172},null,"Eq"]
[null,"Upper 95% CI",{"$f":"$C$22 + ($C$20 * $C$19 * ($C$14^0.5))","v":-2.4437296693389889},null,"Eq"]
["Estimated first-order absorption rate","ka = ","10Log(ka)"]
[null,"Central",{"$f":"10^C22","v":1.5492349045060304E-3},"hour-1","Eq"]
[null,"Lower 95% CI",{"$f":"10^C23","v":6.6675182890052942E-4},null,"Eq"]
[null,"Upper 95% CI",{"$f":"10^C24","v":3.5997333420106402E-3},null,"Eq"]

{"sheet":"B04Rt","index":17,"n_rows":11,"n_cols":5,"rows_kept":11,"cut":false,"hidden":false,"merged":[[0,0,0,4],[2,0,5,0],[6,0,9,0],[10,1,10,4]]}
["Estimates of Water Contamination Rates -- i.e., the concentration in ambient water per pound applied per acre"]
["Parameter/Assumption","Code / Range","Equation/ Value","Units","WCRV6"]
["Short-term peak concentrations","Peak",null,null,"WCRV6"]
[null,"Central ",1.2999999999999999E-2,"mg/L","Section 3.2.3.4.1"]
[null,"Lower ",1.1999999999999999E-6,null,"Section 3.2.3.4.1"]
[null,"Upper ",0.17,null,"Section 3.2.3.4.1"]
["Longer-term average concentrations","Average"]
[null,"Central ",8.3999999999999995E-3,"mg/L","Section 3.2.3.4.2"]
[null,"Lower ",4.9999999999999998E-7,null,"Section 3.2.3.4.2"]
[null,"Upper ",4.8000000000000001E-2,null,"Section 3.2.3.4.2"]
["User Specified Gleams-Driver File:","None"]

{"sheet":"B04a","index":18,"n_rows":21,"n_cols":5,"rows_kept":21,"cut":false,"hidden":false,"merged":[[21,1,21,4],[0,0,0,3],[4,0,7,0],[8,0,11,0],[13,0,16,0],[17,0,20,0]]}
["Expected Concentrations in Surface Water",null,null,null,"EECRtV6"]
["Parameter/Assumption","Code / Range","Equation/ Value","Units","EECRtV6"]
["Application Rate","ApRt",{"$f":"'A01'!ApRt_C","v":0.4},"lb/acre","Worksheet A01"]
["Water Contamination Rates"]
["Short-term peak water contamination rates (WCR)","Peak"]
[null,"Central ",{"$f":"B04Rt!$C$4","v":1.2999999999999999E-2},"mg/L","Section 3.2.3.4.1"]
[null,"Lower ",{"$f":"B04Rt!$C$5","v":1.1999999999999999E-6},null,"Section 3.2.3.4.1"]
[null,"Upper ",{"$f":"B04Rt!$C$6","v":0.17},null,"Section 3.2.3.4.1"]
["Longer-term average water contamination rates (WCR)","Average"]
[null,"Central ",{"$f":"B04Rt!$C$8","v":8.3999999999999995E-3},"mg/L","Section 3.2.3.4.2"]
[null,"Lower ",{"$f":"B04Rt!$C$9","v":4.9999999999999998E-7},null,"Section 3.2.3.4.2"]
[null,"Upper ",{"$f":"B04Rt!$C$10","v":4.8000000000000001E-2},null,"Section 3.2.3.4.2"]
["EECs in Surface Water"]
["Short-term peak concentrations","Peak"]
[null,"Central ",{"$f":"$C$3*C6","v":5.1999999999999998E-3},"mg/L","Eq"]
[null,"Lower ",{"$f":"$C$3*C7","v":4.7999999999999996E-7},null,"Eq"]
[null,"Upper ",6.8000000000000005E-2,null,"Eq"]
["Longer-term average concentrations","Average"]
[null,"Central ",{"$f":"$C$3*C10","v":3.3600000000000001E-3},"mg/L","Eq"]
[null,"Lower ",{"$f":"$C$3*C11","v":1.9999999999999999E-7},null,"Eq"]
[null,"Upper ",1.9200000000000002E-2,null,"Eq"]

{"sheet":"B04b","index":19,"n_rows":25,"n_cols":5,"rows_kept":25,"cut":false,"hidden":false,"merged":[[18,0,21,0],[0,0,0,4],[1,1,1,3],[2,1,2,3],[3,1,3,3],[13,0,16,0]]}
["Pond: Concentration of pesticide (liquid formulation) in pond water after an accidental spill"]
["Short Title","Pond Spill",null,null,"PondSpillLiqV6"]
["Receptor","Pond"]
["Duration","Acute"]
["Parameter/Assumption","Code / Range","Equation/   Value","Units","Reference/Designation"]
["Surface Area of Pond","SA",{"$f":"'A01'!C$23","v":1000},"m2","Worksheet A01"]
["Depth of Pond","Depth",{"$f":"'A01'!C$24","v":1},"meter","Worksheet A01"]
["Volume of Pond","VPM",{"$f":"C6*C7","v":1000},"m3","Eq"]
[null,"VPL",{"$f":"1000*C8","v":1000000},"liters","Eq"]
["Concentration in solution","Conc"]
[null,"Central ",{"$f":"'A01'!FldConc_C","v":12},"mg/mL","Worksheet A01"]
[null,"Lower ",{"$f":"'A01'!FldConc_L","v":2.4},null,"Worksheet A01"]
[null,"Upper ",{"$f":"'A01'!FldConc_U","v":48},null,"Worksheet A01"]
["Volume of Spill (gallons)","VSGal"]
[null,"Central ",{"$f":"'A01'!C$47","v":4},"gallons","Worksheet A01"]
[null,"Lower ",{"$f":"'A01'!C$48","v":0.8},null,"Worksheet A01"]
[null,"Upper ",{"$f":"'A01'!C$49","v":8},null,"Worksheet A01"]
["Conversion factor for gallons to liters","Conv",3.7850000000000001,"liters/gal"]
["Volume of Spill (liters)","VSLit","VSGal x Conv"]
[null,"Central ",{"$f":"C15*C$18","v":15.14},"liters","Eq"]
[null,"Lower ",{"$f":"C16*C$18","v":3.0280000000000005},"liters","Eq"]
[null,"Upper ",{"$f":"C17*C$18","v":30.28},"liters","Eq"]
["Concentration in pond water at various times after as spill","ConcWat","Conc × 1000 mL/L × VSL ÷ VPL"]
["Time","Central ","Lower ","Upper "]
[0,{"$f":"C11*1000*C20/C$9","v":0.18168000000000001},{"$f":"C12*1000*C21/C$9","v":7.2672000000000006E-3},{"$f":"C13*1000*C22/C$9","v":1.4534400000000001},"mg/L"]

{"sheet":"B05a","index":20,"n_rows":56,"n_cols":5,"rows_kept":56,"cut":false,"hidden":false,"merged":[[48,0,51,0],[49,3,51,3],[52,0,55,0],[53,3,55,3],[26,0,29,0],[30,0,33,0],[34,0,37,0],[38,0,41,0],[42,0,45,0],[43,3,45,3],[0,0,0,4],[9,0,12,0],[10,3,12,3],[13,0,16,0],[18,0,21,0],[19,3,21,3]]}
["Concentration of Pesticide in Contaminated Fruit "]
["Short Title","Concentration in food item",null,null,"FoodConcV6"]
["Material consumed",null,"Fruit",null,"Scenario parameter"]
["Parameter/Assumption","Code / Range","Equation/   Value","Units","Reference/Designation"]
["Application Information"]
["Application Rate (lbs/acre)","ApRt",{"$f":"'A01'!ApRt_C","v":0.4},"lb/acre","Worksheet A01"]
["Number of applications","n",{"$f":"'A01'!C$20","v":1},"unitless","Worksheet A01"]
["Interval between applications","intv",{"$f":"'A01'!C$21","v":1},"days","Worksheet A01"]
["Special Adjustments (See Note 1)"]
["Metabolite Adjustment Factor :  (See risk assessment if this has a value other than 1.)","MetFact"]
[null,"Central ",1,"unitless","Default"]
[null,"Lower ",1,null,"Default"]
[null,"Upper ",1,null,"Default"]
["Toxic Equivalency Factor for formulation:  (See risk assessment if this has a value other than 1.)","TEF"]
[null,"Central ",{"$f":"'A01'!C$35","v":1},"Unitless","Worksheet A01"]
[null,"Lower ",{"$f":"'A01'!C$36","v":1},null,"Worksheet A01"]
[null,"Upper ",{"$f":"'A01'!C$37","v":1},null,"Worksheet A01"]
["Acute Concentrations"]
["Residue Rates","rr"]
[null,"Central ",{"$f":"'A01'!C$67","v":0.7},"mg/kg food per lb/acre","Worksheet A01"]
[null,"Lower ",{"$f":"'A01'!C$68","v":0.32},null,"Worksheet A01"]
[null,"Upper ",{"$f":"'A01'!C$69","v":1.5},null,"Worksheet A01"]
["Drift","Drift"]
[null,"Central ",{"$f":"'A01'!C$43","v":1},"proportion","Worksheet A01"]
[null,"Lower ",{"$f":"'A01'!C$44","v":1},null,"Worksheet A01"]
[null,"Upper ",{"$f":"'A01'!C$45","v":1},null,"Worksheet A01"]
["Concentration on commodity immediately after first application.","C0","ApR × rr × Drift × MetFact × TEF"]
[null,"Central ",{"$f":"C$6*C20*$C$24*C11*C15","v":0.27999999999999997},null,"Eq"]
[null,"Lower ",{"$f":"C$6*C21*$C$24*C12*C16","v":0.128},null,"Eq"]
[null,"Upper ",{"$f":"C$6*C22*$C$24*C13*C17","v":0.60000000000000009},null,"Eq"]
["Half-life on commodity","Halflife"]
[null,"Central ",{"$f":"'B01'!$C$17","v":4.5},"Days","Section 3.2.3.7"]
[null,"Lower ",{"$f":"'B01'!$C$18","v":2},null,"Section 3.2.3.7"]
[null,"Upper ",{"$f":"'B01'!$C$19","v":10},null,"Section 3.2.3.7"]
["Decay Coefficient","k","Ln(2)/Halflife"]
[null,"Central ",{"$f":"LN(2)/C32","v":0.15403270679109896},"Days-1","Eq"]
[null,"Upper ",{"$f":"LN(2)/C33","v":0.34657359027997264},"Note 2","Eq"]
[null,"Lower ",{"$f":"LN(2)/C34","v":6.9314718055994526E-2},"Note 2","Eq"]
["Proportion remaining at end of each application interval","p","exp( -k ×  intv)"]
[null,"Central ",{"$f":"EXP(-C36*C$8)","v":0.85724398285307279},"proportion","Eq"]
[null,"Lower ",{"$f":"EXP(-C37*C$8)","v":0.70710678118654757},null,"Eq"]
[null,"Upper ",{"$f":"EXP(-C38*C$8)","v":0.93303299153680741},null,"Eq"]
["Concentration on commodity immediately after last application.","Cn","Cn = C0 × (1- pn) ÷ (1- p)"]
[null,"Central ",{"$f":"C28 * (1-C40^C$7)/(1-C40)","v":0.27999999999999997},"mg/kg food item","Eq"]
[null,"Lower ",{"$f":"C29 * (1-C41^C$7)/(1-C41)","v":0.128},null,"Eq"]
[null,"Upper ",{"$f":"C30 * (1-C42^C$7)/(1-C42)","v":0.60000000000000009},null,"Eq"]
["Longer-term Concentrations"]
["Duration for time-weighted average exposure","T",{"$f":"'A01'!C$28","v":90},"Days","Worksheet A01"]
["Time-weighted average concentration on commodity over time, T, after the last application.","ConcTWA","Cn × (1-e-kT) ÷ (k T)"]
[null,"Central ",{"$f":"C44*(1-EXP(-C36*$C$48))/(C36*$C$48)","v":2.0197711310388586E-2},"mg/kg food item","Eq"]
[null,"Lower ",{"$f":"C45*(1-EXP(-C37*$C$48))/(C37*$C$48)","v":4.1036658940840466E-3},null,"Eq"]
[null,"Upper ",9.5991818475815158E-2,null,"Eq"]
["Maximum Time-weighted average concentration on commodity over time, T.","ConcTWA","See Documentation"]
[null,"Central ",{"$f":"IF($C$7=1, C50, MaxTWAWsFn(C28, $C$7, $C$8, $C$48, C36))","v":2.0197711310388586E-2},"mg/kg food item","Eq"]
[null,"Lower ",{"$f":"IF($C$7=1, C51, MaxTWAWsFn(C29, $C$7, $C$8, $C$48, C37))","v":4.1036658940840466E-3},null,"Eq"]
[null,"Upper ",{"$f":"IF($C$7=1, C52, MaxTWAWsFn(C30, $C$7, $C$8, $C$48, C38))","v":9.5991818475815158E-2},null,"Eq"]

{"sheet":"B05b","index":21,"n_rows":56,"n_cols":5,"rows_kept":56,"cut":false,"hidden":false,"merged":[[48,0,51,0],[49,3,51,3],[52,0,55,0],[53,3,55,3],[26,0,29,0],[30,0,33,0],[34,0,37,0],[38,0,41,0],[42,0,45,0],[43,3,45,3],[0,0,0,4],[9,0,12,0],[10,3,12,3],[13,0,16,0],[18,0,21,0],[19,3,21,3]]}
["Concentration of Pesticide in Contaminated Broadleaf Vegetation "]
["Short Title","Concentration in food item",null,null,"FoodConcV6"]
["Material consumed",null,"Broadleaf Vegetation",null,"Scenario parameter"]
["Parameter/Assumption","Code / Range","Equation/   Value","Units","Reference/Designation"]
["Application Information"]
["Application Rate (lbs/acre)","ApRt",{"$f":"'A01'!ApRt_C","v":0.4},"lb/acre","Worksheet A01"]
["Number of applications","n",{"$f":"'A01'!C$20","v":1},"unitless","Worksheet A01"]
["Interval between applications","intv",{"$f":"'A01'!C$21","v":1},"days","Worksheet A01"]
["Special Adjustments (See Note 1)"]
["Metabolite Adjustment Factor :  (See risk assessment if this has a value other than 1.)","MetFact"]
[null,"Central ",1,"unitless","Default"]
[null,"Lower ",1,null,"Default"]
[null,"Upper ",1,null,"Default"]
["Toxic Equivalency Factor for formulation:  (See risk assessment if this has a value other than 1.)","TEF"]
[null,"Central ",{"$f":"'A01'!C$35","v":1},"Unitless","Worksheet A01"]
[null,"Lower ",{"$f":"'A01'!C$36","v":1},null,"Worksheet A01"]
[null,"Upper ",{"$f":"'A01'!C$37","v":1},null,"Worksheet A01"]
["Acute Concentrations"]
["Residue Rates","rr"]
[null,"Central ",{"$f":"'A01'!C$63","v":4.5},"mg/kg food per lb/acre","Worksheet A01"]
[null,"Lower ",{"$f":"'A01'!C$64","v":1.5},null,"Worksheet A01"]
[null,"Upper ",{"$f":"'A01'!C$65","v":13.5},null,"Worksheet A01"]
["Drift","Drift"]
[null,"Central ",{"$f":"'A01'!C$43","v":1},"proportion","Worksheet A01"]
[null,"Lower ",{"$f":"'A01'!C$44","v":1},null,"Worksheet A01"]
[null,"Upper ",{"$f":"'A01'!C$45","v":1},null,"Worksheet A01"]
["Concentration on commodity immediately after first application.","C0","ApR × rr × Drift × MetFact × TEF"]
[null,"Central ",{"$f":"C$6*C20*$C$24*C11*C15","v":1.8},null,"Eq"]
[null,"Lower ",{"$f":"C$6*C21*$C$24*C12*C16","v":0.60000000000000009},null,"Eq"]
[null,"Upper ",{"$f":"C$6*C22*$C$24*C13*C17","v":5.4},null,"Eq"]
["Half-life on commodity","Halflife"]
[null,"Central ",{"$f":"'B01'!$C$20","v":4.5},"Days","Section 3.2.3.7"]
[null,"Lower ",{"$f":"'B01'!$C$21","v":2},null,"Section 3.2.3.7"]
[null,"Upper ",{"$f":"'B01'!$C$22","v":10},null,"Section 3.2.3.7"]
["Decay Coefficient","k","Ln(2)/Halflife"]
[null,"Central ",{"$f":"LN(2)/C32","v":0.15403270679109896},"Days-1","Eq"]
[null,"Upper ",{"$f":"LN(2)/C33","v":0.34657359027997264},"Note 2","Eq"]
[null,"Lower ",{"$f":"LN(2)/C34","v":6.9314718055994526E-2},"Note 2","Eq"]
["Proportion remaining at end of each application interval","p","exp( -k ×  intv)"]
[null,"Central ",{"$f":"EXP(-C36*C$8)","v":0.85724398285307279},"proportion","Eq"]
[null,"Lower ",{"$f":"EXP(-C37*C$8)","v":0.70710678118654757},null,"Eq"]
[null,"Upper ",{"$f":"EXP(-C38*C$8)","v":0.93303299153680741},null,"Eq"]
["Concentration on commodity immediately after last application.","Cn","Cn = C0 × (1- pn) ÷ (1- p)"]
[null,"Central ",{"$f":"C28 * (1-C40^C$7)/(1-C40)","v":1.8},"mg/kg food item","Eq"]
[null,"Lower ",{"$f":"C29 * (1-C41^C$7)/(1-C41)","v":0.60000000000000009},null,"Eq"]
[null,"Upper ",{"$f":"C30 * (1-C42^C$7)/(1-C42)","v":5.4},null,"Eq"]
["Longer-term Concentrations"]
["Duration for time-weighted average exposure","T",{"$f":"'A01'!C$28","v":90},"Days","Worksheet A01"]
["Time-weighted average concentration on commodity over time, T, after the last application.","ConcTWA","Cn × (1-e-kT) ÷ (k T)"]
[null,"Central ",{"$f":"C44*(1-EXP(-C36*$C$48))/(C36*$C$48)","v":0.12984242985249808},"mg/kg food item","Eq"]
[null,"Lower ",{"$f":"C45*(1-EXP(-C37*$C$48))/(C37*$C$48)","v":1.9235933878518966E-2},null,"Eq"]
[null,"Upper ",0.86392636628233632,null,"Eq"]
["Maximum Time-weighted average concentration on commodity over time, T.","ConcTWA","See Documentation"]
[null,"Central ",{"$f":"IF($C$7=1, C50, MaxTWAWsFn(C28, $C$7, $C$8, $C$48, C36))","v":0.12984242985249808},"mg/kg food item","Eq"]
[null,"Lower ",{"$f":"IF($C$7=1, C51, MaxTWAWsFn(C29, $C$7, $C$8, $C$48, C37))","v":1.9235933878518966E-2},null,"Eq"]
[null,"Upper ",{"$f":"IF($C$7=1, C52, MaxTWAWsFn(C30, $C$7, $C$8, $C$48, C38))","v":0.86392636628233632},null,"Eq"]

{"sheet":"B05c","index":22,"n_rows":56,"n_cols":5,"rows_kept":56,"cut":false,"hidden":false,"merged":[[48,0,51,0],[49,3,51,3],[52,0,55,0],[53,3,55,3],[26,0,29,0],[30,0,33,0],[34,0,37,0],[38,0,41,0],[42,0,45,0],[43,3,45,3],[0,0,0,4],[9,0,12,0],[10,3,12,3],[13,0,16,0],[18,0,21,0],[19,3,21,3]]}
["Concentration of Pesticide in Contaminated Short Grass "]
["Short Title","Concentration in food item",null,null,"FoodConcV6"]
["Material consumed",null,"Short Grass",null,"Scenario parameter"]
["Parameter/Assumption","Code / Range","Equation/   Value","Units","Reference/Designation"]
["Application Information"]
["Application Rate (lbs/acre)","ApRt",{"$f":"'A01'!ApRt_C","v":0.4},"lb/acre","Worksheet A01"]
["Number of applications","n",{"$f":"'A01'!C$20","v":1},"unitless","Worksheet A01"]
["Interval between applications","intv",{"$f":"'A01'!C$21","v":1},"days","Worksheet A01"]
["Special Adjustments (See Note 1)"]
["Metabolite Adjustment Factor :  (See risk assessment if this has a value other than 1.)","MetFact"]
[null,"Central ",1,"unitless","Default"]
[null,"Lower ",1,null,"Default"]
[null,"Upper ",1,null,"Default"]
["Toxic Equivalency Factor for formulation:  (See risk assessment if this has a value other than 1.)","TEF"]
[null,"Central ",{"$f":"'A01'!C$35","v":1},"Unitless","Worksheet A01"]
[null,"Lower ",{"$f":"'A01'!C$36","v":1},null,"Worksheet A01"]
[null,"Upper ",{"$f":"'A01'!C$37","v":1},null,"Worksheet A01"]
["Acute Concentrations"]
["Residue Rates","rr"]
[null,"Central ",{"$f":"'A01'!C$55","v":8.5},"mg/kg food per lb/acre","Worksheet A01"]
[null,"Lower ",{"$f":"'A01'!C$56","v":3},null,"Worksheet A01"]
[null,"Upper ",{"$f":"'A01'!C$57","v":24},null,"Worksheet A01"]
["Drift","Drift"]
[null,"Central ",{"$f":"'A01'!C$43","v":1},"proportion","Worksheet A01"]
[null,"Lower ",{"$f":"'A01'!C$44","v":1},null,"Worksheet A01"]
[null,"Upper ",{"$f":"'A01'!C$45","v":1},null,"Worksheet A01"]
["Concentration on commodity immediately after first application.","C0","ApR × rr × Drift × MetFact × TEF"]
[null,"Central ",{"$f":"C$6*C20*$C$24*C11*C15","v":3.4000000000000004},null,"Eq"]
[null,"Lower ",{"$f":"C$6*C21*$C$24*C12*C16","v":1.2000000000000002},null,"Eq"]
[null,"Upper ",{"$f":"C$6*C22*$C$24*C13*C17","v":9.6000000000000014},null,"Eq"]
["Half-life on commodity","Halflife"]
[null,"Central ",{"$f":"'B01'!$C$20","v":4.5},"Days","Section 3.2.3.7"]
[null,"Lower ",{"$f":"'B01'!$C$21","v":2},null,"Section 3.2.3.7"]
[null,"Upper ",{"$f":"'B01'!$C$22","v":10},null,"Section 3.2.3.7"]
["Decay Coefficient","k","Ln(2)/Halflife"]
[null,"Central ",{"$f":"LN(2)/C32","v":0.15403270679109896},"Days-1","Eq"]
[null,"Upper ",{"$f":"LN(2)/C33","v":0.34657359027997264},"Note 2","Eq"]
[null,"Lower ",{"$f":"LN(2)/C34","v":6.9314718055994526E-2},"Note 2","Eq"]
["Proportion remaining at end of each application interval","p","exp( -k ×  intv)"]
[null,"Central ",{"$f":"EXP(-C36*C$8)","v":0.85724398285307279},"proportion","Eq"]
[null,"Lower ",{"$f":"EXP(-C37*C$8)","v":0.70710678118654757},null,"Eq"]
[null,"Upper ",{"$f":"EXP(-C38*C$8)","v":0.93303299153680741},null,"Eq"]
["Concentration on commodity immediately after last application.","Cn","Cn = C0 × (1- pn) ÷ (1- p)"]
[null,"Central ",{"$f":"C28 * (1-C40^C$7)/(1-C40)","v":3.4000000000000004},"mg/kg food item","Eq"]
[null,"Lower ",{"$f":"C29 * (1-C41^C$7)/(1-C41)","v":1.2000000000000002},null,"Eq"]
[null,"Upper ",{"$f":"C30 * (1-C42^C$7)/(1-C42)","v":9.6000000000000014},null,"Eq"]
["Longer-term Concentrations"]
["Duration for time-weighted average exposure","T",{"$f":"'A01'!C$28","v":90},"Days","Worksheet A01"]
["Time-weighted average concentration on commodity over time, T, after the last application.","ConcTWA","Cn × (1-e-kT) ÷ (k T)"]
[null,"Central ",{"$f":"C44*(1-EXP(-C36*$C$48))/(C36*$C$48)","v":0.24525792305471864},"mg/kg food item","Eq"]
[null,"Lower ",{"$f":"C45*(1-EXP(-C37*$C$48))/(C37*$C$48)","v":3.8471867757037932E-2},null,"Eq"]
[null,"Upper ",1.5358690956130425,null,"Eq"]
["Maximum Time-weighted average concentration on commodity over time, T.","ConcTWA","See Documentation"]
[null,"Central ",{"$f":"IF($C$7=1, C50, MaxTWAWsFn(C28, $C$7, $C$8, $C$48, C36))","v":0.24525792305471864},"mg/kg food item","Eq"]
[null,"Lower ",{"$f":"IF($C$7=1, C51, MaxTWAWsFn(C29, $C$7, $C$8, $C$48, C37))","v":3.8471867757037932E-2},null,"Eq"]
[null,"Upper ",{"$f":"IF($C$7=1, C52, MaxTWAWsFn(C30, $C$7, $C$8, $C$48, C38))","v":1.5358690956130425},null,"Eq"]

{"sheet":"B05d","index":23,"n_rows":56,"n_cols":5,"rows_kept":56,"cut":false,"hidden":false,"merged":[[48,0,51,0],[49,3,51,3],[52,0,55,0],[53,3,55,3],[26,0,29,0],[30,0,33,0],[34,0,37,0],[38,0,41,0],[42,0,45,0],[43,3,45,3],[0,0,0,4],[9,0,12,0],[10,3,12,3],[13,0,16,0],[18,0,21,0],[19,3,21,3]]}
["Concentration of Pesticide in Contaminated Tall Grass "]
["Short Title","Concentration in food item",null,null,"FoodConcV6"]
["Material consumed",null,"Tall Grass",null,"Scenario parameter"]
["Parameter/Assumption","Code / Range","Equation/   Value","Units","Reference/Designation"]
["Application Information"]
["Application Rate (lbs/acre)","ApRt",{"$f":"'A01'!ApRt_C","v":0.4},"lb/acre","Worksheet A01"]
["Number of applications","n",{"$f":"'A01'!C$20","v":1},"unitless","Worksheet A01"]
["Interval between applications","intv",{"$f":"'A01'!C$21","v":1},"days","Worksheet A01"]
["Special Adjustments (See Note 1)"]
["Metabolite Adjustment Factor :  (See risk assessment if this has a value other than 1.)","MetFact"]
[null,"Central ",1,"unitless","Default"]
[null,"Lower ",1,null,"Default"]
[null,"Upper ",1,null,"Default"]
["Toxic Equivalency Factor for formulation:  (See risk assessment if this has a value other than 1.)","TEF"]
[null,"Central ",{"$f":"'A01'!C$35","v":1},"Unitless","Worksheet A01"]
[null,"Lower ",{"$f":"'A01'!C$36","v":1},null,"Worksheet A01"]
[null,"Upper ",{"$f":"'A01'!C$37","v":1},null,"Worksheet A01"]
["Acute Concentrations"]
["Residue Rates","rr"]
[null,"Central ",{"$f":"'A01'!C$59","v":3.6},"mg/kg food per lb/acre","Worksheet A01"]
[null,"Lower ",{"$f":"'A01'!C$60","v":1.2},null,"Worksheet A01"]
[null,"Upper ",{"$f":"'A01'!C$61","v":11},null,"Worksheet A01"]
["Drift","Drift"]
[null,"Central ",{"$f":"'A01'!C$43","v":1},"proportion","Worksheet A01"]
[null,"Lower ",{"$f":"'A01'!C$44","v":1},null,"Worksheet A01"]
[null,"Upper ",{"$f":"'A01'!C$45","v":1},null,"Worksheet A01"]
["Concentration on commodity immediately after first application.","C0","ApR × rr × Drift × MetFact × TEF"]
[null,"Central ",{"$f":"C$6*C20*$C$24*C11*C15","v":1.4400000000000002},null,"Eq"]
[null,"Lower ",{"$f":"C$6*C21*$C$24*C12*C16","v":0.48},null,"Eq"]
[null,"Upper ",{"$f":"C$6*C22*$C$24*C13*C17","v":4.4000000000000004},null,"Eq"]
["Half-life on commodity","Halflife"]
[null,"Central ",{"$f":"'B01'!$C$20","v":4.5},"Days","Section 3.2.3.7"]
[null,"Lower ",{"$f":"'B01'!$C$21","v":2},null,"Section 3.2.3.7"]
[null,"Upper ",{"$f":"'B01'!$C$22","v":10},null,"Section 3.2.3.7"]
["Decay Coefficient","k","Ln(2)/Halflife"]
[null,"Central ",{"$f":"LN(2)/C32","v":0.15403270679109896},"Days-1","Eq"]
[null,"Upper ",{"$f":"LN(2)/C33","v":0.34657359027997264},"Note 2","Eq"]
[null,"Lower ",{"$f":"LN(2)/C34","v":6.9314718055994526E-2},"Note 2","Eq"]
["Proportion remaining at end of each application interval","p","exp( -k ×  intv)"]
[null,"Central ",{"$f":"EXP(-C36*C$8)","v":0.85724398285307279},"proportion","Eq"]
[null,"Lower ",{"$f":"EXP(-C37*C$8)","v":0.70710678118654757},null,"Eq"]
[null,"Upper ",{"$f":"EXP(-C38*C$8)","v":0.93303299153680741},null,"Eq"]
["Concentration on commodity immediately after last application.","Cn","Cn = C0 × (1- pn) ÷ (1- p)"]
[null,"Central ",{"$f":"C28 * (1-C40^C$7)/(1-C40)","v":1.4400000000000002},"mg/kg food item","Eq"]
[null,"Lower ",{"$f":"C29 * (1-C41^C$7)/(1-C41)","v":0.48},null,"Eq"]
[null,"Upper ",{"$f":"C30 * (1-C42^C$7)/(1-C42)","v":4.4000000000000004},null,"Eq"]
["Longer-term Concentrations"]
["Duration for time-weighted average exposure","T",{"$f":"'A01'!C$28","v":90},"Days","Worksheet A01"]
["Time-weighted average concentration on commodity over time, T, after the last application.","ConcTWA","Cn × (1-e-kT) ÷ (k T)"]
[null,"Central ",{"$f":"C44*(1-EXP(-C36*$C$48))/(C36*$C$48)","v":0.10387394388199848},"mg/kg food item","Eq"]
[null,"Lower ",{"$f":"C45*(1-EXP(-C37*$C$48))/(C37*$C$48)","v":1.5388747102815173E-2},null,"Eq"]
[null,"Upper ",0.70394000215597774,null,"Eq"]
["Maximum Time-weighted average concentration on commodity over time, T.","ConcTWA","See Documentation"]
[null,"Central ",{"$f":"IF($C$7=1, C50, MaxTWAWsFn(C28, $C$7, $C$8, $C$48, C36))","v":0.10387394388199848},"mg/kg food item","Eq"]
[null,"Lower ",{"$f":"IF($C$7=1, C51, MaxTWAWsFn(C29, $C$7, $C$8, $C$48, C37))","v":1.5388747102815173E-2},null,"Eq"]
[null,"Upper ",{"$f":"IF($C$7=1, C52, MaxTWAWsFn(C30, $C$7, $C$8, $C$48, C38))","v":0.70394000215597774},null,"Eq"]

{"sheet":"C01","index":24,"n_rows":38,"n_cols":5,"rows_kept":38,"cut":false,"hidden":false,"merged":[[34,0,37,0],[14,0,17,0],[18,0,21,0],[22,0,25,0],[26,0,29,0],[27,3,29,3],[30,0,33,0],[31,3,33,3],[0,0,0,4],[1,1,1,3],[2,1,2,3],[3,1,3,3],[6,0,9,0],[10,0,13,0]]}
["Exposure estimates for Backpack Worker based on the amount of material handled per day"]
["Short Title","General exposure",null,null,"WkGenExp"]
["Receptor","Backpack Worker",null,null,"Worksheet A01"]
["Duration","Chronic"]
["Parameter/Assumption","Code / Range","Equation/ Value","Units","Reference/Equation"]
["Application rates","ApRt",{"$f":"'A01'!ApRt_C","v":0.4},"lb/acre","Worksheet A01"]
["Hours of application per day ","Hrs"]
[null,"Central ",{"$f":"'A01'!C$79","v":7},"hours","Worksheet A01"]
[null,"Lower ",{"$f":"'A01'!C$80","v":6},null,"Worksheet A01"]
[null,"Upper ",{"$f":"'A01'!C$81","v":8},null,"Worksheet A01"]
["Acres treated per hour","APH"]
[null,"Central ",{"$f":"'A01'!C$75","v":0.625},"acres/hour","Worksheet A01"]
[null,"Lower ",{"$f":"'A01'!C$76","v":0.25},null,"Worksheet A01"]
[null,"Upper ",{"$f":"'A01'!C$77","v":1},null,"Worksheet A01"]
["Acres treated per day: ","ATD","Hrs × APH"]
[null,"Central ",{"$f":"C8*C12","v":4.375},"acres/day","Eq"]
[null,"Lower ",{"$f":"C9*C13","v":1.5},null,"Eq"]
[null,"Upper ",{"$f":"C10*C14","v":8},null,"Eq"]
["Toxic Equivalency Factor for formulation:  (See risk assessment if this has a value other than 1.)","TEF"]
[null,"Central ",{"$f":"'A01'!C$35","v":1},"unitless","Worksheet A01"]
[null,"Lower ",{"$f":"'A01'!C$36","v":1},null,"Worksheet A01"]
[null,"Upper ",{"$f":"'A01'!C$37","v":1},null,"Worksheet A01"]
["Amount handled per day: ","Amnt","ApRt × ATD  × TEF"]
[null,"Central ",{"$f":"C$6*C16 *C20","v":1.75},"lb/day","Eq"]
[null,"Lower ",{"$f":"C$6*C17 *C21","v":0.60000000000000009},null,"Eq"]
[null,"Upper ",{"$f":"C$6*C18 *C22","v":3.2},null,"Eq"]
["Absorbed dose rate:","ADR"]
[null,"Central ",{"$f":"'A01'!C$71","v":5.0000000000000002E-5},"(mg agent/kg bw) ÷ (lbs agent handled per day)","Worksheet A01"]
[null,"Lower ",{"$f":"'A01'!C$72","v":4.0000000000000003E-5},null,"Worksheet A01"]
[null,"Upper ",{"$f":"'A01'!C$73","v":6.9999999999999994E-5},null,"Worksheet A01"]
["Clothing Protection Factor","Prot"]
[null,"Central ",{"$f":"'A01'!C$31","v":0},"Unitless (value between 0 [no protection] and 1 [complete protection])","Worksheet A01"]
[null,"Upper ",{"$f":"'A01'!C$33","v":0},null,"Worksheet A01"]
[null,"Lower ",{"$f":"'A01'!C$32","v":0},null,"Worksheet A01"]
["Absorbed dose","Dose","Amnt × ADR  × (1-Prot)"]
[null,"Central ",{"$f":"C24*C28*(1-C32)","v":8.7499999999999999E-5},"mg/kg bw/day","Eq"]
[null,"Lower ",{"$f":"C25*C29*(1-C33)","v":2.4000000000000004E-5},null,"Eq"]
[null,"Upper ",{"$f":"C26*C30*(1-C34)","v":2.24E-4},null,"Eq"]

{"sheet":"C01-Sup","index":25,"n_rows":22,"n_cols":4,"rows_kept":22,"cut":false,"hidden":false,"merged":[]}
["PHED Scenario 37: Liquid/open pour/termiticide injection"]
[null,"Dermal factor from PHED:",0.36,"mg/lb"]
[null,"Body Weight:",70,"kg"]
[null,"Dermal Dose Rate:",{"$f":"C2/C3","v":5.1428571428571426E-3},"mg/kg bw"]
["ka","Central",1.5E-3,"per hr"]
[null,"Lower",6.7000000000000002E-4]
[null,"Upper",3.5999999999999999E-3]
[null,"Duration of exposure:",8,"hours"]
["Proportion Absorbed:","Central",{"$f":"1-EXP(-C5*C$8)","v":1.1928287138069482E-2}]
[null,"Lower",{"$f":"1-EXP(-C6*C$8)","v":5.3456608307549391E-3}]
[null,"Upper",2.8389232810877241E-2]
["Dermal absorbed dose:","Central",{"$f":"C$5*C9","v":1.7892430707104223E-5},"mg/kg bw per lb"]
[null,"Lower",{"$f":"C$5*C10","v":8.0184912461324092E-6}]
[null,"Upper",4.2583849216315861E-5]
[null,"Inhalation factor from PHED:",2.2000000000000001E-3,"mg/lb handled"]
[null,"Inhalation Dose:",{"$f":"C15/C3","v":3.1428571428571431E-5},"mg/kg bw per lb"]
["Total Worrker Exposure Rate","Central",{"$f":"C12+C$16","v":4.9321002135675654E-5},"mg/kg bw per lb"]
[null,"Lower",{"$f":"C13+C$16","v":3.9447062674703836E-5}]
[null,"Upper",7.4012420644887285E-5]
["Rounded Total Worrker Exposure Rate","Central",{"$f":"ROUND(C17,5)","v":5.0000000000000002E-5},"mg/kg bw per lb"]
[null,"Lower",{"$f":"ROUND(C18,5)","v":4.0000000000000003E-5}]
[null,"Upper",6.9999999999999994E-5]

{"sheet":"C02a","index":26,"n_rows":26,"n_cols":5,"rows_kept":26,"cut":false,"hidden":false,"merged":[[10,0,13,0],[14,0,17,0],[18,0,21,0],[22,0,25,0],[0,0,0,4],[1,1,1,3],[2,1,2,3],[3,1,3,3],[4,1,4,3],[7,0,8,0]]}
["Accidental Dermal Exposure Assessment Using Zero-Order Absorption, Worker, Surface Area, Hands, for 1 minute(s)"]
["Short Title","Contaminated Gloves, 1 minute",null,null,"DrmZr"]
["Receptor","Worker"]
["Duration","Acute"]
["Surface Contaminated","Surface Area, Hands"]
["Parameter/Assumption","Code / Range","Equation/   Value","Units","Reference/Designation"]
["Surface Area","SA",{"$f":"A02a!$C$40","v":840},"cm2","U.S. EPA/ORD 1992"]
["Duration of Exposure","T_min",1,"minutes","Scenario parameter"]
[null,"T_hr",{"$f":"C8/60","v":1.6666666666666666E-2},"hours","Eq"]
["Body weight","BW",{"$f":"A02a!$C$39","v":70},"kg","ICRP 1975"]
["Concentration in solution (mg/mL)","Conc"]
[null,"Central ",{"$f":"'A01'!FldConc_C","v":12},"mg/mL","Worksheet A01"]
[null,"Lower ",{"$f":"'A01'!FldConc_L","v":2.4},null,"Worksheet A01"]
[null,"Upper ",{"$f":"'A01'!FldConc_U","v":48},null,"Worksheet A01"]
["Toxic Equivalency Factor for formulation:  (See risk assessment if this has a value other than 1.)","TEF"]
[null,"Central ",{"$f":"'A01'!C$35","v":1},"Unitless","Worksheet A01"]
[null,"Lower ",{"$f":"'A01'!C$36","v":1},null,"Worksheet A01"]
[null,"Upper ",{"$f":"'A01'!C$37","v":1},null,"Worksheet A01"]
["Dermal permeability","Kp"]
[null,"Central ",{"$f":"'B01'!$C$14","v":1.2999999999999999E-4},"cm/hour","Section 3.1.3.2.3"]
[null,"Lower ",{"$f":"'B01'!$C$15","v":7.1000000000000005E-5},null,"Section 3.1.3.2.3"]
[null,"Upper ",{"$f":"'B01'!$C$16","v":2.3000000000000001E-4},null,"Section 3.1.3.2.3"]
["Absorbed Dose","Dose","Kp × Conc × T_hr × SA x TEF ÷ BW"]
[null,"Central ",{"$f":"C20*C12*C$9*C$7*C16/C$10","v":3.1199999999999994E-4},"mg/kg","Eq"]
[null,"Lower ",{"$f":"C21*C13*C$9*C$7*C17/C$10","v":3.4079999999999999E-5},"mg/kg","Eq"]
[null,"Upper ",{"$f":"C22*C14*C$9*C$7*C18/C$10","v":2.2080000000000003E-3},"mg/kg","Eq"]

{"sheet":"C02b","index":27,"n_rows":26,"n_cols":5,"rows_kept":26,"cut":false,"hidden":false,"merged":[[10,0,13,0],[14,0,17,0],[18,0,21,0],[22,0,25,0],[0,0,0,4],[1,1,1,3],[2,1,2,3],[3,1,3,3],[4,1,4,3],[7,0,8,0]]}
["Accidental Dermal Exposure Assessment Using Zero-Order Absorption, Worker, Surface Area, Hands, for 60 minute(s)"]
["Short Title","Contaminated Gloves, 1 Hour",null,null,"DrmZr"]
["Receptor","Worker"]
["Duration","Acute"]
["Surface Contaminated","Surface Area, Hands"]
["Parameter/Assumption","Code / Range","Equation/   Value","Units","Reference/Designation"]
["Surface Area","SA",{"$f":"A02a!$C$40","v":840},"cm2","U.S. EPA/ORD 1992"]
["Duration of Exposure","T_min",60,"minutes","Scenario parameter"]
[null,"T_hr",{"$f":"C8/60","v":1},"hours","Eq"]
["Body weight","BW",{"$f":"A02a!$C$39","v":70},"kg","ICRP 1975"]
["Concentration in solution (mg/mL)","Conc"]
[null,"Central ",{"$f":"'A01'!FldConc_C","v":12},"mg/mL","Worksheet A01"]
[null,"Lower ",{"$f":"'A01'!FldConc_L","v":2.4},null,"Worksheet A01"]
[null,"Upper ",{"$f":"'A01'!FldConc_U","v":48},null,"Worksheet A01"]
["Toxic Equivalency Factor for formulation:  (See risk assessment if this has a value other than 1.)","TEF"]
[null,"Central ",{"$f":"'A01'!C$35","v":1},"Unitless","Worksheet A01"]
[null,"Lower ",{"$f":"'A01'!C$36","v":1},null,"Worksheet A01"]
[null,"Upper ",{"$f":"'A01'!C$37","v":1},null,"Worksheet A01"]
["Dermal permeability","Kp"]
[null,"Central ",{"$f":"'B01'!$C$14","v":1.2999999999999999E-4},"cm/hour","Section 3.1.3.2.3"]
[null,"Lower ",{"$f":"'B01'!$C$15","v":7.1000000000000005E-5},null,"Section 3.1.3.2.3"]
[null,"Upper ",{"$f":"'B01'!$C$16","v":2.3000000000000001E-4},null,"Section 3.1.3.2.3"]
["Absorbed Dose","Dose","Kp × Conc × T_hr × SA x TEF ÷ BW"]
[null,"Central ",{"$f":"C20*C12*C$9*C$7*C16/C$10","v":1.8719999999999997E-2},"mg/kg","Eq"]
[null,"Lower ",{"$f":"C21*C13*C$9*C$7*C17/C$10","v":2.0447999999999998E-3},"mg/kg","Eq"]
[null,"Upper ",{"$f":"C22*C14*C$9*C$7*C18/C$10","v":0.13248000000000001},"mg/kg","Eq"]

{"sheet":"C03a","index":28,"n_rows":39,"n_cols":5,"rows_kept":39,"cut":false,"hidden":false,"merged":[[35,0,38,0],[15,0,18,0],[19,0,22,0],[23,0,26,0],[27,0,30,0],[28,3,30,3],[31,0,34,0],[0,0,0,4],[1,1,1,3],[2,1,2,3],[3,1,3,3],[4,1,4,3],[11,0,14,0]]}
["Accidental Dermal Exposure Assessment Using First-Order Absorption, Worker, Surface Area, Hands, for 60 minute(s)"]
["Short Title","Spill on hands, 1 hour",null,null,"DrmFOA"]
["Receptor","Worker"]
["Duration","Acute"]
["Surface Contaminated","Surface Area, Hands"]
["Parameter/Assumption","Code / Range","Equation/   Value","Units","Reference/Designation"]
["Surface Area","SA",{"$f":"A02a!$C$40","v":840},"cm2","U.S. EPA/ORD 1992"]
["Duration of Exposure",null,60,"minutes","Scenario parameter"]
[null,"T",{"$f":"C8/60","v":1},"hours","Eq"]
["Body weight","BW",{"$f":"A02a!$C$39","v":70},"kg","ICRP 1975"]
["Liquid adhering to skin","L",{"$f":"A02d!$C$11","v":8.0000000000000002E-3},"mL/cm2","Mason and Johnson 1987"]
["Concentration in solution","Conc"]
[null,"Central ",{"$f":"'A01'!FldConc_C","v":12},"mg/mL","Worksheet A01"]
[null,"Lower ",{"$f":"'A01'!FldConc_L","v":2.4},null,"Worksheet A01"]
[null,"Upper ",{"$f":"'A01'!FldConc_U","v":48},null,"Worksheet A01"]
["First-order dermal absorption rates ","ka"]
[null,"Central",{"$f":"'B01'!$C$11","v":1.5E-3},"hour-1","Section 3.1.3.2.2"]
[null,"Lower",{"$f":"'B01'!$C$12","v":6.7000000000000002E-4},null,"Section 3.1.3.2.2"]
[null,"Upper",{"$f":"'B01'!$C$13","v":3.5999999999999999E-3},null,"Section 3.1.3.2.2"]
["Toxic Equivalency Factor for formulation:  (See risk assessment if this has a value other than 1.)","TEF"]
[null,"Central ",{"$f":"'A01'!C$35","v":1},"Unitless","Worksheet A01"]
[null,"Lower ",{"$f":"'A01'!C$36","v":1},null,"Worksheet A01"]
[null,"Upper ",{"$f":"'A01'!C$37","v":1},null,"Worksheet A01"]
["Amount Deposited on Skin","Amnt","L × SA × Conc x TEF"]
[null,"Central",{"$f":"$C$11*$C$7*C13*C21","v":80.64},"mg","Eq"]
[null,"Lower",{"$f":"$C$11*$C$7*C14*C22","v":16.128},null,"Eq"]
[null,"Upper",{"$f":"$C$11*$C$7*C15*C23","v":322.56},null,"Eq"]
["Skin Loading","Loading"]
[null,"Central",{"$f":"C25/C$7","v":9.6000000000000002E-2},"mg/cm2","Eq"]
[null,"Lower",{"$f":"C26/C$7","v":1.9200000000000002E-2},null,"Eq"]
[null,"Upper",{"$f":"C27/C$7","v":0.38400000000000001},null,"Eq"]
["Proportion absorbed over period T","Prop","1-exp(-ka T)"]
[null,"Central",{"$f":"1-EXP(-C17 *$C$9)","v":1.4988755622891148E-3},"hour-1","Eq"]
[null,"Lower",{"$f":"1-EXP(-C18 *$C$9)","v":6.6977560011871606E-4},null,"Eq"]
[null,"Upper",{"$f":"1-EXP(-C19 *$C$9)","v":3.5935277690066769E-3},null,"Eq"]
["Absorbed Dose","Dose","Amnt × Prop ÷ BW"]
[null,"Central",{"$f":"C25*C33/$C$10","v":1.7267046477570601E-3},"mg/kg bw","Eq"]
[null,"Lower",{"$f":"C26*C34/$C$10","v":1.5431629826735219E-4},null,"Eq"]
[null,"Upper",{"$f":"C27*C35/$C$10","v":1.6558975959582767E-2},null,"Eq"]

{"sheet":"C03b","index":29,"n_rows":39,"n_cols":5,"rows_kept":39,"cut":false,"hidden":false,"merged":[[35,0,38,0],[15,0,18,0],[19,0,22,0],[23,0,26,0],[27,0,30,0],[28,3,30,3],[31,0,34,0],[0,0,0,4],[1,1,1,3],[2,1,2,3],[3,1,3,3],[4,1,4,3],[11,0,14,0]]}
["Accidental Dermal Exposure Assessment Using First-Order Absorption, Worker, Surface Area, Lower legs, for 60 minute(s)"]
["Short Title","Spill on lower legs, 1 hour",null,null,"DrmFOA"]
["Receptor","Worker"]
["Duration","Acute"]
["Surface Contaminated","Surface Area, Lower legs"]
["Parameter/Assumption","Code / Range","Equation/   Value","Units","Reference/Designation"]
["Surface Area","SA",{"$f":"A02a!$C$41","v":2070},"cm2","U.S. EPA/ORD 1992"]
["Duration of Exposure",null,60,"minutes","Scenario parameter"]
[null,"T",{"$f":"C8/60","v":1},"hours","Eq"]
["Body weight","BW",{"$f":"A02a!$C$39","v":70},"kg","ICRP 1975"]
["Liquid adhering to skin","L",{"$f":"A02d!$C$11","v":8.0000000000000002E-3},"mL/cm2","Mason and Johnson 1987"]
["Concentration in solution","Conc"]
[null,"Central ",{"$f":"'A01'!FldConc_C","v":12},"mg/mL","Worksheet A01"]
[null,"Lower ",{"$f":"'A01'!FldConc_L","v":2.4},null,"Worksheet A01"]
[null,"Upper ",{"$f":"'A01'!FldConc_U","v":48},null,"Worksheet A01"]
["First-order dermal absorption rates ","ka"]
[null,"Central",{"$f":"'B01'!$C$11","v":1.5E-3},"hour-1","Section 3.1.3.2.2"]
[null,"Lower",{"$f":"'B01'!$C$12","v":6.7000000000000002E-4},null,"Section 3.1.3.2.2"]
[null,"Upper",{"$f":"'B01'!$C$13","v":3.5999999999999999E-3},null,"Section 3.1.3.2.2"]
["Toxic Equivalency Factor for formulation:  (See risk assessment if this has a value other than 1.)","TEF"]
[null,"Central ",{"$f":"'A01'!C$35","v":1},"Unitless","Worksheet A01"]
[null,"Lower ",{"$f":"'A01'!C$36","v":1},null,"Worksheet A01"]
[null,"Upper ",{"$f":"'A01'!C$37","v":1},null,"Worksheet A01"]
["Amount Deposited on Skin","Amnt","L × SA × Conc x TEF"]
[null,"Central",{"$f":"$C$11*$C$7*C13*C21","v":198.71999999999997},"mg","Eq"]
[null,"Lower",{"$f":"$C$11*$C$7*C14*C22","v":39.743999999999993},null,"Eq"]
[null,"Upper",{"$f":"$C$11*$C$7*C15*C23","v":794.87999999999988},null,"Eq"]
["Skin Loading","Loading"]
[null,"Central",{"$f":"C25/C$7","v":9.5999999999999988E-2},"mg/cm2","Eq"]
[null,"Lower",{"$f":"C26/C$7","v":1.9199999999999995E-2},null,"Eq"]
[null,"Upper",{"$f":"C27/C$7","v":0.38399999999999995},null,"Eq"]
["Proportion absorbed over period T","Prop","1-exp(-ka T)"]
[null,"Central",{"$f":"1-EXP(-C17 *$C$9)","v":1.4988755622891148E-3},"hour-1","Eq"]
[null,"Lower",{"$f":"1-EXP(-C18 *$C$9)","v":6.6977560011871606E-4},null,"Eq"]
[null,"Upper",{"$f":"1-EXP(-C19 *$C$9)","v":3.5935277690066769E-3},null,"Eq"]
["Absorbed Dose","Dose","Amnt × Prop ÷ BW"]
[null,"Central",{"$f":"C25*C33/$C$10","v":4.2550935962584694E-3},"mg/kg bw","Eq"]
[null,"Lower",{"$f":"C26*C34/$C$10","v":3.8027944930168925E-4},null,"Eq"]
[null,"Upper",{"$f":"C27*C35/$C$10","v":4.0806047900400384E-2},null,"Eq"]

{"sheet":"D05","index":30,"n_rows":19,"n_cols":5,"rows_kept":19,"cut":false,"hidden":false,"merged":[[15,0,18,0],[0,0,0,4],[1,1,1,3],[2,1,2,3],[5,0,8,0],[10,0,13,0]]}
["Consumption of contaminated water by Child, Accidental Spill "]
["Short Title","Accidental Spill",null,null,"WatAmntV6"]
["Receptor","Child"]
["Duration","Acute",null,null,"Scenario parameter"]
["Parameter/Assumption","Code / Range","Equation/   Value","Units","Reference/Designation"]
["Concentration in water","ConcWat"]
[null,"Central ",{"$f":"B04b!Acute_C","v":0.18168000000000001},"mg/L","='B04b'!Acute_C"]
[null,"Lower ",{"$f":"B04b!Acute_L","v":7.2672000000000006E-3},null,"='B04b'!Acute_L"]
[null,"Upper ",{"$f":"B04b!Acute_U","v":1.4534400000000001},null,"='B04b'!Acute_U"]
["Receptor"]
["Amount of water consumed in one day","Amnt"]
[null,"Central ",{"$f":"'A03'!$E$44","v":1},"liters/day","U.S. EPA/ORD 1996"]
[null,"Lower ",{"$f":"'A03'!$E$45","v":0.61},null,"U.S. EPA/ORD 1996"]
[null,"Upper ",{"$f":"'A03'!$E$46","v":1.5},null,"U.S. EPA/ORD 1996"]
["Body weight","BW",{"$f":"A02a!$C$28","v":13.3},"kg","U.S. EPA/ORD 1996"]
["Dose","Dose","ConcWat  × Amnt ÷ BW"]
[null,"Central ",{"$f":"C7*C12/C$15","v":1.366015037593985E-2},"mg/kg","Eq"]
[null,"Lower ",{"$f":"C8*C13/C$15","v":3.3330766917293232E-4},"mg/kg","Eq"]
[null,"Upper ",{"$f":"C9*C14/C$15","v":0.16392180451127819},"mg/kg","Eq"]

{"sheet":"D06","index":31,"n_rows":19,"n_cols":5,"rows_kept":19,"cut":false,"hidden":false,"merged":[[15,0,18,0],[0,0,0,4],[1,1,1,3],[2,1,2,3],[5,0,8,0],[10,0,13,0]]}
["Consumption of contaminated water by Child, Peak Conentrations "]
["Short Title","Peak Conentrations",null,null,"WatAmntV6"]
["Receptor","Child"]
["Duration","Acute",null,null,"Scenario parameter"]
["Parameter/Assumption","Code / Range","Equation/   Value","Units","Reference/Designation"]
["Concentration in water","ConcWat"]
[null,"Central ",{"$f":"B04a!Acute_C","v":5.1999999999999998E-3},"mg/L","='B04a'!Acute_C"]
[null,"Lower ",{"$f":"B04a!Acute_L","v":4.7999999999999996E-7},null,"='B04a'!Acute_L"]
[null,"Upper ",{"$f":"B04a!Acute_U","v":6.8000000000000005E-2},null,"='B04a'!Acute_U"]
["Receptor"]
["Amount of water consumed in one day","Amnt"]
[null,"Central ",{"$f":"'A03'!$E$44","v":1},"liters/day","U.S. EPA/ORD 1996"]
[null,"Lower ",{"$f":"'A03'!$E$45","v":0.61},null,"U.S. EPA/ORD 1996"]
[null,"Upper ",{"$f":"'A03'!$E$46","v":1.5},null,"U.S. EPA/ORD 1996"]
["Body weight","BW",{"$f":"A02a!$C$28","v":13.3},"kg","U.S. EPA/ORD 1996"]
["Dose","Dose","ConcWat  × Amnt ÷ BW"]
[null,"Central ",{"$f":"C7*C12/C$15","v":3.9097744360902254E-4},"mg/kg","Eq"]
[null,"Lower ",{"$f":"C8*C13/C$15","v":2.2015037593984959E-8},"mg/kg","Eq"]
[null,"Upper ",{"$f":"C9*C14/C$15","v":7.6691729323308273E-3},"mg/kg","Eq"]

{"sheet":"D07","index":32,"n_rows":19,"n_cols":5,"rows_kept":19,"cut":false,"hidden":false,"merged":[[15,0,18,0],[0,0,0,4],[1,1,1,3],[2,1,2,3],[5,0,8,0],[10,0,13,0]]}
["Consumption of contaminated water by Adult Male, Longer-term Conentrations "]
["Short Title","Longer-term Conentrations",null,null,"WatAmntV6"]
["Receptor","Adult Male"]
["Duration","Chronic",null,null,"Scenario parameter"]
["Parameter/Assumption","Code / Range","Equation/   Value","Units","Reference/Designation"]
["Concentration in water","ConcWat"]
[null,"Central ",{"$f":"B04a!Chronic_C","v":3.3600000000000001E-3},"mg/L","='B04a'!Chronic_C"]
[null,"Lower ",{"$f":"B04a!Chronic_L","v":1.9999999999999999E-7},null,"='B04a'!Chronic_L"]
[null,"Upper ",{"$f":"B04a!Chronic_U","v":1.9200000000000002E-2},null,"='B04a'!Chronic_U"]
["Receptor"]
["Amount of water consumed in one day","Amnt"]
[null,"Central ",{"$f":"'A03'!$E$31","v":2},"liters/day","U.S. EPA/ORD 1996"]
[null,"Lower ",{"$f":"'A03'!$E$32","v":1.4},null,"U.S. EPA/ORD 1996"]
[null,"Upper ",{"$f":"'A03'!$E$33","v":2.4},null,"U.S. EPA/ORD 1996"]
["Body weight","BW",{"$f":"A02a!$C$8","v":70},"kg","ICRP 1975"]
["Dose","Dose","ConcWat  × Amnt ÷ BW"]
[null,"Central ",{"$f":"C7*C12/C$15","v":9.6000000000000002E-5},"mg/kg","Eq"]
[null,"Lower ",{"$f":"C8*C13/C$15","v":3.9999999999999994E-9},"mg/kg","Eq"]
[null,"Upper ",{"$f":"C9*C14/C$15","v":6.5828571428571433E-4},"mg/kg","Eq"]

{"sheet":"D08a","index":33,"n_rows":34,"n_cols":5,"rows_kept":34,"cut":false,"hidden":false,"merged":[[15,0,18,0],[20,0,23,0],[24,0,27,0],[29,0,32,0],[0,0,0,4],[1,1,1,3],[2,1,2,3],[3,1,3,3],[6,0,9,0],[12,0,14,0]]}
["Consumption of Contaminated Fish (Accidental Spill), Adult Male, acute exposure"]
["Short Title","Fish consumption",null,null,"FishAmntV6"]
["Receptor","Adult Male"]
["Duration","acute"]
["Parameter/Assumption","Code / Range","Equation/   Value","Units","Reference/Designation"]
["Water"]
["Concentration in water","ConcWat","ApR × WCR"]
[null,"Central ",{"$f":"B04b!Acute_C","v":0.18168000000000001},"mg/L","='B04b'!Acute_C"]
[null,"Lower ",{"$f":"B04b!Acute_L","v":7.2672000000000006E-3},null,"='B04b'!Acute_L"]
[null,"Upper ",{"$f":"B04b!Acute_U","v":1.4534400000000001},null,"='B04b'!Acute_U"]
["Fish"]
["Bioconcentration factor","BCF"]
[null,"Central ",{"$f":"'B01'!$C$4","v":1},"L/kg","Section 3.2.3.5."]
[null,"Lower ",{"$f":"'B01'!$C$4","v":1},null,"Section 3.2.3.5."]
[null,"Upper ",{"$f":"'B01'!$C$4","v":1},null,"Section 3.2.3.5."]
["Concentration in fish","ConcFish","ConcWat × BCF"]
[null,"Central ",{"$f":"C8*C13","v":0.18168000000000001},"mg/kg","Eq"]
[null,"Lower ",{"$f":"C9*C14","v":7.2672000000000006E-3},null,"Eq"]
[null,"Upper ",{"$f":"C10*C15","v":1.4534400000000001},null,"Eq"]
["Receptor"]
["Amount of fish consumed","Amnt"]
[null,"Central ",{"$f":"'A03'!$E$20","v":0.158},"kg/day","Ruffle et al. 1994"]
[null,"Lower ",{"$f":"'A03'!$E$20","v":0.158},null,"Ruffle et al. 1994"]
[null,"Upper ",{"$f":"'A03'!$E$20","v":0.158},null,"Ruffle et al. 1994"]
["Toxic Equivalency Factor for formulation:  (See risk assessment if this has a value other than 1.)","TEF"]
[null,"Central ",{"$f":"'A01'!C$35","v":1},"Unitless","Worksheet A01"]
[null,"Lower ",{"$f":"'A01'!C$36","v":1},null,"Worksheet A01"]
[null,"Upper ",{"$f":"'A01'!C$37","v":1},null,"Worksheet A01"]
["Body weight","BW",{"$f":"A02a!$C$8","v":70},"kg","ICRP 1975"]
["Dose","Dose","ConcFish× Amnt x TEF ÷ BW"]
[null,"Central ",{"$f":"C17*C22*C26/C$29","v":4.100777142857143E-4},"mg/kg","Eq"]
[null,"Lower ",{"$f":"C18*C23*C27/C$29","v":1.6403108571428573E-5},"mg/kg","Eq"]
[null,"Upper ",{"$f":"C19*C24*C28/C$29","v":3.2806217142857144E-3},"mg/kg","Eq"]
[null,null,null,null,"FishAmntV6"]

{"sheet":"D08b","index":34,"n_rows":34,"n_cols":5,"rows_kept":34,"cut":false,"hidden":false,"merged":[[15,0,18,0],[20,0,23,0],[24,0,27,0],[29,0,32,0],[0,0,0,4],[1,1,1,3],[2,1,2,3],[3,1,3,3],[6,0,9,0],[12,0,14,0]]}
["Consumption of Contaminated Fish (Accidental Spill), Subsistence Populations, acute exposure"]
["Short Title","Fish consumption",null,null,"FishAmntV6"]
["Receptor","Subsistence Populations"]
["Duration","acute"]
["Parameter/Assumption","Code / Range","Equation/   Value","Units","Reference/Designation"]
["Water"]
["Concentration in water","ConcWat","ApR × WCR"]
[null,"Central ",{"$f":"B04b!Acute_C","v":0.18168000000000001},"mg/L","='B04b'!Acute_C"]
[null,"Lower ",{"$f":"B04b!Acute_L","v":7.2672000000000006E-3},null,"='B04b'!Acute_L"]
[null,"Upper ",{"$f":"B04b!Acute_U","v":1.4534400000000001},null,"='B04b'!Acute_U"]
["Fish"]
["Bioconcentration factor","BCF"]
[null,"Central ",{"$f":"'B01'!$C$4","v":1},"L/kg","Section 3.2.3.5."]
[null,"Lower ",{"$f":"'B01'!$C$4","v":1},null,"Section 3.2.3.5."]
[null,"Upper ",{"$f":"'B01'!$C$4","v":1},null,"Section 3.2.3.5."]
["Concentration in fish","ConcFish","ConcWat × BCF"]
[null,"Central ",{"$f":"C8*C13","v":0.18168000000000001},"mg/kg","Eq"]
[null,"Lower ",{"$f":"C9*C14","v":7.2672000000000006E-3},null,"Eq"]
[null,"Upper ",{"$f":"C10*C15","v":1.4534400000000001},null,"Eq"]
["Receptor"]
["Amount of fish consumed","Amnt"]
[null,"Central ",{"$f":"'A03'!$E$35","v":0.77},"kg/day","U.S. EPA/ORD 1993"]
[null,"Lower ",{"$f":"'A03'!$E$35","v":0.77},null,"U.S. EPA/ORD 1993"]
[null,"Upper ",{"$f":"'A03'!$E$35","v":0.77},null,"U.S. EPA/ORD 1993"]
["Toxic Equivalency Factor for formulation:  (See risk assessment if this has a value other than 1.)","TEF"]
[null,"Central ",{"$f":"'A01'!C$35","v":1},"Unitless","Worksheet A01"]
[null,"Lower ",{"$f":"'A01'!C$36","v":1},null,"Worksheet A01"]
[null,"Upper ",{"$f":"'A01'!C$37","v":1},null,"Worksheet A01"]
["Body weight","BW",{"$f":"A02a!$C$9","v":70},"kg","ICRP 1975"]
["Dose","Dose","ConcFish× Amnt x TEF ÷ BW"]
[null,"Central ",{"$f":"C17*C22*C26/C$29","v":1.99848E-3},"mg/kg","Eq"]
[null,"Lower ",{"$f":"C18*C23*C27/C$29","v":7.9939200000000009E-5},"mg/kg","Eq"]
[null,"Upper ",{"$f":"C19*C24*C28/C$29","v":1.598784E-2},"mg/kg","Eq"]
[null,null,null,null,"FishAmntV6"]

{"sheet":"D09a","index":35,"n_rows":34,"n_cols":5,"rows_kept":34,"cut":false,"hidden":false,"merged":[[15,0,18,0],[20,0,23,0],[24,0,27,0],[29,0,32,0],[0,0,0,4],[1,1,1,3],[2,1,2,3],[3,1,3,3],[6,0,9,0],[12,0,14,0]]}
["Consumption of Contaminated Fish (Longer-term), Adult Male, chronic exposure"]
["Short Title","Fish consumption",null,null,"FishAmntV6"]
["Receptor","Adult Male"]
["Duration","chronic"]
["Parameter/Assumption","Code / Range","Equation/   Value","Units","Reference/Designation"]
["Water"]
["Concentration in water","ConcWat","ApR × WCR"]
[null,"Central ",{"$f":"B04a!Chronic_C","v":3.3600000000000001E-3},"mg/L","='B04a'!Chronic_C"]
[null,"Lower ",{"$f":"B04a!Chronic_L","v":1.9999999999999999E-7},null,"='B04a'!Chronic_L"]
[null,"Upper ",{"$f":"B04a!Chronic_U","v":1.9200000000000002E-2},null,"='B04a'!Chronic_U"]
["Fish"]
["Bioconcentration factor","BCF"]
[null,"Central ",{"$f":"'B01'!$C$5","v":1},"L/kg","Section 3.2.3.5."]
[null,"Lower ",{"$f":"'B01'!$C$5","v":1},null,"Section 3.2.3.5."]
[null,"Upper ",{"$f":"'B01'!$C$5","v":1},null,"Section 3.2.3.5."]
["Concentration in fish","ConcFish","ConcWat × BCF"]
[null,"Central ",{"$f":"C8*C13","v":3.3600000000000001E-3},"mg/kg","Eq"]
[null,"Lower ",{"$f":"C9*C14","v":1.9999999999999999E-7},null,"Eq"]
[null,"Upper ",{"$f":"C10*C15","v":1.9200000000000002E-2},null,"Eq"]
["Receptor"]
["Amount of fish consumed","Amnt"]
[null,"Central ",{"$f":"'A03'!$E$19","v":0.01},"kg/day","U.S. EPA/ORD 1996"]
[null,"Lower ",{"$f":"'A03'!$E$19","v":0.01},null,"U.S. EPA/ORD 1996"]
[null,"Upper ",{"$f":"'A03'!$E$19","v":0.01},null,"U.S. EPA/ORD 1996"]
["Toxic Equivalency Factor for formulation:  (See risk assessment if this has a value other than 1.)","TEF"]
[null,"Central ",{"$f":"'A01'!C$35","v":1},"Unitless","Worksheet A01"]
[null,"Lower ",{"$f":"'A01'!C$36","v":1},null,"Worksheet A01"]
[null,"Upper ",{"$f":"'A01'!C$37","v":1},null,"Worksheet A01"]
["Body weight","BW",{"$f":"A02a!$C$8","v":70},"kg","ICRP 1975"]
["Dose","Dose","ConcFish× Amnt x TEF ÷ BW"]
[null,"Central ",{"$f":"C17*C22*C26/C$29","v":4.8000000000000006E-7},"mg/kg","Eq"]
[null,"Lower ",{"$f":"C18*C23*C27/C$29","v":2.8571428571428573E-11},"mg/kg","Eq"]
[null,"Upper ",{"$f":"C19*C24*C28/C$29","v":2.7428571428571433E-6},"mg/kg","Eq"]
[null,null,null,null,"FishAmntV6"]

{"sheet":"D09b","index":36,"n_rows":34,"n_cols":5,"rows_kept":34,"cut":false,"hidden":false,"merged":[[15,0,18,0],[20,0,23,0],[24,0,27,0],[29,0,32,0],[0,0,0,4],[1,1,1,3],[2,1,2,3],[3,1,3,3],[6,0,9,0],[12,0,14,0]]}
["Consumption of Contaminated Fish (Longer-term), Subsistence Populations, chronic exposure"]
["Short Title","Fish consumption",null,null,"FishAmntV6"]
["Receptor","Subsistence Populations"]
["Duration","chronic"]
["Parameter/Assumption","Code / Range","Equation/   Value","Units","Reference/Designation"]
["Water"]
["Concentration in water","ConcWat","ApR × WCR"]
[null,"Central ",{"$f":"B04a!Chronic_C","v":3.3600000000000001E-3},"mg/L","='B04a'!Chronic_C"]
[null,"Lower ",{"$f":"B04a!Chronic_L","v":1.9999999999999999E-7},null,"='B04a'!Chronic_L"]
[null,"Upper ",{"$f":"B04a!Chronic_U","v":1.9200000000000002E-2},null,"='B04a'!Chronic_U"]
["Fish"]
["Bioconcentration factor","BCF"]
[null,"Central ",{"$f":"'B01'!$C$5","v":1},"L/kg","Section 3.2.3.5."]
[null,"Lower ",{"$f":"'B01'!$C$5","v":1},null,"Section 3.2.3.5."]
[null,"Upper ",{"$f":"'B01'!$C$5","v":1},null,"Section 3.2.3.5."]
["Concentration in fish","ConcFish","ConcWat × BCF"]
[null,"Central ",{"$f":"C8*C13","v":3.3600000000000001E-3},"mg/kg","Eq"]
[null,"Lower ",{"$f":"C9*C14","v":1.9999999999999999E-7},null,"Eq"]
[null,"Upper ",{"$f":"C10*C15","v":1.9200000000000002E-2},null,"Eq"]
["Receptor"]
["Amount of fish consumed","Amnt"]
[null,"Central ",{"$f":"'A03'!$E$34","v":8.1000000000000003E-2},"kg/day","U.S. EPA/ORD 1996"]
[null,"Lower ",{"$f":"'A03'!$E$34","v":8.1000000000000003E-2},null,"U.S. EPA/ORD 1996"]
[null,"Upper ",{"$f":"'A03'!$E$34","v":8.1000000000000003E-2},null,"U.S. EPA/ORD 1996"]
["Toxic Equivalency Factor for formulation:  (See risk assessment if this has a value other than 1.)","TEF"]
[null,"Central ",{"$f":"'A01'!C$35","v":1},"Unitless","Worksheet A01"]
[null,"Lower ",{"$f":"'A01'!C$36","v":1},null,"Worksheet A01"]
[null,"Upper ",{"$f":"'A01'!C$37","v":1},null,"Worksheet A01"]
["Body weight","BW",{"$f":"A02a!$C$9","v":70},"kg","ICRP 1975"]
["Dose","Dose","ConcFish× Amnt x TEF ÷ BW"]
[null,"Central ",{"$f":"C17*C22*C26/C$29","v":3.8880000000000007E-6},"mg/kg","Eq"]
[null,"Lower ",{"$f":"C18*C23*C27/C$29","v":2.3142857142857143E-10},"mg/kg","Eq"]
[null,"Upper ",{"$f":"C19*C24*C28/C$29","v":2.2217142857142861E-5},"mg/kg","Eq"]
[null,null,null,null,"FishAmntV6"]

{"sheet":"D09c","index":37,"n_rows":34,"n_cols":5,"rows_kept":34,"cut":false,"hidden":false,"merged":[[15,0,18,0],[20,0,23,0],[24,0,27,0],[29,0,32,0],[0,0,0,4],[1,1,1,3],[2,1,2,3],[3,1,3,3],[6,0,9,0],[12,0,14,0]]}
["Consumption of Contaminated Fish (Peak Exposure), Adult Male, acute exposure"]
["Short Title","Fish consumption",null,null,"FishAmntV6"]
["Receptor","Adult Male"]
["Duration","acute"]
["Parameter/Assumption","Code / Range","Equation/   Value","Units","Reference/Designation"]
["Water"]
["Concentration in water","ConcWat","ApR × WCR"]
[null,"Central ",{"$f":"B04a!Acute_C","v":5.1999999999999998E-3},"mg/L","='B04a'!Acute_C"]
[null,"Lower ",{"$f":"B04a!Acute_L","v":4.7999999999999996E-7},null,"='B04a'!Acute_L"]
[null,"Upper ",{"$f":"B04a!Acute_U","v":6.8000000000000005E-2},null,"='B04a'!Acute_U"]
["Fish"]
["Bioconcentration factor","BCF"]
[null,"Central ",{"$f":"'B01'!$C$4","v":1},"L/kg","Section 3.2.3.5."]
[null,"Lower ",{"$f":"'B01'!$C$4","v":1},null,"Section 3.2.3.5."]
[null,"Upper ",{"$f":"'B01'!$C$4","v":1},null,"Section 3.2.3.5."]
["Concentration in fish","ConcFish","ConcWat × BCF"]
[null,"Central ",{"$f":"C8*C13","v":5.1999999999999998E-3},"mg/kg","Eq"]
[null,"Lower ",{"$f":"C9*C14","v":4.7999999999999996E-7},null,"Eq"]
[null,"Upper ",{"$f":"C10*C15","v":6.8000000000000005E-2},null,"Eq"]
["Receptor"]
["Amount of fish consumed","Amnt"]
[null,"Central ",{"$f":"'A03'!$E$20","v":0.158},"kg/day","Ruffle et al. 1994"]
[null,"Lower ",{"$f":"'A03'!$E$20","v":0.158},null,"Ruffle et al. 1994"]
[null,"Upper ",{"$f":"'A03'!$E$20","v":0.158},null,"Ruffle et al. 1994"]
["Toxic Equivalency Factor for formulation:  (See risk assessment if this has a value other than 1.)","TEF"]
[null,"Central ",{"$f":"'A01'!C$35","v":1},"Unitless","Worksheet A01"]
[null,"Lower ",{"$f":"'A01'!C$36","v":1},null,"Worksheet A01"]
[null,"Upper ",{"$f":"'A01'!C$37","v":1},null,"Worksheet A01"]
["Body weight","BW",{"$f":"A02a!$C$8","v":70},"kg","ICRP 1975"]
["Dose","Dose","ConcFish× Amnt x TEF ÷ BW"]
[null,"Central ",{"$f":"C17*C22*C26/C$29","v":1.1737142857142858E-5},"mg/kg","Eq"]
[null,"Lower ",{"$f":"C18*C23*C27/C$29","v":1.0834285714285714E-9},"mg/kg","Eq"]
[null,"Upper ",{"$f":"C19*C24*C28/C$29","v":1.5348571428571429E-4},"mg/kg","Eq"]
[null,null,null,null,"FishAmntV6"]

{"sheet":"D09d","index":38,"n_rows":34,"n_cols":5,"rows_kept":34,"cut":false,"hidden":false,"merged":[[15,0,18,0],[20,0,23,0],[24,0,27,0],[29,0,32,0],[0,0,0,4],[1,1,1,3],[2,1,2,3],[3,1,3,3],[6,0,9,0],[12,0,14,0]]}
["Consumption of Contaminated Fish (Peak Exposure), Subsistence Populations, acute exposure"]
["Short Title","Fish consumption",null,null,"FishAmntV6"]
["Receptor","Subsistence Populations"]
["Duration","acute"]
["Parameter/Assumption","Code / Range","Equation/   Value","Units","Reference/Designation"]
["Water"]
["Concentration in water","ConcWat","ApR × WCR"]
[null,"Central ",{"$f":"B04a!Acute_C","v":5.1999999999999998E-3},"mg/L","='B04a'!Acute_C"]
[null,"Lower ",{"$f":"B04a!Acute_L","v":4.7999999999999996E-7},null,"='B04a'!Acute_L"]
[null,"Upper ",{"$f":"B04a!Acute_U","v":6.8000000000000005E-2},null,"='B04a'!Acute_U"]
["Fish"]
["Bioconcentration factor","BCF"]
[null,"Central ",{"$f":"'B01'!$C$4","v":1},"L/kg","Section 3.2.3.5."]
[null,"Lower ",{"$f":"'B01'!$C$4","v":1},null,"Section 3.2.3.5."]
[null,"Upper ",{"$f":"'B01'!$C$4","v":1},null,"Section 3.2.3.5."]
["Concentration in fish","ConcFish","ConcWat × BCF"]
[null,"Central ",{"$f":"C8*C13","v":5.1999999999999998E-3},"mg/kg","Eq"]
[null,"Lower ",{"$f":"C9*C14","v":4.7999999999999996E-7},null,"Eq"]
[null,"Upper ",{"$f":"C10*C15","v":6.8000000000000005E-2},null,"Eq"]
["Receptor"]
["Amount of fish consumed","Amnt"]
[null,"Central ",{"$f":"'A03'!$E$35","v":0.77},"kg/day","U.S. EPA/ORD 1993"]
[null,"Lower ",{"$f":"'A03'!$E$35","v":0.77},null,"U.S. EPA/ORD 1993"]
[null,"Upper ",{"$f":"'A03'!$E$35","v":0.77},null,"U.S. EPA/ORD 1993"]
["Toxic Equivalency Factor for formulation:  (See risk assessment if this has a value other than 1.)","TEF"]
[null,"Central ",{"$f":"'A01'!C$35","v":1},"Unitless","Worksheet A01"]
[null,"Lower ",{"$f":"'A01'!C$36","v":1},null,"Worksheet A01"]
[null,"Upper ",{"$f":"'A01'!C$37","v":1},null,"Worksheet A01"]
["Body weight","BW",{"$f":"A02a!$C$9","v":70},"kg","ICRP 1975"]
["Dose","Dose","ConcFish× Amnt x TEF ÷ BW"]
[null,"Central ",{"$f":"C17*C22*C26/C$29","v":5.7199999999999994E-5},"mg/kg","Eq"]
[null,"Lower ",{"$f":"C18*C23*C27/C$29","v":5.28E-9},"mg/kg","Eq"]
[null,"Upper ",{"$f":"C19*C24*C28/C$29","v":7.4800000000000008E-4},"mg/kg","Eq"]
[null,null,null,null,"FishAmntV6"]

{"sheet":"D11","index":39,"n_rows":31,"n_cols":5,"rows_kept":31,"cut":false,"hidden":false,"merged":[[27,0,30,0],[0,0,0,4],[1,1,1,3],[2,1,2,3],[3,1,3,3],[4,1,4,3],[8,0,9,0],[11,0,14,0],[12,3,14,3],[15,0,18,0],[19,0,22,0],[23,0,26,0]]}
["Swimming Exposure Assessment Using Zero-Order Absorption, Adult Female, Surface Area, Whole body, for 60 minute(s)"]
["Short Title","Swimming",null,null,"DrmZrSwm"]
["Receptor","Adult Female"]
["Duration","Acute"]
["Surface Contaminated","Surface Area, Whole body"]
["Parameter/Assumption","Code / Range","Equation/   Value","Units","Reference/Designation"]
["Application Rate","ApRt",{"$f":"'A01'!ApRt_C","v":0.4},"lb/acre","Worksheet A01"]
["Surface Area","SA",{"$f":"A02a!$C$7","v":16900},"cm2","U.S. EPA/ORD 1997"]
["Duration of Exposure","T_min",{"$f":"'A01'!C$29","v":60},"minutes","Worksheet A01"]
[null,"T_hr",{"$f":"C9/60","v":1},"hours","Eq"]
["Body weight","BW",{"$f":"A02a!$C$4","v":64},"kg","U.S. EPA/ORD 1985"]
["Water contamination rate","WCR"]
[null,"Central ",{"$f":"B04Rt!$C$4","v":1.2999999999999999E-2},"mg/L per lb/acre","Section 3.2.3.4.1"]
[null,"Lower ",{"$f":"B04Rt!$C$5","v":1.1999999999999999E-6},null,"Section 3.2.3.4.1"]
[null,"Upper ",{"$f":"B04Rt!$C$6","v":0.17},null,"Section 3.2.3.4.1"]
["Concentration in water in mg/mL","ConcWat","ApR × WCR / 1000"]
[null,"Central ",{"$f":"C$7*C13/1000","v":5.1999999999999993E-6},"mg/mL","Eq"]
[null,"Lower ",{"$f":"C$7*C14/1000","v":4.8E-10},null,"Eq"]
[null,"Upper ",{"$f":"C$7*C15/1000","v":6.7999999999999999E-5},null,"Eq"]
["Toxic Equivalency Factor for formulation:  (See risk assessment if this has a value other than 1.)","TEF"]
[null,"Central ",{"$f":"'A01'!C$35","v":1},"Unitless","Worksheet A01"]
[null,"Lower ",{"$f":"'A01'!C$36","v":1},null,"Worksheet A01"]
[null,"Upper ",{"$f":"'A01'!C$37","v":1},null,"Worksheet A01"]
["Dermal permeability","Kp"]
[null,"Central ",{"$f":"'B01'!$C$14","v":1.2999999999999999E-4},"cm/hour","Section 3.1.3.2.3"]
[null,"Lower ",{"$f":"'B01'!$C$15","v":7.1000000000000005E-5},null,"Section 3.1.3.2.3"]
[null,"Upper ",{"$f":"'B01'!$C$16","v":2.3000000000000001E-4},null,"Section 3.1.3.2.3"]
["Absorbed Dose","Dose","Kp × Conc × T_hr × SA × TEF ÷ BW"]
[null,"Central ",{"$f":"C25*C17*C$10*C$8*C21/C$11","v":1.7850624999999995E-7},"mg/kg"]
[null,"Lower ",{"$f":"C26*C18*C$10*C$8*C22/C$11","v":8.9992500000000013E-12},"mg/kg"]
[null,"Upper ",{"$f":"C27*C19*C$10*C$8*C23/C$11","v":4.1299375000000001E-6},"mg/kg"]

{"sheet":"E01","index":40,"n_rows":11,"n_cols":6,"rows_kept":11,"cut":false,"hidden":false,"merged":[[0,0,0,5],[1,2,1,4],[2,0,3,0],[2,1,3,1],[2,2,2,4],[2,5,3,5]]}
["Summary of Worker Exposure Assessments"]
["Application Rate:",{"$f":"'A01'!ApRt_C","v":0.4}," lb a.i./acre",null,null,"E01aV5-1Wrkr"]
["Scenario","Receptor","mg/kg/day or mg/kg/event",null,null,"Detail Worksheet"]
[null,null,"Central","Lower","Upper"]
["Accidental/Incidental Exposures"]
["Contaminated Gloves, \n1 min.","Worker",{"$f":"'C02a'!Dose_C","v":3.1199999999999994E-4},{"$f":"'C02a'!Dose_L","v":3.4079999999999999E-5},{"$f":"'C02a'!Dose_U","v":2.2080000000000003E-3},"C02a"]
["Contaminated Gloves, 1 hour","Worker",{"$f":"'C02b'!Dose_C","v":1.8719999999999997E-2},{"$f":"'C02b'!Dose_L","v":2.0447999999999998E-3},{"$f":"'C02b'!Dose_U","v":0.13248000000000001},"C02b"]
["Spill on Hands, 1 hour","Worker",{"$f":"'C03a'!Dose_C","v":1.7267046477570601E-3},{"$f":"'C03a'!Dose_L","v":1.5431629826735219E-4},{"$f":"'C03a'!Dose_U","v":1.6558975959582767E-2},"C03a"]
["Spill on lower legs, 1 hour","Worker",{"$f":"'C03b'!Dose_C","v":4.2550935962584694E-3},{"$f":"'C03b'!Dose_L","v":3.8027944930168925E-4},{"$f":"'C03b'!Dose_U","v":4.0806047900400384E-2},"C03b"]
["General Exposures"]
[null,"Worker",{"$f":"'C01'!Dose_C","v":8.7499999999999999E-5},{"$f":"'C01'!Dose_L","v":2.4000000000000004E-5},{"$f":"'C01'!Dose_U","v":2.24E-4},"C01"]

{"sheet":"E02","index":41,"n_rows":12,"n_cols":6,"rows_kept":12,"cut":false,"hidden":false,"merged":[[0,0,0,5],[1,2,1,4],[2,0,3,0],[2,1,3,1],[2,2,2,4],[2,5,3,5]]}
["Summary of Worker Hazard Quotients (Toxicity)"]
["Application Rate:",{"$f":"'A01'!ApRt_C","v":0.4}," lb a.i./acre",null,null,"E01aV5-1Wrkr"]
["Scenario","Receptor","Hazard Quotients",null,null,"Toxicity Value"]
[null,null,"Central","Lower","Upper"]
["Accidental/Incidental Exposures"]
["Contaminated Gloves, \n1 min.","Worker",{"$f":"'C02a'!$C$24/$F$6","v":2.2285714285714278E-3},{"$f":"'C02a'!$C$25/$F$6","v":2.4342857142857139E-4},{"$f":"'C02a'!$C$26/$F$6","v":1.5771428571428572E-2},{"$f":"'B02'!$E$4","v":0.14000000000000001}]
["Contaminated Gloves, 1 hour","Worker",{"$f":"'C02b'!$C$24/$F$7","v":0.13371428571428567},{"$f":"'C02b'!$C$25/$F$7","v":1.4605714285714283E-2},{"$f":"'C02b'!$C$26/$F$7","v":0.94628571428571429},{"$f":"'B02'!$E$4","v":0.14000000000000001}]
["Spill on Hands, 1 hour","Worker",{"$f":"'C03a'!$C$37/$F$8","v":1.2333604626836144E-2},{"$f":"'C03a'!$C$38/$F$8","v":1.1022592733382298E-3},{"$f":"'C03a'!$C$39/$F$8","v":0.11827839971130547},{"$f":"'B02'!$E$4","v":0.14000000000000001}]
["Spill on lower legs, 1 hour","Worker",{"$f":"'C03b'!$C$37/$F$9","v":3.0393525687560492E-2},{"$f":"'C03b'!$C$38/$F$9","v":2.7162817807263517E-3},{"$f":"'C03b'!$C$39/$F$9","v":0.29147177071714558},{"$f":"'B02'!$E$4","v":0.14000000000000001}]
["General Exposures"]
[null,"Acute",{"$f":"'C01'!$C$36/$F$11","v":6.249999999999999E-4},{"$f":"'C01'!$C$37/$F$11","v":1.7142857142857145E-4},{"$f":"'C01'!$C$38/$F$11","v":1.5999999999999999E-3},{"$f":"'B02'!$E$4","v":0.14000000000000001}]
[null,"Chronic",{"$f":"'C01'!$C$36/$F$12","v":1.5350877192982456E-3},{"$f":"'C01'!$C$37/$F$12","v":4.2105263157894745E-4},{"$f":"'C01'!$C$38/$F$12","v":3.9298245614035089E-3},{"$f":"'B02'!$E$5","v":5.7000000000000002E-2}]

{"sheet":"E03","index":42,"n_rows":24,"n_cols":14,"rows_kept":24,"cut":false,"hidden":false,"merged":[[0,0,0,5],[1,2,1,4],[2,0,3,0],[2,1,3,1],[2,2,2,4],[2,5,3,5]]}
["Summary of Exposure Assessments for the General Public"]
["Application Rate:",{"$f":"'A01'!ApRt_C","v":0.4}," lb a.i./acre",null,null,"E03aV6"]
["Scenario","Receptor","mg/kg/day or mg/kg/event",null,null,"Detail Worksheet"]
[null,null,"Central","Lower","Upper",null,null,null,null,null,"Lower","Central","Upper","Check"]
["Accidental Acute Exposures (dose in mg/kg/event)"]
["Direct Spray of Child, whole body","Child","No exposure assessment",null,null,null,null,null,null,"Spray: Child",{"$f":"IF(D6>0,  D6, \"\")","v":""},{"$f":"IF(ISERROR(C6-K6), \"\", C6-K6)","v":""},{"$f":"IF(ISERROR(E6-C6), \"\", E6-C6)","v":""},{"$f":"E6-SUM(K6:M6)","v":0}]
["Direct Spray of Woman, feet and lower legs","Adult Female","No exposure assessment",null,null,null,null,null,null,"Spray: Woman",{"$f":"IF(D7>0,  D7, \"\")","v":""},{"$f":"IF(ISERROR(C7-K7), \"\", C7-K7)","v":""},{"$f":"IF(ISERROR(E7-C7), \"\", E7-C7)","v":""},{"$f":"E7-SUM(K7:M7)","v":0}]
["Water consumption (spill)","Child",{"$f":"'D05'!Dose_C","v":1.366015037593985E-2},{"$f":"'D05'!Dose_L","v":3.3330766917293232E-4},{"$f":"'D05'!Dose_U","v":0.16392180451127819},"D05",null,null,null,"Water: Child",3.3330766917293232E-4,1.3326842706766918E-2,0.15026165413533835,0]
["Fish consumption (spill)","Adult Male",{"$f":"D08a!Dose_C","v":4.100777142857143E-4},{"$f":"D08a!Dose_L","v":1.6403108571428573E-5},{"$f":"D08a!Dose_U","v":3.2806217142857144E-3},"D08a",null,null,null,"Fish: General",1.6403108571428573E-5,3.9367460571428575E-4,2.870544E-3,0]
["Fish consumption (spill)","Subsistence Populations",{"$f":"D08b!Dose_C","v":1.99848E-3},{"$f":"D08b!Dose_L","v":7.9939200000000009E-5},{"$f":"D08b!Dose_U","v":1.598784E-2},"D08b",null,null,null,"Fish: Subsist",7.9939200000000009E-5,1.9185407999999999E-3,1.3989359999999999E-2,0]
["Non-Accidental Acute Exposures (dose in mg/kg/event)"]
["Vegetation Contact, shorts and T-shirt","Adult Female","No exposure assessment",null,null,null,null,null,null,"Contact: Female",{"$f":"IF(D12>0,  D12, \"\")","v":""},{"$f":"IF(ISERROR(C12-K12), \"\", C12-K12)","v":""},{"$f":"IF(ISERROR(E12-C12), \"\", E12-C12)","v":""},{"$f":"E12-SUM(K12:M12)","v":0}]
["Contaminated Fruit","Adult Female","No exposure assessment",null,null,null,null,null,null,"Fruit: Female","","","",0]
["Contaminated Vegetation","Adult Female","No exposure assessment",null,null,null,null,null,null,"Veg: Female","","","",0]
["Swimming, one hour","Adult Female",{"$f":"'D11'!Dose_C","v":1.7850624999999995E-7},{"$f":"'D11'!Dose_L","v":8.9992500000000013E-12},{"$f":"'D11'!Dose_U","v":4.1299375000000001E-6},"D11",null,null,null,"Swim: Female",8.9992500000000013E-12,1.7849725074999994E-7,3.9514312500000005E-6,0]
["Water consumption","Child",{"$f":"'D06'!Dose_C","v":3.9097744360902254E-4},{"$f":"'D06'!Dose_L","v":2.2015037593984959E-8},{"$f":"'D06'!Dose_U","v":7.6691729323308273E-3},"D06",null,null,null,"Water: Child",2.2015037593984959E-8,3.9095542857142858E-4,7.2781954887218047E-3,0]
["Fish consumption","Adult Male",{"$f":"D09c!Dose_C","v":1.1737142857142858E-5},{"$f":"D09c!Dose_L","v":1.0834285714285714E-9},{"$f":"D09c!Dose_U","v":1.5348571428571429E-4},"D09c",null,null,null,"Fish: Male",1.0834285714285714E-9,1.173605942857143E-5,1.4174857142857142E-4,0]
["Fish consumption","Subsistence Populations",{"$f":"D09d!Dose_C","v":5.7199999999999994E-5},{"$f":"D09d!Dose_L","v":5.28E-9},{"$f":"D09d!Dose_U","v":7.4800000000000008E-4},"D09d",null,null,null,"Fish: Subsist",5.28E-9,5.7194719999999998E-5,6.9080000000000009E-4,0]
["Chronic/Longer Term Exposures (dose in mg/kg/day)"]
["Contaminated Fruit","Adult Female","No exposure assessment",null,null,null,null,null,null,"Fruit: Female",{"$f":"IF(D20>0,  D20, \"\")","v":""},{"$f":"IF(ISERROR(C20-K20), \"\", C20-K20)","v":""},{"$f":"IF(ISERROR(E20-C20), \"\", E20-C20)","v":""},{"$f":"E20-SUM(K20:M20)","v":0}]
["Contaminated Vegetation","Adult Female","No exposure assessment",null,null,null,null,null,null,"Veg: Female","","","",0]
["Water consumption","Adult Male",{"$f":"'D07'!Dose_C","v":9.6000000000000002E-5},{"$f":"'D07'!Dose_L","v":3.9999999999999994E-9},{"$f":"'D07'!Dose_U","v":6.5828571428571433E-4},"D07",null,null,null,"Water: Male",3.9999999999999994E-9,9.5996000000000007E-5,5.6228571428571439E-4,0]
["Fish consumption","Adult Male",{"$f":"D09a!Dose_C","v":4.8000000000000006E-7},{"$f":"D09a!Dose_L","v":2.8571428571428573E-11},{"$f":"D09a!Dose_U","v":2.7428571428571433E-6},"D09a",null,null,null,"Fish: Male",2.8571428571428573E-11,4.7997142857142862E-7,2.2628571428571433E-6,0]
["Fish consumption","Subsistence Populations",{"$f":"D09b!Dose_C","v":3.8880000000000007E-6},{"$f":"D09b!Dose_L","v":2.3142857142857143E-10},{"$f":"D09b!Dose_U","v":2.2217142857142861E-5},"D09b",null,null,null,"Fish: Subsist",2.3142857142857143E-10,3.8877685714285723E-6,1.832914285714286E-5,0]

{"sheet":"E04","index":43,"n_rows":24,"n_cols":14,"rows_kept":24,"cut":false,"hidden":false,"merged":[[0,0,0,5],[1,2,1,4],[2,0,3,0],[2,1,3,1],[2,2,2,4],[2,5,3,5]]}
["Summary of Exposure Assessments for the General Public"]
["Application Rate:",{"$f":"'A01'!ApRt_C","v":0.4}," lb a.i./acre",null,null,"E03aV6"]
["Scenario","Receptor","mg/kg/day or mg/kg/event",null,null,"Detail Worksheet"]
[null,null,"Central","Lower","Upper",null,null,null,null,null,"Lower","Central","Upper","Check"]
["Accidental Acute Exposures (dose in mg/kg/event)"]
["Direct Spray of Child, whole body","Child","No exposure assessment",null,null,null,null,null,null,"Spray: Child",{"$f":"IF(D6>0,  D6, \"\")","v":""},{"$f":"IF(ISERROR(C6-K6), \"\", C6-K6)","v":""},{"$f":"IF(ISERROR(E6-C6), \"\", E6-C6)","v":""},{"$f":"E6-SUM(K6:M6)","v":0}]
["Direct Spray of Woman, feet and lower legs","Adult Female","No exposure assessment",null,null,null,null,null,null,"Spray: Woman",{"$f":"IF(D7>0,  D7, \"\")","v":""},{"$f":"IF(ISERROR(C7-K7), \"\", C7-K7)","v":""},{"$f":"IF(ISERROR(E7-C7), \"\", E7-C7)","v":""},{"$f":"E7-SUM(K7:M7)","v":0}]
["Water consumption (spill)","Child",{"$f":"'E03'!C8/'E04'!$F8","v":9.7572502685284626E-2},{"$f":"'E03'!D8/'E04'!$F8","v":2.380769065520945E-3},{"$f":"'E03'!E8/'E04'!$F8","v":1.1708700322234156},{"$f":"'B02'!$E$4","v":0.14000000000000001},null,null,null,"Water: Child",2.380769065520945E-3,9.5191733619763685E-2,1.0732975295381308,0]
["Fish consumption (spill)","Adult Male",{"$f":"'E03'!C9/'E04'!$F9","v":2.9291265306122449E-3},{"$f":"'E03'!D9/'E04'!$F9","v":1.171650612244898E-4},{"$f":"'E03'!E9/'E04'!$F9","v":2.3433012244897959E-2},{"$f":"'B02'!$E$4","v":0.14000000000000001},null,null,null,"Fish: General",1.171650612244898E-4,2.8119614693877552E-3,2.0503885714285713E-2,0]
["Fish consumption (spill)","Subsistence Populations",{"$f":"'E03'!C10/'E04'!$F10","v":1.4274857142857141E-2},{"$f":"'E03'!D10/'E04'!$F10","v":5.7099428571428569E-4},{"$f":"'E03'!E10/'E04'!$F10","v":0.11419885714285713},{"$f":"'B02'!$E$4","v":0.14000000000000001},null,null,null,"Fish: Subsist",5.7099428571428569E-4,1.3703862857142856E-2,9.9923999999999985E-2,0]
["Non-Accidental Acute Exposures (dose in mg/kg/event)"]
["Vegetation Contact, shorts and T-shirt","Adult Female","No exposure assessment",null,null,null,null,null,null,"Contact: Female",{"$f":"IF(D12>0,  D12, \"\")","v":""},{"$f":"IF(ISERROR(C12-K12), \"\", C12-K12)","v":""},{"$f":"IF(ISERROR(E12-C12), \"\", E12-C12)","v":""},{"$f":"E12-SUM(K12:M12)","v":0}]
["Contaminated Fruit","Adult Female","No exposure assessment",null,null,null,null,null,null,"Fruit: Female","","","",0]
["Contaminated Vegetation","Adult Female","No exposure assessment",null,null,null,null,null,null,"Veg: Female","","","",0]
["Swimming, one hour","Adult Female",{"$f":"'E03'!C15/'E04'!$F15","v":1.2750446428571423E-6},{"$f":"'E03'!D15/'E04'!$F15","v":6.4280357142857144E-11},{"$f":"'E03'!E15/'E04'!$F15","v":2.9499553571428568E-5},{"$f":"'B02'!$E$4","v":0.14000000000000001},null,null,null,"Swim: Female",6.4280357142857144E-11,1.2749803624999995E-6,2.8224508928571424E-5,0]
["Water consumption","Child",{"$f":"'E03'!C16/'E04'!$F16","v":2.7926960257787323E-3},{"$f":"'E03'!D16/'E04'!$F16","v":1.5725026852846396E-7},{"$f":"'E03'!E16/'E04'!$F16","v":5.4779806659505902E-2},{"$f":"'B02'!$E$4","v":0.14000000000000001},null,null,null,"Water: Child",1.5725026852846396E-7,2.792538775510204E-3,5.1987110633727171E-2,0]
["Fish consumption","Adult Male",{"$f":"'E03'!C17/'E04'!$F17","v":8.3836734693877542E-5},{"$f":"'E03'!D17/'E04'!$F17","v":7.7387755102040804E-9},{"$f":"'E03'!E17/'E04'!$F17","v":1.0963265306122448E-3},{"$f":"'B02'!$E$4","v":0.14000000000000001},null,null,null,"Fish: Male",7.7387755102040804E-9,8.3828995918367331E-5,1.0124897959183673E-3,0]
["Fish consumption","Subsistence Populations",{"$f":"'E03'!C18/'E04'!$F18","v":4.085714285714285E-4},{"$f":"'E03'!D18/'E04'!$F18","v":3.771428571428571E-8},{"$f":"'E03'!E18/'E04'!$F18","v":5.3428571428571431E-3},{"$f":"'B02'!$E$4","v":0.14000000000000001},null,null,null,"Fish: Subsist",3.771428571428571E-8,4.0853371428571422E-4,4.9342857142857148E-3,0]
["Chronic/Longer Term Exposures (dose in mg/kg/day)"]
["Contaminated Fruit","Adult Female","No exposure assessment",null,null,null,null,null,null,"Fruit: Female",{"$f":"IF(D20>0,  D20, \"\")","v":""},{"$f":"IF(ISERROR(C20-K20), \"\", C20-K20)","v":""},{"$f":"IF(ISERROR(E20-C20), \"\", E20-C20)","v":""},{"$f":"E20-SUM(K20:M20)","v":0}]
["Contaminated Vegetation","Adult Female","No exposure assessment",null,null,null,null,null,null,"Veg: Female","","","",0]
["Water consumption","Adult Male",{"$f":"'E03'!C22/'E04'!$F22","v":1.6842105263157893E-3},{"$f":"'E03'!D22/'E04'!$F22","v":7.0175438596491221E-8},{"$f":"'E03'!E22/'E04'!$F22","v":1.1548872180451128E-2},{"$f":"'B02'!$E$5","v":5.7000000000000002E-2},null,null,null,"Water: Male",7.0175438596491221E-8,1.684140350877193E-3,9.8646616541353382E-3,0]
["Fish consumption","Adult Male",{"$f":"'E03'!C23/'E04'!$F23","v":8.4210526315789482E-6},{"$f":"'E03'!D23/'E04'!$F23","v":5.0125313283208018E-10},{"$f":"'E03'!E23/'E04'!$F23","v":4.8120300751879706E-5},{"$f":"'B02'!$E$5","v":5.7000000000000002E-2},null,null,null,"Fish: Male",5.0125313283208018E-10,8.4205513784461161E-6,3.9699248120300755E-5,0]
["Fish consumption","Subsistence Populations",{"$f":"'E03'!C24/'E04'!$F24","v":6.821052631578948E-5},{"$f":"'E03'!D24/'E04'!$F24","v":4.0601503759398492E-9},{"$f":"'E03'!E24/'E04'!$F24","v":3.8977443609022563E-4},{"$f":"'B02'!$E$5","v":5.7000000000000002E-2},null,null,null,"Fish: Subsist",4.0601503759398492E-9,6.8206466165413539E-5,3.2156390977443615E-4,0]

{"sheet":"F02a","index":44,"n_rows":20,"n_cols":5,"rows_kept":20,"cut":false,"hidden":false,"merged":[[16,0,19,0],[0,0,0,4],[1,1,1,3],[2,1,2,3],[5,0,8,0],[11,0,13,0],[14,0,15,0]]}
["Consumption of contaminated water by Mammal, small, Accidental Spill "]
["Short Title","Accidental Spill",null,null,"WatAlloV6"]
["Receptor","Mammal, small"]
["Duration","Acute",null,null,"Scenario parameter"]
["Parameter/Assumption","Code / Range","Equation/   Value","Units","Reference/Designation"]
["Concentration in water","ConcWat"]
[null,"Central ",{"$f":"B04b!Acute_C","v":0.18168000000000001},"mg/L","='B04b'!Acute_C"]
[null,"Lower ",{"$f":"B04b!Acute_L","v":7.2672000000000006E-3},null,"='B04b'!Acute_L"]
[null,"Upper ",{"$f":"B04b!Acute_U","v":1.4534400000000001},null,"='B04b'!Acute_U"]
["Receptor"]
["Body weight","BW",{"$f":"A02b!$C$71","v":0.02},"kg","Default"]
["Allometric coefficients forwater consumption per day in liters and BW in kilograms"]
[null,"alpha",{"$f":"A02b!$C$79","v":9.9000000000000005E-2},null,"U.S. EPA/ORD 1993"]
[null,"beta",{"$f":"A02b!$C$80","v":0.9},null,"U.S. EPA/ORD 1993"]
["Amount of water consumed per day",null,"Amnt = alpha BW beta"]
[null,"Amnt",{"$f":"C13*(C11^C14)","v":2.9279401205240612E-3},"liters","Eq"]
["Absorbed Dose","Dose","ConcWat  × Amnt ÷ BW"]
[null,"Central ",{"$f":"C7*C$16/C$11","v":2.6597408054840569E-2},"mg/kg","Eq"]
[null,"Lower ",{"$f":"C8*C$16/C$11","v":1.0638963221936231E-3},"mg/kg","Eq"]
[null,"Upper ",{"$f":"C9*C$16/C$11","v":0.21277926443872455},"mg/kg","Eq"]

{"sheet":"F02b","index":45,"n_rows":20,"n_cols":5,"rows_kept":20,"cut":false,"hidden":false,"merged":[[16,0,19,0],[0,0,0,4],[1,1,1,3],[2,1,2,3],[5,0,8,0],[11,0,13,0],[14,0,15,0]]}
["Consumption of contaminated water by Mammal, 400 g, Accidental Spill "]
["Short Title","Accidental Spill",null,null,"WatAlloV6"]
["Receptor","Mammal, 400 g"]
["Duration","Acute",null,null,"Scenario parameter"]
["Parameter/Assumption","Code / Range","Equation/   Value","Units","Reference/Designation"]
["Concentration in water","ConcWat"]
[null,"Central ",{"$f":"B04b!Acute_C","v":0.18168000000000001},"mg/L","='B04b'!Acute_C"]
[null,"Lower ",{"$f":"B04b!Acute_L","v":7.2672000000000006E-3},null,"='B04b'!Acute_L"]
[null,"Upper ",{"$f":"B04b!Acute_U","v":1.4534400000000001},null,"='B04b'!Acute_U"]
["Receptor"]
["Body weight","BW",{"$f":"A02b!$C$40","v":0.4},"kg","Default"]
["Allometric coefficients forwater consumption per day in liters and BW in kilograms"]
[null,"alpha",{"$f":"A02b!$C$45","v":9.9000000000000005E-2},null,"U.S. EPA/ORD 1993"]
[null,"beta",{"$f":"A02b!$C$46","v":0.9},null,"U.S. EPA/ORD 1993"]
["Amount of water consumed per day",null,"Amnt = alpha BW beta"]
[null,"Amnt",{"$f":"C13*(C11^C14)","v":4.3399945764854612E-2},"liters","Eq"]
["Absorbed Dose","Dose","ConcWat  × Amnt ÷ BW"]
[null,"Central ",{"$f":"C7*C$16/C$11","v":1.9712255366396966E-2},"mg/kg","Eq"]
[null,"Lower ",{"$f":"C8*C$16/C$11","v":7.8849021465587866E-4},"mg/kg","Eq"]
[null,"Upper ",{"$f":"C9*C$16/C$11","v":0.15769804293117573},"mg/kg","Eq"]

{"sheet":"F02c","index":46,"n_rows":20,"n_cols":5,"rows_kept":20,"cut":false,"hidden":false,"merged":[[16,0,19,0],[0,0,0,4],[1,1,1,3],[2,1,2,3],[5,0,8,0],[11,0,13,0],[14,0,15,0]]}
["Consumption of contaminated water by Mammal, carnivorous, Accidental Spill "]
["Short Title","Accidental Spill",null,null,"WatAlloV6"]
["Receptor","Mammal, carnivorous"]
["Duration","Acute",null,null,"Scenario parameter"]
["Parameter/Assumption","Code / Range","Equation/   Value","Units","Reference/Designation"]
["Concentration in water","ConcWat"]
[null,"Central ",{"$f":"B04b!Acute_C","v":0.18168000000000001},"mg/L","='B04b'!Acute_C"]
[null,"Lower ",{"$f":"B04b!Acute_L","v":7.2672000000000006E-3},null,"='B04b'!Acute_L"]
[null,"Upper ",{"$f":"B04b!Acute_U","v":1.4534400000000001},null,"='B04b'!Acute_U"]
["Receptor"]
["Body weight","BW",{"$f":"A02b!$C$47","v":5},"kg","U.S. EPA/ORD 1993"]
["Allometric coefficients forwater consumption per day in liters and BW in kilograms"]
[null,"alpha",{"$f":"A02b!$C$50","v":9.9000000000000005E-2},null,"U.S. EPA/ORD 1993"]
[null,"beta",{"$f":"A02b!$C$51","v":0.9},null,"U.S. EPA/ORD 1993"]
["Amount of water consumed per day",null,"Amnt = alpha BW beta"]
[null,"Amnt",{"$f":"C13*(C11^C14)","v":0.42141326164778842},"liters","Eq"]
["Absorbed Dose","Dose","ConcWat  × Amnt ÷ BW"]
[null,"Central ",{"$f":"C7*C$16/C$11","v":1.5312472275234041E-2},"mg/kg","Eq"]
[null,"Lower ",{"$f":"C8*C$16/C$11","v":6.1249889100936162E-4},"mg/kg","Eq"]
[null,"Upper ",{"$f":"C9*C$16/C$11","v":0.12249977820187233},"mg/kg","Eq"]

{"sheet":"F02d","index":47,"n_rows":20,"n_cols":5,"rows_kept":20,"cut":false,"hidden":false,"merged":[[16,0,19,0],[0,0,0,4],[1,1,1,3],[2,1,2,3],[5,0,8,0],[11,0,13,0],[14,0,15,0]]}
["Consumption of contaminated water by Mammal, large, Accidental Spill "]
["Short Title","Accidental Spill",null,null,"WatAlloV6"]
["Receptor","Mammal, large"]
["Duration","Acute",null,null,"Scenario parameter"]
["Parameter/Assumption","Code / Range","Equation/   Value","Units","Reference/Designation"]
["Concentration in water","ConcWat"]
[null,"Central ",{"$f":"B04b!Acute_C","v":0.18168000000000001},"mg/L","='B04b'!Acute_C"]
[null,"Lower ",{"$f":"B04b!Acute_L","v":7.2672000000000006E-3},null,"='B04b'!Acute_L"]
[null,"Upper ",{"$f":"B04b!Acute_U","v":1.4534400000000001},null,"='B04b'!Acute_U"]
["Receptor"]
["Body weight","BW",{"$f":"A02b!$C$61","v":70},"kg","Default"]
["Allometric coefficients forwater consumption per day in liters and BW in kilograms"]
[null,"alpha",{"$f":"A02b!$C$64","v":9.9000000000000005E-2},null,"U.S. EPA/ORD 1993"]
[null,"beta",{"$f":"A02b!$C$65","v":0.9},null,"U.S. EPA/ORD 1993"]
["Amount of water consumed per day",null,"Amnt = alpha BW beta"]
[null,"Amnt",{"$f":"C13*(C11^C14)","v":4.5313064115862725},"liters","Eq"]
["Absorbed Dose","Dose","ConcWat  × Amnt ÷ BW"]
[null,"Central ",{"$f":"C7*C$16/C$11","v":1.1760682126528485E-2},"mg/kg","Eq"]
[null,"Lower ",{"$f":"C8*C$16/C$11","v":4.7042728506113945E-4},"mg/kg","Eq"]
[null,"Upper ",{"$f":"C9*C$16/C$11","v":9.4085457012227883E-2},"mg/kg","Eq"]

{"sheet":"F02e","index":48,"n_rows":20,"n_cols":5,"rows_kept":20,"cut":false,"hidden":false,"merged":[[16,0,19,0],[0,0,0,4],[1,1,1,3],[2,1,2,3],[5,0,8,0],[11,0,13,0],[14,0,15,0]]}
["Consumption of contaminated water by Bird, small, Accidental Spill "]
["Short Title","Accidental Spill",null,null,"WatAlloV6"]
["Receptor","Bird, small"]
["Duration","Acute",null,null,"Scenario parameter"]
["Parameter/Assumption","Code / Range","Equation/   Value","Units","Reference/Designation"]
["Concentration in water","ConcWat"]
[null,"Central ",{"$f":"B04b!Acute_C","v":0.18168000000000001},"mg/L","='B04b'!Acute_C"]
[null,"Lower ",{"$f":"B04b!Acute_L","v":7.2672000000000006E-3},null,"='B04b'!Acute_L"]
[null,"Upper ",{"$f":"B04b!Acute_U","v":1.4534400000000001},null,"='B04b'!Acute_U"]
["Receptor"]
["Body weight","BW",{"$f":"A02b!$C$31","v":0.01},"kg","Default"]
["Allometric coefficients forwater consumption per day in liters and BW in kilograms"]
[null,"alpha",{"$f":"A02b!$C$34","v":5.8999999999999997E-2},null,"U.S. EPA/ORD 1993"]
[null,"beta",{"$f":"A02b!$C$35","v":0.67},null,"U.S. EPA/ORD 1993"]
["Amount of water consumed per day",null,"Amnt = alpha BW beta"]
[null,"Amnt",{"$f":"C13*(C11^C14)","v":2.6968203187277624E-3},"liters","Eq"]
["Absorbed Dose","Dose","ConcWat  × Amnt ÷ BW"]
[null,"Central ",{"$f":"C7*C$16/C$11","v":4.8995831550645991E-2},"mg/kg","Eq"]
[null,"Lower ",{"$f":"C8*C$16/C$11","v":1.9598332620258396E-3},"mg/kg","Eq"]
[null,"Upper ",{"$f":"C9*C$16/C$11","v":0.39196665240516793},"mg/kg","Eq"]

{"sheet":"F02f","index":49,"n_rows":20,"n_cols":5,"rows_kept":20,"cut":false,"hidden":false,"merged":[[16,0,19,0],[0,0,0,4],[1,1,1,3],[2,1,2,3],[5,0,8,0],[11,0,13,0],[14,0,15,0]]}
["Consumption of contaminated water by Bird, large, Accidental Spill "]
["Short Title","Accidental Spill",null,null,"WatAlloV6"]
["Receptor","Bird, large"]
["Duration","Acute",null,null,"Scenario parameter"]
["Parameter/Assumption","Code / Range","Equation/   Value","Units","Reference/Designation"]
["Concentration in water","ConcWat"]
[null,"Central ",{"$f":"B04b!Acute_C","v":0.18168000000000001},"mg/L","='B04b'!Acute_C"]
[null,"Lower ",{"$f":"B04b!Acute_L","v":7.2672000000000006E-3},null,"='B04b'!Acute_L"]
[null,"Upper ",{"$f":"B04b!Acute_U","v":1.4534400000000001},null,"='B04b'!Acute_U"]
["Receptor"]
["Body weight","BW",{"$f":"A02b!$C$15","v":4},"kg","Default"]
["Allometric coefficients forwater consumption per day in liters and BW in kilograms"]
[null,"alpha",{"$f":"A02b!$C$18","v":5.8999999999999997E-2},null,"U.S. EPA/ORD 1993"]
[null,"beta",{"$f":"A02b!$C$19","v":0.67},null,"U.S. EPA/ORD 1993"]
["Amount of water consumed per day",null,"Amnt = alpha BW beta"]
[null,"Amnt",{"$f":"C13*(C11^C14)","v":0.14935927808849303},"liters","Eq"]
["Absorbed Dose","Dose","ConcWat  × Amnt ÷ BW"]
[null,"Central ",{"$f":"C7*C$16/C$11","v":6.7838984107793541E-3},"mg/kg","Eq"]
[null,"Lower ",{"$f":"C8*C$16/C$11","v":2.7135593643117417E-4},"mg/kg","Eq"]
[null,"Upper ",{"$f":"C9*C$16/C$11","v":5.4271187286234833E-2},"mg/kg","Eq"]

{"sheet":"F03a","index":50,"n_rows":50,"n_cols":5,"rows_kept":50,"cut":false,"hidden":false,"merged":[[36,0,39,0],[41,0,44,0],[45,0,48,0],[12,0,15,0],[16,0,19,0],[22,0,24,0],[27,0,28,0],[30,0,31,0],[32,0,33,0],[7,0,10,0],[0,0,0,4],[1,1,1,3],[2,1,2,3],[3,1,3,3],[4,1,4,3]]}
["Acute scenario for the consumption of Contaminated Fish (Accidental Spill) by Mammal, large carnivorous "]
["Short Title","Fish consumption, accidental spill",null,null,"FishKcalV6"]
["Predator","Mammal, large carnivorous"]
["Food Item (Prey)","Fish"]
["Duration","Acute",null,null,"Scenario parameter"]
["Parameter/Assumption","Code / Range","Equation/   Value","Units","Reference/Designation"]
["Water"]
["Concentration in water","ConcWat"]
[null,"Central ",{"$f":"B04b!Acute_C","v":0.18168000000000001},"mg/L","='B04b'!Acute_C"]
[null,"Lower ",{"$f":"B04b!Acute_L","v":7.2672000000000006E-3},null,"='B04b'!Acute_L"]
[null,"Upper ",{"$f":"B04b!Acute_U","v":1.4534400000000001},null,"='B04b'!Acute_U"]
["Fish"]
["Bioconcentration factor","BCF"]
[null,"Central ",{"$f":"'B01'!$C$6","v":1},"L/kg","Section 3.2.3.5."]
[null,"Lower ",{"$f":"'B01'!$C$6","v":1},null,"Section 3.2.3.5."]
[null,"Upper ",{"$f":"'B01'!$C$6","v":1},null,"Section 3.2.3.5."]
["Concentration in fish","ConcFish","ConcWat × BCF"]
[null,"Central ",{"$f":"C9*C14","v":0.18168000000000001},"mg/kg","Eq"]
[null,"Lower ",{"$f":"C10*C15","v":7.2672000000000006E-3},null,"Eq"]
[null,"Upper ",{"$f":"C11*C16","v":1.4534400000000001},null,"Eq"]
["Receptor"]
["Body weight","BW",{"$f":"A02b!$C$52","v":70},"kg","Reid 2006"]
["Allometric coefficients for caloric requirement per day in kilocalories and BW in grams"]
[null,"alpha",{"$f":"A02b!$C$53","v":0.61670000000000003},null,"U.S. EPA/ORD 1993"]
[null,"beta",{"$f":"A02b!$C$54","v":0.86199999999999999},null,"U.S. EPA/ORD 1993"]
["Caloric requirement per day","KR",{"$f":"C24*(C22*1000)^C25","v":9258.6668828796119},"kcal/day","Eq"]
["Caloric content of commodity (dry weight)","KCD",{"$f":"'A03'!$E$59","v":4.47},"kcal/gdw [Note 1]","U.S. EPA/ORD 1993"]
["Food consumed per day (dry weight)","AmntDry"," = KR ÷ KCD"]
[null,null,{"$f":"C26/C27","v":2071.2901303981234},"gdry/day","Eq"]
["Water content of vegetation as a proportion","PropWater",{"$f":"'A03'!$E$60","v":0.7},"gwater/gfood","Ali et al. 2005"]
["Dry weight content of vegetation as a proportion","PropDry"," = 1-PropWater"]
[null,null,{"$f":"1-C30","v":0.30000000000000004},"gdry/gfood","Eq"]
["Amount of fish consumed per day,  wet weight","AmntFish"," = (AmntDry ÷ PropDry) ÷ (1000g/kg)"]
[null,"Central ",{"$f":"(C29/C32)/1000","v":6.90430043466041},"kgfood/day","Eq"]
[null,"Lower ",{"$f":"C34*0.3","v":2.0712901303981228},"Note 1","Eq"]
[null,"Upper ",{"$f":"C34*1.7","v":11.737310738922696},"Note 1","Eq"]
["Proportion of diet that is contaminated","Prop"]
[null,"Central ",0.3,"Unitless","Scenario parameter"]
[null,"Lower ",0.1,null,"Scenario parameter"]
[null,"Upper ",1,null,"Scenario parameter"]
["Dose"]
["Toxic Equivalency Factor for formulation:  (See risk assessment if this has a value other than 1.)","TEF"]
[null,"Central ",{"$f":"'A01'!C$35","v":1},"Unitless","Worksheet A01"]
[null,"Lower ",{"$f":"'A01'!C$36","v":1},"Note 2","Worksheet A01"]
[null,"Upper ",{"$f":"'A01'!C$37","v":1},"Note 2","Worksheet A01"]
["Dose","Dose","= ConcFish × AmntFish × Prop ÷ BW"]
[null,"Central ",{"$f":"C18*C34*C38/C$22","v":5.3758855841532999E-3},"mg/kg","Eq"]
[null,"Lower ",{"$f":"C19*C35*C39/C$22","v":2.15035423366132E-5},"mg/kg","Eq"]
[null,"Upper ",0.24370681314828291,"mg/kg","Eq"]
[null,null,null,null,"FishKcalV6"]

{"sheet":"F03b","index":51,"n_rows":50,"n_cols":5,"rows_kept":50,"cut":false,"hidden":false,"merged":[[36,0,39,0],[41,0,44,0],[45,0,48,0],[12,0,15,0],[16,0,19,0],[22,0,24,0],[27,0,28,0],[30,0,31,0],[32,0,33,0],[7,0,10,0],[0,0,0,4],[1,1,1,3],[2,1,2,3],[3,1,3,3],[4,1,4,3]]}
["Acute scenario for the consumption of Contaminated Fish (Accidental Spill) by Mammal, carnivorous "]
["Short Title","Fish consumption, accidental spill",null,null,"FishKcalV6"]
["Predator","Mammal, carnivorous"]
["Food Item (Prey)","Fish"]
["Duration","Acute",null,null,"Scenario parameter"]
["Parameter/Assumption","Code / Range","Equation/   Value","Units","Reference/Designation"]
["Water"]
["Concentration in water","ConcWat"]
[null,"Central ",{"$f":"B04b!Acute_C","v":0.18168000000000001},"mg/L","='B04b'!Acute_C"]
[null,"Lower ",{"$f":"B04b!Acute_L","v":7.2672000000000006E-3},null,"='B04b'!Acute_L"]
[null,"Upper ",{"$f":"B04b!Acute_U","v":1.4534400000000001},null,"='B04b'!Acute_U"]
["Fish"]
["Bioconcentration factor","BCF"]
[null,"Central ",{"$f":"'B01'!$C$6","v":1},"L/kg","Section 3.2.3.5."]
[null,"Lower ",{"$f":"'B01'!$C$6","v":1},null,"Section 3.2.3.5."]
[null,"Upper ",{"$f":"'B01'!$C$6","v":1},null,"Section 3.2.3.5."]
["Concentration in fish","ConcFish","ConcWat × BCF"]
[null,"Central ",{"$f":"C9*C14","v":0.18168000000000001},"mg/kg","Eq"]
[null,"Lower ",{"$f":"C10*C15","v":7.2672000000000006E-3},null,"Eq"]
[null,"Upper ",{"$f":"C11*C16","v":1.4534400000000001},null,"Eq"]
["Receptor"]
["Body weight","BW",{"$f":"A02b!$C$47","v":5},"kg","U.S. EPA/ORD 1993"]
["Allometric coefficients for caloric requirement per day in kilocalories and BW in grams"]
[null,"alpha",{"$f":"A02b!$C$48","v":0.61670000000000003},null,"U.S. EPA/ORD 1993"]
[null,"beta",{"$f":"A02b!$C$49","v":0.86199999999999999},null,"U.S. EPA/ORD 1993"]
["Caloric requirement per day","KR",{"$f":"C24*(C22*1000)^C25","v":951.88852658889334},"kcal/day","Eq"]
["Caloric content of commodity (dry weight)","KCD",{"$f":"'A03'!$E$59","v":4.47},"kcal/gdw [Note 1]","U.S. EPA/ORD 1993"]
["Food consumed per day (dry weight)","AmntDry"," = KR ÷ KCD"]
[null,null,{"$f":"C26/C27","v":212.95045337559137},"gdry/day","Eq"]
["Water content of vegetation as a proportion","PropWater",{"$f":"'A03'!$E$60","v":0.7},"gwater/gfood","Ali et al. 2005"]
["Dry weight content of vegetation as a proportion","PropDry"," = 1-PropWater"]
[null,null,{"$f":"1-C30","v":0.30000000000000004},"gdry/gfood","Eq"]
["Amount of fish consumed per day,  wet weight","AmntFish"," = (AmntDry ÷ PropDry) ÷ (1000g/kg)"]
[null,"Central ",{"$f":"(C29/C32)/1000","v":0.70983484458530455},"kgfood/day","Eq"]
[null,"Lower ",{"$f":"C34*0.3","v":0.21295045337559135},"Note 1","Eq"]
[null,"Upper ",{"$f":"C34*1.7","v":1.2067192357950176},"Note 1","Eq"]
["Proportion of diet that is contaminated","Prop"]
[null,"Central ",0.3,"Unitless","Scenario parameter"]
[null,"Lower ",0.1,null,"Scenario parameter"]
[null,"Upper ",1,null,"Scenario parameter"]
["Dose"]
["Toxic Equivalency Factor for formulation:  (See risk assessment if this has a value other than 1.)","TEF"]
[null,"Central ",{"$f":"'A01'!C$35","v":1},"Unitless","Worksheet A01"]
[null,"Lower ",{"$f":"'A01'!C$36","v":1},"Note 2","Worksheet A01"]
[null,"Upper ",{"$f":"'A01'!C$37","v":1},"Note 2","Worksheet A01"]
["Dose","Dose","= ConcFish × AmntFish × Prop ÷ BW"]
[null,"Central ",{"$f":"C18*C34*C38/C$22","v":7.7377676738554875E-3},"mg/kg","Eq"]
[null,"Lower ",{"$f":"C19*C35*C39/C$22","v":3.0951070695421951E-5},"mg/kg","Eq"]
[null,"Upper ",0.35077880121478211,"mg/kg","Eq"]
[null,null,null,null,"FishKcalV6"]

{"sheet":"F03c","index":52,"n_rows":50,"n_cols":5,"rows_kept":50,"cut":false,"hidden":false,"merged":[[36,0,39,0],[41,0,44,0],[45,0,48,0],[12,0,15,0],[16,0,19,0],[22,0,24,0],[27,0,28,0],[30,0,31,0],[32,0,33,0],[7,0,10,0],[0,0,0,4],[1,1,1,3],[2,1,2,3],[3,1,3,3],[4,1,4,3]]}
["Acute scenario for the consumption of Contaminated Fish (Accidental Spill) by Bird, piscivorous "]
["Short Title","Fish consumption, accidental spill",null,null,"FishKcalV6"]
["Predator","Bird, piscivorous"]
["Food Item (Prey)","Fish"]
["Duration","Acute",null,null,"Scenario parameter"]
["Parameter/Assumption","Code / Range","Equation/   Value","Units","Reference/Designation"]
["Water"]
["Concentration in water","ConcWat"]
[null,"Central ",{"$f":"B04b!Acute_C","v":0.18168000000000001},"mg/L","='B04b'!Acute_C"]
[null,"Lower ",{"$f":"B04b!Acute_L","v":7.2672000000000006E-3},null,"='B04b'!Acute_L"]
[null,"Upper ",{"$f":"B04b!Acute_U","v":1.4534400000000001},null,"='B04b'!Acute_U"]
["Fish"]
["Bioconcentration factor","BCF"]
[null,"Central ",{"$f":"'B01'!$C$6","v":1},"L/kg","Section 3.2.3.5."]
[null,"Lower ",{"$f":"'B01'!$C$6","v":1},null,"Section 3.2.3.5."]
[null,"Upper ",{"$f":"'B01'!$C$6","v":1},null,"Section 3.2.3.5."]
["Concentration in fish","ConcFish","ConcWat × BCF"]
[null,"Central ",{"$f":"C9*C14","v":0.18168000000000001},"mg/kg","Eq"]
[null,"Lower ",{"$f":"C10*C15","v":7.2672000000000006E-3},null,"Eq"]
[null,"Upper ",{"$f":"C11*C16","v":1.4534400000000001},null,"Eq"]
["Receptor"]
["Body weight","BW",{"$f":"A02b!$C$24","v":2.4},"kg","Sibley 2000"]
["Allometric coefficients for caloric requirement per day in kilocalories and BW in grams"]
[null,"alpha",{"$f":"A02b!$C$27","v":1.9159999999999999},null,"U.S. EPA/ORD 1993"]
[null,"beta",{"$f":"A02b!$C$28","v":0.70399999999999996},null,"U.S. EPA/ORD 1993"]
["Caloric requirement per day","KR",{"$f":"C24*(C22*1000)^C25","v":459.26591923752829},"kcal/day","Eq"]
["Caloric content of commodity (dry weight)","KCD",{"$f":"'A03'!$E$36","v":3.87},"kcal/gdw [Note 1]","U.S. EPA/ORD 1993"]
["Food consumed per day (dry weight)","AmntDry"," = KR ÷ KCD"]
[null,null,{"$f":"C26/C27","v":118.67336414406415},"gdry/day","Eq"]
["Water content of vegetation as a proportion","PropWater",{"$f":"'A03'!$E$37","v":0.7},"gwater/gfood","Ali et al. 2005"]
["Dry weight content of vegetation as a proportion","PropDry"," = 1-PropWater"]
[null,null,{"$f":"1-C30","v":0.30000000000000004},"gdry/gfood","Eq"]
["Amount of fish consumed per day,  wet weight","AmntFish"," = (AmntDry ÷ PropDry) ÷ (1000g/kg)"]
[null,"Central ",{"$f":"(C29/C32)/1000","v":0.39557788048021375},"kgfood/day","Eq"]
[null,"Lower ",{"$f":"C34*0.3","v":0.11867336414406413},"Note 1","Eq"]
[null,"Upper ",{"$f":"C34*1.7","v":0.67248239681636335},"Note 1","Eq"]
["Proportion of diet that is contaminated","Prop"]
[null,"Central ",0.3,"Unitless","Scenario parameter"]
[null,"Lower ",0.1,null,"Scenario parameter"]
[null,"Upper ",1,null,"Scenario parameter"]
["Dose"]
["Toxic Equivalency Factor for formulation:  (See risk assessment if this has a value other than 1.)","TEF"]
[null,"Central ",{"$f":"'A01'!C$35","v":1},"Unitless","Worksheet A01"]
[null,"Lower ",{"$f":"'A01'!C$36","v":1},"Note 2","Worksheet A01"]
[null,"Upper ",{"$f":"'A01'!C$37","v":1},"Note 2","Worksheet A01"]
["Dose","Dose","= ConcFish × AmntFish × Prop ÷ BW"]
[null,"Central ",{"$f":"C18*C34*C38/C$22","v":8.9835736657056554E-3},"mg/kg","Eq"]
[null,"Lower ",{"$f":"C19*C35*C39/C$22","v":3.5934294662822623E-5},"mg/kg","Eq"]
[null,"Upper ",0.40725533951198967,"mg/kg","Eq"]
[null,null,null,null,"FishKcalV6"]

{"sheet":"F08a","index":53,"n_rows":20,"n_cols":5,"rows_kept":20,"cut":false,"hidden":false,"merged":[[16,0,19,0],[0,0,0,4],[1,1,1,3],[2,1,2,3],[5,0,8,0],[11,0,13,0],[14,0,15,0]]}
["Consumption of contaminated water by Mammal, small, Peak Concentrations "]
["Short Title","Peak Concentrations",null,null,"WatAlloV6"]
["Receptor","Mammal, small"]
["Duration","Acute",null,null,"Scenario parameter"]
["Parameter/Assumption","Code / Range","Equation/   Value","Units","Reference/Designation"]
["Concentration in water","ConcWat"]
[null,"Central ",{"$f":"B04a!Acute_C","v":5.1999999999999998E-3},"mg/L","='B04a'!Acute_C"]
[null,"Lower ",{"$f":"B04a!Acute_L","v":4.7999999999999996E-7},null,"='B04a'!Acute_L"]
[null,"Upper ",{"$f":"B04a!Acute_U","v":6.8000000000000005E-2},null,"='B04a'!Acute_U"]
["Receptor"]
["Body weight","BW",{"$f":"A02b!$C$71","v":0.02},"kg","Default"]
["Allometric coefficients forwater consumption per day in liters and BW in kilograms"]
[null,"alpha",{"$f":"A02b!$C$79","v":9.9000000000000005E-2},null,"U.S. EPA/ORD 1993"]
[null,"beta",{"$f":"A02b!$C$80","v":0.9},null,"U.S. EPA/ORD 1993"]
["Amount of water consumed per day",null,"Amnt = alpha BW beta"]
[null,"Amnt",{"$f":"C13*(C11^C14)","v":2.9279401205240612E-3},"liters","Eq"]
["Absorbed Dose","Dose","ConcWat  × Amnt ÷ BW"]
[null,"Central ",{"$f":"C7*C$16/C$11","v":7.6126443133625588E-4},"mg/kg","Eq"]
[null,"Lower ",{"$f":"C8*C$16/C$11","v":7.0270562892577453E-8},"mg/kg","Eq"]
[null,"Upper ",{"$f":"C9*C$16/C$11","v":9.9549964097818081E-3},"mg/kg","Eq"]

{"sheet":"F08b","index":54,"n_rows":20,"n_cols":5,"rows_kept":20,"cut":false,"hidden":false,"merged":[[16,0,19,0],[0,0,0,4],[1,1,1,3],[2,1,2,3],[5,0,8,0],[11,0,13,0],[14,0,15,0]]}
["Consumption of contaminated water by Mammal, 400 g, Peak Concentrations "]
["Short Title","Peak Concentrations",null,null,"WatAlloV6"]
["Receptor","Mammal, 400 g"]
["Duration","Acute",null,null,"Scenario parameter"]
["Parameter/Assumption","Code / Range","Equation/   Value","Units","Reference/Designation"]
["Concentration in water","ConcWat"]
[null,"Central ",{"$f":"B04a!Acute_C","v":5.1999999999999998E-3},"mg/L","='B04a'!Acute_C"]
[null,"Lower ",{"$f":"B04a!Acute_L","v":4.7999999999999996E-7},null,"='B04a'!Acute_L"]
[null,"Upper ",{"$f":"B04a!Acute_U","v":6.8000000000000005E-2},null,"='B04a'!Acute_U"]
["Receptor"]
["Body weight","BW",{"$f":"A02b!$C$40","v":0.4},"kg","Default"]
["Allometric coefficients forwater consumption per day in liters and BW in kilograms"]
[null,"alpha",{"$f":"A02b!$C$45","v":9.9000000000000005E-2},null,"U.S. EPA/ORD 1993"]
[null,"beta",{"$f":"A02b!$C$46","v":0.9},null,"U.S. EPA/ORD 1993"]
["Amount of water consumed per day",null,"Amnt = alpha BW beta"]
[null,"Amnt",{"$f":"C13*(C11^C14)","v":4.3399945764854612E-2},"liters","Eq"]
["Absorbed Dose","Dose","ConcWat  × Amnt ÷ BW"]
[null,"Central ",{"$f":"C7*C$16/C$11","v":5.641992949431099E-4},"mg/kg","Eq"]
[null,"Lower ",{"$f":"C8*C$16/C$11","v":5.2079934917825525E-8},"mg/kg","Eq"]
[null,"Upper ",{"$f":"C9*C$16/C$11","v":7.3779907800252849E-3},"mg/kg","Eq"]

{"sheet":"F08c","index":55,"n_rows":20,"n_cols":5,"rows_kept":20,"cut":false,"hidden":false,"merged":[[16,0,19,0],[0,0,0,4],[1,1,1,3],[2,1,2,3],[5,0,8,0],[11,0,13,0],[14,0,15,0]]}
["Consumption of contaminated water by Mammal, carnivorous, Peak Concentrations "]
["Short Title","Peak Concentrations",null,null,"WatAlloV6"]
["Receptor","Mammal, carnivorous"]
["Duration","Acute",null,null,"Scenario parameter"]
["Parameter/Assumption","Code / Range","Equation/   Value","Units","Reference/Designation"]
["Concentration in water","ConcWat"]
[null,"Central ",{"$f":"B04a!Acute_C","v":5.1999999999999998E-3},"mg/L","='B04a'!Acute_C"]
[null,"Lower ",{"$f":"B04a!Acute_L","v":4.7999999999999996E-7},null,"='B04a'!Acute_L"]
[null,"Upper ",{"$f":"B04a!Acute_U","v":6.8000000000000005E-2},null,"='B04a'!Acute_U"]
["Receptor"]
["Body weight","BW",{"$f":"A02b!$C$47","v":5},"kg","U.S. EPA/ORD 1993"]
["Allometric coefficients forwater consumption per day in liters and BW in kilograms"]
[null,"alpha",{"$f":"A02b!$C$50","v":9.9000000000000005E-2},null,"U.S. EPA/ORD 1993"]
[null,"beta",{"$f":"A02b!$C$51","v":0.9},null,"U.S. EPA/ORD 1993"]
["Amount of water consumed per day",null,"Amnt = alpha BW beta"]
[null,"Amnt",{"$f":"C13*(C11^C14)","v":0.42141326164778842},"liters","Eq"]
["Absorbed Dose","Dose","ConcWat  × Amnt ÷ BW"]
[null,"Central ",{"$f":"C7*C$16/C$11","v":4.3826979211369996E-4},"mg/kg","Eq"]
[null,"Lower ",{"$f":"C8*C$16/C$11","v":4.0455673118187685E-8},"mg/kg","Eq"]
[null,"Upper ",{"$f":"C9*C$16/C$11","v":5.7312203584099228E-3},"mg/kg","Eq"]

{"sheet":"F08d","index":56,"n_rows":20,"n_cols":5,"rows_kept":20,"cut":false,"hidden":false,"merged":[[16,0,19,0],[0,0,0,4],[1,1,1,3],[2,1,2,3],[5,0,8,0],[11,0,13,0],[14,0,15,0]]}
["Consumption of contaminated water by Mammal, large, Peak Concentrations "]
["Short Title","Peak Concentrations",null,null,"WatAlloV6"]
["Receptor","Mammal, large"]
["Duration","Acute",null,null,"Scenario parameter"]
["Parameter/Assumption","Code / Range","Equation/   Value","Units","Reference/Designation"]
["Concentration in water","ConcWat"]
[null,"Central ",{"$f":"B04a!Acute_C","v":5.1999999999999998E-3},"mg/L","='B04a'!Acute_C"]
[null,"Lower ",{"$f":"B04a!Acute_L","v":4.7999999999999996E-7},null,"='B04a'!Acute_L"]
[null,"Upper ",{"$f":"B04a!Acute_U","v":6.8000000000000005E-2},null,"='B04a'!Acute_U"]
["Receptor"]
["Body weight","BW",{"$f":"A02b!$C$61","v":70},"kg","Default"]
["Allometric coefficients forwater consumption per day in liters and BW in kilograms"]
[null,"alpha",{"$f":"A02b!$C$64","v":9.9000000000000005E-2},null,"U.S. EPA/ORD 1993"]
[null,"beta",{"$f":"A02b!$C$65","v":0.9},null,"U.S. EPA/ORD 1993"]
["Amount of water consumed per day",null,"Amnt = alpha BW beta"]
[null,"Amnt",{"$f":"C13*(C11^C14)","v":4.5313064115862725},"liters","Eq"]
["Absorbed Dose","Dose","ConcWat  × Amnt ÷ BW"]
[null,"Central ",{"$f":"C7*C$16/C$11","v":3.3661133343212306E-4},"mg/kg","Eq"]
[null,"Lower ",{"$f":"C8*C$16/C$11","v":3.1071815393734437E-8},"mg/kg","Eq"]
[null,"Upper ",{"$f":"C9*C$16/C$11","v":4.4018405141123792E-3},"mg/kg","Eq"]

{"sheet":"F08e","index":57,"n_rows":20,"n_cols":5,"rows_kept":20,"cut":false,"hidden":false,"merged":[[16,0,19,0],[0,0,0,4],[1,1,1,3],[2,1,2,3],[5,0,8,0],[11,0,13,0],[14,0,15,0]]}
["Consumption of contaminated water by Bird, small, Peak Concentrations "]
["Short Title","Peak Concentrations",null,null,"WatAlloV6"]
["Receptor","Bird, small"]
["Duration","Acute",null,null,"Scenario parameter"]
["Parameter/Assumption","Code / Range","Equation/   Value","Units","Reference/Designation"]
["Concentration in water","ConcWat"]
[null,"Central ",{"$f":"B04a!Acute_C","v":5.1999999999999998E-3},"mg/L","='B04a'!Acute_C"]
[null,"Lower ",{"$f":"B04a!Acute_L","v":4.7999999999999996E-7},null,"='B04a'!Acute_L"]
[null,"Upper ",{"$f":"B04a!Acute_U","v":6.8000000000000005E-2},null,"='B04a'!Acute_U"]
["Receptor"]
["Body weight","BW",{"$f":"A02b!$C$31","v":0.01},"kg","Default"]
["Allometric coefficients forwater consumption per day in liters and BW in kilograms"]
[null,"alpha",{"$f":"A02b!$C$34","v":5.8999999999999997E-2},null,"U.S. EPA/ORD 1993"]
[null,"beta",{"$f":"A02b!$C$35","v":0.67},null,"U.S. EPA/ORD 1993"]
["Amount of water consumed per day",null,"Amnt = alpha BW beta"]
[null,"Amnt",{"$f":"C13*(C11^C14)","v":2.6968203187277624E-3},"liters","Eq"]
["Absorbed Dose","Dose","ConcWat  × Amnt ÷ BW"]
[null,"Central ",{"$f":"C7*C$16/C$11","v":1.4023465657384364E-3},"mg/kg","Eq"]
[null,"Lower ",{"$f":"C8*C$16/C$11","v":1.2944737529893258E-7},"mg/kg","Eq"]
[null,"Upper ",{"$f":"C9*C$16/C$11","v":1.8338378167348787E-2},"mg/kg","Eq"]

{"sheet":"F08f","index":58,"n_rows":20,"n_cols":5,"rows_kept":20,"cut":false,"hidden":false,"merged":[[16,0,19,0],[0,0,0,4],[1,1,1,3],[2,1,2,3],[5,0,8,0],[11,0,13,0],[14,0,15,0]]}
["Consumption of contaminated water by Bird, large, Peak Concentrations "]
["Short Title","Peak Concentrations",null,null,"WatAlloV6"]
["Receptor","Bird, large"]
["Duration","Acute",null,null,"Scenario parameter"]
["Parameter/Assumption","Code / Range","Equation/   Value","Units","Reference/Designation"]
["Concentration in water","ConcWat"]
[null,"Central ",{"$f":"B04a!Acute_C","v":5.1999999999999998E-3},"mg/L","='B04a'!Acute_C"]
[null,"Lower ",{"$f":"B04a!Acute_L","v":4.7999999999999996E-7},null,"='B04a'!Acute_L"]
[null,"Upper ",{"$f":"B04a!Acute_U","v":6.8000000000000005E-2},null,"='B04a'!Acute_U"]
["Receptor"]
["Body weight","BW",{"$f":"A02b!$C$15","v":4},"kg","Default"]
["Allometric coefficients forwater consumption per day in liters and BW in kilograms"]
[null,"alpha",{"$f":"A02b!$C$18","v":5.8999999999999997E-2},null,"U.S. EPA/ORD 1993"]
[null,"beta",{"$f":"A02b!$C$19","v":0.67},null,"U.S. EPA/ORD 1993"]
["Amount of water consumed per day",null,"Amnt = alpha BW beta"]
[null,"Amnt",{"$f":"C13*(C11^C14)","v":0.14935927808849303},"liters","Eq"]
["Absorbed Dose","Dose","ConcWat  × Amnt ÷ BW"]
[null,"Central ",{"$f":"C7*C$16/C$11","v":1.9416706151504092E-4},"mg/kg","Eq"]
[null,"Lower ",{"$f":"C8*C$16/C$11","v":1.7923113370619161E-8},"mg/kg","Eq"]
[null,"Upper ",{"$f":"C9*C$16/C$11","v":2.5391077275043819E-3},"mg/kg","Eq"]

{"sheet":"F11a","index":59,"n_rows":50,"n_cols":5,"rows_kept":50,"cut":false,"hidden":false,"merged":[[36,0,39,0],[41,0,44,0],[45,0,48,0],[12,0,15,0],[16,0,19,0],[22,0,24,0],[27,0,28,0],[30,0,31,0],[32,0,33,0],[7,0,10,0],[0,0,0,4],[1,1,1,3],[2,1,2,3],[3,1,3,3],[4,1,4,3]]}
["Acute scenario for the consumption of Contaminated Fish (Peak) by Mammal, large carnivorous "]
["Short Title","Fish consumption, accidental spill",null,null,"FishKcalV6"]
["Predator","Mammal, large carnivorous"]
["Food Item (Prey)","Fish"]
["Duration","Acute",null,null,"Scenario parameter"]
["Parameter/Assumption","Code / Range","Equation/   Value","Units","Reference/Designation"]
["Water"]
["Concentration in water","ConcWat"]
[null,"Central ",{"$f":"B04a!Acute_C","v":5.1999999999999998E-3},"mg/L","='B04a'!Acute_C"]
[null,"Lower ",{"$f":"B04a!Acute_L","v":4.7999999999999996E-7},null,"='B04a'!Acute_L"]
[null,"Upper ",{"$f":"B04a!Acute_U","v":6.8000000000000005E-2},null,"='B04a'!Acute_U"]
["Fish"]
["Bioconcentration factor","BCF"]
[null,"Central ",{"$f":"'B01'!$C$6","v":1},"L/kg","Section 3.2.3.5."]
[null,"Lower ",{"$f":"'B01'!$C$6","v":1},null,"Section 3.2.3.5."]
[null,"Upper ",{"$f":"'B01'!$C$6","v":1},null,"Section 3.2.3.5."]
["Concentration in fish","ConcFish","ConcWat × BCF"]
[null,"Central ",{"$f":"C9*C14","v":5.1999999999999998E-3},"mg/kg","Eq"]
[null,"Lower ",{"$f":"C10*C15","v":4.7999999999999996E-7},null,"Eq"]
[null,"Upper ",{"$f":"C11*C16","v":6.8000000000000005E-2},null,"Eq"]
["Receptor"]
["Body weight","BW",{"$f":"A02b!$C$52","v":70},"kg","Reid 2006"]
["Allometric coefficients for caloric requirement per day in kilocalories and BW in grams"]
[null,"alpha",{"$f":"A02b!$C$53","v":0.61670000000000003},null,"U.S. EPA/ORD 1993"]
[null,"beta",{"$f":"A02b!$C$54","v":0.86199999999999999},null,"U.S. EPA/ORD 1993"]
["Caloric requirement per day","KR",{"$f":"C24*(C22*1000)^C25","v":9258.6668828796119},"kcal/day","Eq"]
["Caloric content of commodity (dry weight)","KCD",{"$f":"'A03'!$E$59","v":4.47},"kcal/gdw [Note 1]","U.S. EPA/ORD 1993"]
["Food consumed per day (dry weight)","AmntDry"," = KR ÷ KCD"]
[null,null,{"$f":"C26/C27","v":2071.2901303981234},"gdry/day","Eq"]
["Water content of vegetation as a proportion","PropWater",{"$f":"'A03'!$E$60","v":0.7},"gwater/gfood","Ali et al. 2005"]
["Dry weight content of vegetation as a proportion","PropDry"," = 1-PropWater"]
[null,null,{"$f":"1-C30","v":0.30000000000000004},"gdry/gfood","Eq"]
["Amount of fish consumed per day,  wet weight","AmntFish"," = (AmntDry ÷ PropDry) ÷ (1000g/kg)"]
[null,"Central ",{"$f":"(C29/C32)/1000","v":6.90430043466041},"kgfood/day","Eq"]
[null,"Lower ",{"$f":"C34*0.3","v":2.0712901303981228},"Note 1","Eq"]
[null,"Upper ",{"$f":"C34*1.7","v":11.737310738922696},"Note 1","Eq"]
["Proportion of diet that is contaminated","Prop"]
[null,"Central ",0.3,"Unitless","Scenario parameter"]
[null,"Lower ",0.1,null,"Scenario parameter"]
[null,"Upper ",1,null,"Scenario parameter"]
["Dose"]
["Toxic Equivalency Factor for formulation:  (See risk assessment if this has a value other than 1.)","TEF"]
[null,"Central ",{"$f":"'A01'!C$35","v":1},"Unitless","Worksheet A01"]
[null,"Lower ",{"$f":"'A01'!C$36","v":1},"Note 2","Worksheet A01"]
[null,"Upper ",{"$f":"'A01'!C$37","v":1},"Note 2","Worksheet A01"]
["Dose","Dose","= ConcFish × AmntFish × Prop ÷ BW"]
[null,"Central ",{"$f":"C18*C34*C38/C$22","v":1.5386726682957484E-4},"mg/kg","Eq"]
[null,"Lower ",{"$f":"C19*C35*C39/C$22","v":1.4203132322729984E-9},"mg/kg","Eq"]
[null,"Upper ",1.1401959003524906E-2,"mg/kg","Eq"]
[null,null,null,null,"FishKcalV6"]

{"sheet":"F11b","index":60,"n_rows":50,"n_cols":5,"rows_kept":50,"cut":false,"hidden":false,"merged":[[36,0,39,0],[41,0,44,0],[45,0,48,0],[12,0,15,0],[16,0,19,0],[22,0,24,0],[27,0,28,0],[30,0,31,0],[32,0,33,0],[7,0,10,0],[0,0,0,4],[1,1,1,3],[2,1,2,3],[3,1,3,3],[4,1,4,3]]}
["Acute scenario for the consumption of Contaminated Fish (Peak) by Mammal, carnivorous "]
["Short Title","Fish consumption, accidental spill",null,null,"FishKcalV6"]
["Predator","Mammal, carnivorous"]
["Food Item (Prey)","Fish"]
["Duration","Acute",null,null,"Scenario parameter"]
["Parameter/Assumption","Code / Range","Equation/   Value","Units","Reference/Designation"]
["Water"]
["Concentration in water","ConcWat"]
[null,"Central ",{"$f":"B04a!Acute_C","v":5.1999999999999998E-3},"mg/L","='B04a'!Acute_C"]
[null,"Lower ",{"$f":"B04a!Acute_L","v":4.7999999999999996E-7},null,"='B04a'!Acute_L"]
[null,"Upper ",{"$f":"B04a!Acute_U","v":6.8000000000000005E-2},null,"='B04a'!Acute_U"]
["Fish"]
["Bioconcentration factor","BCF"]
[null,"Central ",{"$f":"'B01'!$C$6","v":1},"L/kg","Section 3.2.3.5."]
[null,"Lower ",{"$f":"'B01'!$C$6","v":1},null,"Section 3.2.3.5."]
[null,"Upper ",{"$f":"'B01'!$C$6","v":1},null,"Section 3.2.3.5."]
["Concentration in fish","ConcFish","ConcWat × BCF"]
[null,"Central ",{"$f":"C9*C14","v":5.1999999999999998E-3},"mg/kg","Eq"]
[null,"Lower ",{"$f":"C10*C15","v":4.7999999999999996E-7},null,"Eq"]
[null,"Upper ",{"$f":"C11*C16","v":6.8000000000000005E-2},null,"Eq"]
["Receptor"]
["Body weight","BW",{"$f":"A02b!$C$47","v":5},"kg","U.S. EPA/ORD 1993"]
["Allometric coefficients for caloric requirement per day in kilocalories and BW in grams"]
[null,"alpha",{"$f":"A02b!$C$48","v":0.61670000000000003},null,"U.S. EPA/ORD 1993"]
[null,"beta",{"$f":"A02b!$C$49","v":0.86199999999999999},null,"U.S. EPA/ORD 1993"]
["Caloric requirement per day","KR",{"$f":"C24*(C22*1000)^C25","v":951.88852658889334},"kcal/day","Eq"]
["Caloric content of commodity (dry weight)","KCD",{"$f":"'A03'!$E$59","v":4.47},"kcal/gdw [Note 1]","U.S. EPA/ORD 1993"]
["Food consumed per day (dry weight)","AmntDry"," = KR ÷ KCD"]
[null,null,{"$f":"C26/C27","v":212.95045337559137},"gdry/day","Eq"]
["Water content of vegetation as a proportion","PropWater",{"$f":"'A03'!$E$60","v":0.7},"gwater/gfood","Ali et al. 2005"]
["Dry weight content of vegetation as a proportion","PropDry"," = 1-PropWater"]
[null,null,{"$f":"1-C30","v":0.30000000000000004},"gdry/gfood","Eq"]
["Amount of fish consumed per day,  wet weight","AmntFish"," = (AmntDry ÷ PropDry) ÷ (1000g/kg)"]
[null,"Central ",{"$f":"(C29/C32)/1000","v":0.70983484458530455},"kgfood/day","Eq"]
[null,"Lower ",{"$f":"C34*0.3","v":0.21295045337559135},"Note 1","Eq"]
[null,"Upper ",{"$f":"C34*1.7","v":1.2067192357950176},"Note 1","Eq"]
["Proportion of diet that is contaminated","Prop"]
[null,"Central ",0.3,"Unitless","Scenario parameter"]
[null,"Lower ",0.1,null,"Scenario parameter"]
[null,"Upper ",1,null,"Scenario parameter"]
["Dose"]
["Toxic Equivalency Factor for formulation:  (See risk assessment if this has a value other than 1.)","TEF"]
[null,"Central ",{"$f":"'A01'!C$35","v":1},"Unitless","Worksheet A01"]
[null,"Lower ",{"$f":"'A01'!C$36","v":1},"Note 2","Worksheet A01"]
[null,"Upper ",{"$f":"'A01'!C$37","v":1},"Note 2","Worksheet A01"]
["Dose","Dose","= ConcFish × AmntFish × Prop ÷ BW"]
[null,"Central ",{"$f":"C18*C34*C38/C$22","v":2.2146847151061498E-4},"mg/kg","Eq"]
[null,"Lower ",{"$f":"C19*C35*C39/C$22","v":2.0443243524056769E-9},"mg/kg","Eq"]
[null,"Upper ",1.6411381606812242E-2,"mg/kg","Eq"]
[null,null,null,null,"FishKcalV6"]

{"sheet":"F11c","index":61,"n_rows":50,"n_cols":5,"rows_kept":50,"cut":false,"hidden":false,"merged":[[36,0,39,0],[41,0,44,0],[45,0,48,0],[12,0,15,0],[16,0,19,0],[22,0,24,0],[27,0,28,0],[30,0,31,0],[32,0,33,0],[7,0,10,0],[0,0,0,4],[1,1,1,3],[2,1,2,3],[3,1,3,3],[4,1,4,3]]}
["Acute scenario for the consumption of Contaminated Fish (Peak) by Bird, piscivorous "]
["Short Title","Fish consumption, accidental spill",null,null,"FishKcalV6"]
["Predator","Bird, piscivorous"]
["Food Item (Prey)","Fish"]
["Duration","Acute",null,null,"Scenario parameter"]
["Parameter/Assumption","Code / Range","Equation/   Value","Units","Reference/Designation"]
["Water"]
["Concentration in water","ConcWat"]
[null,"Central ",{"$f":"B04a!Acute_C","v":5.1999999999999998E-3},"mg/L","='B04a'!Acute_C"]
[null,"Lower ",{"$f":"B04a!Acute_L","v":4.7999999999999996E-7},null,"='B04a'!Acute_L"]
[null,"Upper ",{"$f":"B04a!Acute_U","v":6.8000000000000005E-2},null,"='B04a'!Acute_U"]
["Fish"]
["Bioconcentration factor","BCF"]
[null,"Central ",{"$f":"'B01'!$C$6","v":1},"L/kg","Section 3.2.3.5."]
[null,"Lower ",{"$f":"'B01'!$C$6","v":1},null,"Section 3.2.3.5."]
[null,"Upper ",{"$f":"'B01'!$C$6","v":1},null,"Section 3.2.3.5."]
["Concentration in fish","ConcFish","ConcWat × BCF"]
[null,"Central ",{"$f":"C9*C14","v":5.1999999999999998E-3},"mg/kg","Eq"]
[null,"Lower ",{"$f":"C10*C15","v":4.7999999999999996E-7},null,"Eq"]
[null,"Upper ",{"$f":"C11*C16","v":6.8000000000000005E-2},null,"Eq"]
["Receptor"]
["Body weight","BW",{"$f":"A02b!$C$24","v":2.4},"kg","Sibley 2000"]
["Allometric coefficients for caloric requirement per day in kilocalories and BW in grams"]
[null,"alpha",{"$f":"A02b!$C$27","v":1.9159999999999999},null,"U.S. EPA/ORD 1993"]
[null,"beta",{"$f":"A02b!$C$28","v":0.70399999999999996},null,"U.S. EPA/ORD 1993"]
["Caloric requirement per day","KR",{"$f":"C24*(C22*1000)^C25","v":459.26591923752829},"kcal/day","Eq"]
["Caloric content of commodity (dry weight)","KCD",{"$f":"'A03'!$E$36","v":3.87},"kcal/gdw [Note 1]","U.S. EPA/ORD 1993"]
["Food consumed per day (dry weight)","AmntDry"," = KR ÷ KCD"]
[null,null,{"$f":"C26/C27","v":118.67336414406415},"gdry/day","Eq"]
["Water content of vegetation as a proportion","PropWater",{"$f":"'A03'!$E$37","v":0.7},"gwater/gfood","Ali et al. 2005"]
["Dry weight content of vegetation as a proportion","PropDry"," = 1-PropWater"]
[null,null,{"$f":"1-C30","v":0.30000000000000004},"gdry/gfood","Eq"]
["Amount of fish consumed per day,  wet weight","AmntFish"," = (AmntDry ÷ PropDry) ÷ (1000g/kg)"]
[null,"Central ",{"$f":"(C29/C32)/1000","v":0.39557788048021375},"kgfood/day","Eq"]
[null,"Lower ",{"$f":"C34*0.3","v":0.11867336414406413},"Note 1","Eq"]
[null,"Upper ",{"$f":"C34*1.7","v":0.67248239681636335},"Note 1","Eq"]
["Proportion of diet that is contaminated","Prop"]
[null,"Central ",0.3,"Unitless","Scenario parameter"]
[null,"Lower ",0.1,null,"Scenario parameter"]
[null,"Upper ",1,null,"Scenario parameter"]
["Dose"]
["Toxic Equivalency Factor for formulation:  (See risk assessment if this has a value other than 1.)","TEF"]
[null,"Central ",{"$f":"'A01'!C$35","v":1},"Unitless","Worksheet A01"]
[null,"Lower ",{"$f":"'A01'!C$36","v":1},"Note 2","Worksheet A01"]
[null,"Upper ",{"$f":"'A01'!C$37","v":1},"Note 2","Worksheet A01"]
["Dose","Dose","= ConcFish × AmntFish × Prop ÷ BW"]
[null,"Central ",{"$f":"C18*C34*C38/C$22","v":2.5712562231213892E-4},"mg/kg","Eq"]
[null,"Lower ",{"$f":"C19*C35*C39/C$22","v":2.3734672828812826E-9},"mg/kg","Eq"]
[null,"Upper ",1.9053667909796963E-2,"mg/kg","Eq"]
[null,null,null,null,"FishKcalV6"]

{"sheet":"F16a","index":62,"n_rows":20,"n_cols":5,"rows_kept":20,"cut":false,"hidden":false,"merged":[[16,0,19,0],[0,0,0,4],[1,1,1,3],[2,1,2,3],[5,0,8,0],[11,0,13,0],[14,0,15,0]]}
["Consumption of contaminated water by Mammal, small, Longer-term Concentrations "]
["Short Title","Longer-term Concentrations",null,null,"WatAlloV6"]
["Receptor","Mammal, small"]
["Duration","Chronic",null,null,"Scenario parameter"]
["Parameter/Assumption","Code / Range","Equation/   Value","Units","Reference/Designation"]
["Concentration in water","ConcWat"]
[null,"Central ",{"$f":"B04a!Chronic_C","v":3.3600000000000001E-3},"mg/L","='B04a'!Chronic_C"]
[null,"Lower ",{"$f":"B04a!Chronic_L","v":1.9999999999999999E-7},null,"='B04a'!Chronic_L"]
[null,"Upper ",{"$f":"B04a!Chronic_U","v":1.9200000000000002E-2},null,"='B04a'!Chronic_U"]
["Receptor"]
["Body weight","BW",{"$f":"A02b!$C$71","v":0.02},"kg","Default"]
["Allometric coefficients forwater consumption per day in liters and BW in kilograms"]
[null,"alpha",{"$f":"A02b!$C$79","v":9.9000000000000005E-2},null,"U.S. EPA/ORD 1993"]
[null,"beta",{"$f":"A02b!$C$80","v":0.9},null,"U.S. EPA/ORD 1993"]
["Amount of water consumed per day",null,"Amnt = alpha BW beta"]
[null,"Amnt",{"$f":"C13*(C11^C14)","v":2.9279401205240612E-3},"liters","Eq"]
["Absorbed Dose","Dose","ConcWat  × Amnt ÷ BW"]
[null,"Central ",{"$f":"C7*C$16/C$11","v":4.9189394024804227E-4},"mg/kg","Eq"]
[null,"Lower ",{"$f":"C8*C$16/C$11","v":2.9279401205240612E-8},"mg/kg","Eq"]
[null,"Upper ",{"$f":"C9*C$16/C$11","v":2.8108225157030989E-3},"mg/kg","Eq"]

{"sheet":"F16b","index":63,"n_rows":20,"n_cols":5,"rows_kept":20,"cut":false,"hidden":false,"merged":[[16,0,19,0],[0,0,0,4],[1,1,1,3],[2,1,2,3],[5,0,8,0],[11,0,13,0],[14,0,15,0]]}
["Consumption of contaminated water by Mammal, 400 g, Longer-term Concentrations "]
["Short Title","Longer-term Concentrations",null,null,"WatAlloV6"]
["Receptor","Mammal, 400 g"]
["Duration","Chronic",null,null,"Scenario parameter"]
["Parameter/Assumption","Code / Range","Equation/   Value","Units","Reference/Designation"]
["Concentration in water","ConcWat"]
[null,"Central ",{"$f":"B04a!Chronic_C","v":3.3600000000000001E-3},"mg/L","='B04a'!Chronic_C"]
[null,"Lower ",{"$f":"B04a!Chronic_L","v":1.9999999999999999E-7},null,"='B04a'!Chronic_L"]
[null,"Upper ",{"$f":"B04a!Chronic_U","v":1.9200000000000002E-2},null,"='B04a'!Chronic_U"]
["Receptor"]
["Body weight","BW",{"$f":"A02b!$C$40","v":0.4},"kg","Default"]
["Allometric coefficients forwater consumption per day in liters and BW in kilograms"]
[null,"alpha",{"$f":"A02b!$C$45","v":9.9000000000000005E-2},null,"U.S. EPA/ORD 1993"]
[null,"beta",{"$f":"A02b!$C$46","v":0.9},null,"U.S. EPA/ORD 1993"]
["Amount of water consumed per day",null,"Amnt = alpha BW beta"]
[null,"Amnt",{"$f":"C13*(C11^C14)","v":4.3399945764854612E-2},"liters","Eq"]
["Absorbed Dose","Dose","ConcWat  × Amnt ÷ BW"]
[null,"Central ",{"$f":"C7*C$16/C$11","v":3.6455954442477873E-4},"mg/kg","Eq"]
[null,"Lower ",{"$f":"C8*C$16/C$11","v":2.1699972882427301E-8},"mg/kg","Eq"]
[null,"Upper ",{"$f":"C9*C$16/C$11","v":2.0831973967130215E-3},"mg/kg","Eq"]

{"sheet":"F16c","index":64,"n_rows":20,"n_cols":5,"rows_kept":20,"cut":false,"hidden":false,"merged":[[16,0,19,0],[0,0,0,4],[1,1,1,3],[2,1,2,3],[5,0,8,0],[11,0,13,0],[14,0,15,0]]}
["Consumption of contaminated water by Mammal, carnivorous, Longer-term Concentrations "]
["Short Title","Longer-term Concentrations",null,null,"WatAlloV6"]
["Receptor","Mammal, carnivorous"]
["Duration","Chronic",null,null,"Scenario parameter"]
["Parameter/Assumption","Code / Range","Equation/   Value","Units","Reference/Designation"]
["Concentration in water","ConcWat"]
[null,"Central ",{"$f":"B04a!Chronic_C","v":3.3600000000000001E-3},"mg/L","='B04a'!Chronic_C"]
[null,"Lower ",{"$f":"B04a!Chronic_L","v":1.9999999999999999E-7},null,"='B04a'!Chronic_L"]
[null,"Upper ",{"$f":"B04a!Chronic_U","v":1.9200000000000002E-2},null,"='B04a'!Chronic_U"]
["Receptor"]
["Body weight","BW",{"$f":"A02b!$C$47","v":5},"kg","U.S. EPA/ORD 1993"]
["Allometric coefficients forwater consumption per day in liters and BW in kilograms"]
[null,"alpha",{"$f":"A02b!$C$50","v":9.9000000000000005E-2},null,"U.S. EPA/ORD 1993"]
[null,"beta",{"$f":"A02b!$C$51","v":0.9},null,"U.S. EPA/ORD 1993"]
["Amount of water consumed per day",null,"Amnt = alpha BW beta"]
[null,"Amnt",{"$f":"C13*(C11^C14)","v":0.42141326164778842},"liters","Eq"]
["Absorbed Dose","Dose","ConcWat  × Amnt ÷ BW"]
[null,"Central ",{"$f":"C7*C$16/C$11","v":2.8318971182731382E-4},"mg/kg","Eq"]
[null,"Lower ",{"$f":"C8*C$16/C$11","v":1.6856530465911537E-8},"mg/kg","Eq"]
[null,"Upper ",{"$f":"C9*C$16/C$11","v":1.6182269247275078E-3},"mg/kg","Eq"]

{"sheet":"F16d","index":65,"n_rows":20,"n_cols":5,"rows_kept":20,"cut":false,"hidden":false,"merged":[[16,0,19,0],[0,0,0,4],[1,1,1,3],[2,1,2,3],[5,0,8,0],[11,0,13,0],[14,0,15,0]]}
["Consumption of contaminated water by Mammal, large, Longer-term Concentrations "]
["Short Title","Longer-term Concentrations",null,null,"WatAlloV6"]
["Receptor","Mammal, large"]
["Duration","Chronic",null,null,"Scenario parameter"]
["Parameter/Assumption","Code / Range","Equation/   Value","Units","Reference/Designation"]
["Concentration in water","ConcWat"]
[null,"Central ",{"$f":"B04a!Chronic_C","v":3.3600000000000001E-3},"mg/L","='B04a'!Chronic_C"]
[null,"Lower ",{"$f":"B04a!Chronic_L","v":1.9999999999999999E-7},null,"='B04a'!Chronic_L"]
[null,"Upper ",{"$f":"B04a!Chronic_U","v":1.9200000000000002E-2},null,"='B04a'!Chronic_U"]
["Receptor"]
["Body weight","BW",{"$f":"A02b!$C$61","v":70},"kg","Default"]
["Allometric coefficients forwater consumption per day in liters and BW in kilograms"]
[null,"alpha",{"$f":"A02b!$C$64","v":9.9000000000000005E-2},null,"U.S. EPA/ORD 1993"]
[null,"beta",{"$f":"A02b!$C$65","v":0.9},null,"U.S. EPA/ORD 1993"]
["Amount of water consumed per day",null,"Amnt = alpha BW beta"]
[null,"Amnt",{"$f":"C13*(C11^C14)","v":4.5313064115862725},"liters","Eq"]
["Absorbed Dose","Dose","ConcWat  × Amnt ÷ BW"]
[null,"Central ",{"$f":"C7*C$16/C$11","v":2.1750270775614108E-4},"mg/kg","Eq"]
[null,"Lower ",{"$f":"C8*C$16/C$11","v":1.2946589747389349E-8},"mg/kg","Eq"]
[null,"Upper ",{"$f":"C9*C$16/C$11","v":1.2428726157493776E-3},"mg/kg","Eq"]

{"sheet":"F16e","index":66,"n_rows":20,"n_cols":5,"rows_kept":20,"cut":false,"hidden":false,"merged":[[16,0,19,0],[0,0,0,4],[1,1,1,3],[2,1,2,3],[5,0,8,0],[11,0,13,0],[14,0,15,0]]}
["Consumption of contaminated water by Bird, small, Longer-term Concentrations "]
["Short Title","Longer-term Concentrations",null,null,"WatAlloV6"]
["Receptor","Bird, small"]
["Duration","Chronic",null,null,"Scenario parameter"]
["Parameter/Assumption","Code / Range","Equation/   Value","Units","Reference/Designation"]
["Concentration in water","ConcWat"]
[null,"Central ",{"$f":"B04a!Chronic_C","v":3.3600000000000001E-3},"mg/L","='B04a'!Chronic_C"]
[null,"Lower ",{"$f":"B04a!Chronic_L","v":1.9999999999999999E-7},null,"='B04a'!Chronic_L"]
[null,"Upper ",{"$f":"B04a!Chronic_U","v":1.9200000000000002E-2},null,"='B04a'!Chronic_U"]
["Receptor"]
["Body weight","BW",{"$f":"A02b!$C$31","v":0.01},"kg","Default"]
["Allometric coefficients forwater consumption per day in liters and BW in kilograms"]
[null,"alpha",{"$f":"A02b!$C$34","v":5.8999999999999997E-2},null,"U.S. EPA/ORD 1993"]
[null,"beta",{"$f":"A02b!$C$35","v":0.67},null,"U.S. EPA/ORD 1993"]
["Amount of water consumed per day",null,"Amnt = alpha BW beta"]
[null,"Amnt",{"$f":"C13*(C11^C14)","v":2.6968203187277624E-3},"liters","Eq"]
["Absorbed Dose","Dose","ConcWat  × Amnt ÷ BW"]
[null,"Central ",{"$f":"C7*C$16/C$11","v":9.061316270925282E-4},"mg/kg","Eq"]
[null,"Lower ",{"$f":"C8*C$16/C$11","v":5.3936406374555247E-8},"mg/kg","Eq"]
[null,"Upper ",{"$f":"C9*C$16/C$11","v":5.1778950119573041E-3},"mg/kg","Eq"]

{"sheet":"F16f","index":67,"n_rows":20,"n_cols":5,"rows_kept":20,"cut":false,"hidden":false,"merged":[[16,0,19,0],[0,0,0,4],[1,1,1,3],[2,1,2,3],[5,0,8,0],[11,0,13,0],[14,0,15,0]]}
["Consumption of contaminated water by Bird, large, Longer-term Concentrations "]
["Short Title","Longer-term Concentrations",null,null,"WatAlloV6"]
["Receptor","Bird, large"]
["Duration","Chronic",null,null,"Scenario parameter"]
["Parameter/Assumption","Code / Range","Equation/   Value","Units","Reference/Designation"]
["Concentration in water","ConcWat"]
[null,"Central ",{"$f":"B04a!Chronic_C","v":3.3600000000000001E-3},"mg/L","='B04a'!Chronic_C"]
[null,"Lower ",{"$f":"B04a!Chronic_L","v":1.9999999999999999E-7},null,"='B04a'!Chronic_L"]
[null,"Upper ",{"$f":"B04a!Chronic_U","v":1.9200000000000002E-2},null,"='B04a'!Chronic_U"]
["Receptor"]
["Body weight","BW",{"$f":"A02b!$C$15","v":4},"kg","Default"]
["Allometric coefficients forwater consumption per day in liters and BW in kilograms"]
[null,"alpha",{"$f":"A02b!$C$18","v":5.8999999999999997E-2},null,"U.S. EPA/ORD 1993"]
[null,"beta",{"$f":"A02b!$C$19","v":0.67},null,"U.S. EPA/ORD 1993"]
["Amount of water consumed per day",null,"Amnt = alpha BW beta"]
[null,"Amnt",{"$f":"C13*(C11^C14)","v":0.14935927808849303},"liters","Eq"]
["Absorbed Dose","Dose","ConcWat  × Amnt ÷ BW"]
[null,"Central ",{"$f":"C7*C$16/C$11","v":1.2546179359433415E-4},"mg/kg","Eq"]
[null,"Lower ",{"$f":"C8*C$16/C$11","v":7.4679639044246515E-9},"mg/kg","Eq"]
[null,"Upper ",{"$f":"C9*C$16/C$11","v":7.1692453482476658E-4},"mg/kg","Eq"]

{"sheet":"F17a","index":68,"n_rows":50,"n_cols":5,"rows_kept":50,"cut":false,"hidden":false,"merged":[[36,0,39,0],[41,0,44,0],[45,0,48,0],[12,0,15,0],[16,0,19,0],[22,0,24,0],[27,0,28,0],[30,0,31,0],[32,0,33,0],[7,0,10,0],[0,0,0,4],[1,1,1,3],[2,1,2,3],[3,1,3,3],[4,1,4,3]]}
["Chronic scenario for the consumption of Contaminated Fish (Longer-term) by Mammal, large carnivorous "]
["Short Title","Fish consumption, accidental spill",null,null,"FishKcalV6"]
["Predator","Mammal, large carnivorous"]
["Food Item (Prey)","Fish"]
["Duration","Chronic",null,null,"Scenario parameter"]
["Parameter/Assumption","Code / Range","Equation/   Value","Units","Reference/Designation"]
["Water"]
["Concentration in water","ConcWat"]
[null,"Central ",{"$f":"B04a!Chronic_C","v":3.3600000000000001E-3},"mg/L","='B04a'!Chronic_C"]
[null,"Lower ",{"$f":"B04a!Chronic_L","v":1.9999999999999999E-7},null,"='B04a'!Chronic_L"]
[null,"Upper ",{"$f":"B04a!Chronic_U","v":1.9200000000000002E-2},null,"='B04a'!Chronic_U"]
["Fish"]
["Bioconcentration factor","BCF"]
[null,"Central ",{"$f":"'B01'!$C$6","v":1},"L/kg","Section 3.2.3.5."]
[null,"Lower ",{"$f":"'B01'!$C$6","v":1},null,"Section 3.2.3.5."]
[null,"Upper ",{"$f":"'B01'!$C$6","v":1},null,"Section 3.2.3.5."]
["Concentration in fish","ConcFish","ConcWat × BCF"]
[null,"Central ",{"$f":"C9*C14","v":3.3600000000000001E-3},"mg/kg","Eq"]
[null,"Lower ",{"$f":"C10*C15","v":1.9999999999999999E-7},null,"Eq"]
[null,"Upper ",{"$f":"C11*C16","v":1.9200000000000002E-2},null,"Eq"]
["Receptor"]
["Body weight","BW",{"$f":"A02b!$C$52","v":70},"kg","Reid 2006"]
["Allometric coefficients for caloric requirement per day in kilocalories and BW in grams"]
[null,"alpha",{"$f":"A02b!$C$53","v":0.61670000000000003},null,"U.S. EPA/ORD 1993"]
[null,"beta",{"$f":"A02b!$C$54","v":0.86199999999999999},null,"U.S. EPA/ORD 1993"]
["Caloric requirement per day","KR",{"$f":"C24*(C22*1000)^C25","v":9258.6668828796119},"kcal/day","Eq"]
["Caloric content of commodity (dry weight)","KCD",{"$f":"'A03'!$E$59","v":4.47},"kcal/gdw [Note 1]","U.S. EPA/ORD 1993"]
["Food consumed per day (dry weight)","AmntDry"," = KR ÷ KCD"]
[null,null,{"$f":"C26/C27","v":2071.2901303981234},"gdry/day","Eq"]
["Water content of vegetation as a proportion","PropWater",{"$f":"'A03'!$E$60","v":0.7},"gwater/gfood","Ali et al. 2005"]
["Dry weight content of vegetation as a proportion","PropDry"," = 1-PropWater"]
[null,null,{"$f":"1-C30","v":0.30000000000000004},"gdry/gfood","Eq"]
["Amount of fish consumed per day,  wet weight","AmntFish"," = (AmntDry ÷ PropDry) ÷ (1000g/kg)"]
[null,"Central ",{"$f":"(C29/C32)/1000","v":6.90430043466041},"kgfood/day","Eq"]
[null,"Lower ",{"$f":"C34*0.3","v":2.0712901303981228},"Note 1","Eq"]
[null,"Upper ",{"$f":"C34*1.7","v":11.737310738922696},"Note 1","Eq"]
["Proportion of diet that is contaminated","Prop"]
[null,"Central ",0.3,"Unitless","Scenario parameter"]
[null,"Lower ",0.1,null,"Scenario parameter"]
[null,"Upper ",1,null,"Scenario parameter"]
["Dose"]
["Toxic Equivalency Factor for formulation:  (See risk assessment if this has a value other than 1.)","TEF"]
[null,"Central ",{"$f":"'A01'!C$35","v":1},"Unitless","Worksheet A01"]
[null,"Lower ",{"$f":"'A01'!C$36","v":1},"Note 2","Worksheet A01"]
[null,"Upper ",{"$f":"'A01'!C$37","v":1},"Note 2","Worksheet A01"]
["Dose","Dose","= ConcFish × AmntFish × Prop ÷ BW"]
[null,"Central ",{"$f":"C18*C34*C38/C$22","v":9.9421926259109908E-5},"mg/kg","Eq"]
[null,"Lower ",{"$f":"C19*C35*C39/C$22","v":5.9179718011374934E-10},"mg/kg","Eq"]
[null,"Upper ",3.2193766598187967E-3,"mg/kg","Eq"]
[null,null,null,null,"FishKcalV6"]

{"sheet":"F17b","index":69,"n_rows":50,"n_cols":5,"rows_kept":50,"cut":false,"hidden":false,"merged":[[36,0,39,0],[41,0,44,0],[45,0,48,0],[12,0,15,0],[16,0,19,0],[22,0,24,0],[27,0,28,0],[30,0,31,0],[32,0,33,0],[7,0,10,0],[0,0,0,4],[1,1,1,3],[2,1,2,3],[3,1,3,3],[4,1,4,3]]}
["Chronic scenario for the consumption of Contaminated Fish (Longer-term) by Mammal, carnivorous "]
["Short Title","Fish consumption, accidental spill",null,null,"FishKcalV6"]
["Predator","Mammal, carnivorous"]
["Food Item (Prey)","Fish"]
["Duration","Chronic",null,null,"Scenario parameter"]
["Parameter/Assumption","Code / Range","Equation/   Value","Units","Reference/Designation"]
["Water"]
["Concentration in water","ConcWat"]
[null,"Central ",{"$f":"B04a!Chronic_C","v":3.3600000000000001E-3},"mg/L","='B04a'!Chronic_C"]
[null,"Lower ",{"$f":"B04a!Chronic_L","v":1.9999999999999999E-7},null,"='B04a'!Chronic_L"]
[null,"Upper ",{"$f":"B04a!Chronic_U","v":1.9200000000000002E-2},null,"='B04a'!Chronic_U"]
["Fish"]
["Bioconcentration factor","BCF"]
[null,"Central ",{"$f":"'B01'!$C$6","v":1},"L/kg","Section 3.2.3.5."]
[null,"Lower ",{"$f":"'B01'!$C$6","v":1},null,"Section 3.2.3.5."]
[null,"Upper ",{"$f":"'B01'!$C$6","v":1},null,"Section 3.2.3.5."]
["Concentration in fish","ConcFish","ConcWat × BCF"]
[null,"Central ",{"$f":"C9*C14","v":3.3600000000000001E-3},"mg/kg","Eq"]
[null,"Lower ",{"$f":"C10*C15","v":1.9999999999999999E-7},null,"Eq"]
[null,"Upper ",{"$f":"C11*C16","v":1.9200000000000002E-2},null,"Eq"]
["Receptor"]
["Body weight","BW",{"$f":"A02b!$C$47","v":5},"kg","U.S. EPA/ORD 1993"]
["Allometric coefficients for caloric requirement per day in kilocalories and BW in grams"]
[null,"alpha",{"$f":"A02b!$C$48","v":0.61670000000000003},null,"U.S. EPA/ORD 1993"]
[null,"beta",{"$f":"A02b!$C$49","v":0.86199999999999999},null,"U.S. EPA/ORD 1993"]
["Caloric requirement per day","KR",{"$f":"C24*(C22*1000)^C25","v":951.88852658889334},"kcal/day","Eq"]
["Caloric content of commodity (dry weight)","KCD",{"$f":"'A03'!$E$59","v":4.47},"kcal/gdw [Note 1]","U.S. EPA/ORD 1993"]
["Food consumed per day (dry weight)","AmntDry"," = KR ÷ KCD"]
[null,null,{"$f":"C26/C27","v":212.95045337559137},"gdry/day","Eq"]
["Water content of vegetation as a proportion","PropWater",{"$f":"'A03'!$E$60","v":0.7},"gwater/gfood","Ali et al. 2005"]
["Dry weight content of vegetation as a proportion","PropDry"," = 1-PropWater"]
[null,null,{"$f":"1-C30","v":0.30000000000000004},"gdry/gfood","Eq"]
["Amount of fish consumed per day,  wet weight","AmntFish"," = (AmntDry ÷ PropDry) ÷ (1000g/kg)"]
[null,"Central ",{"$f":"(C29/C32)/1000","v":0.70983484458530455},"kgfood/day","Eq"]
[null,"Lower ",{"$f":"C34*0.3","v":0.21295045337559135},"Note 1","Eq"]
[null,"Upper ",{"$f":"C34*1.7","v":1.2067192357950176},"Note 1","Eq"]
["Proportion of diet that is contaminated","Prop"]
[null,"Central ",0.3,"Unitless","Scenario parameter"]
[null,"Lower ",0.1,null,"Scenario parameter"]
[null,"Upper ",1,null,"Scenario parameter"]
["Dose"]
["Toxic Equivalency Factor for formulation:  (See risk assessment if this has a value other than 1.)","TEF"]
[null,"Central ",{"$f":"'A01'!C$35","v":1},"Unitless","Worksheet A01"]
[null,"Lower ",{"$f":"'A01'!C$36","v":1},"Note 2","Worksheet A01"]
[null,"Upper ",{"$f":"'A01'!C$37","v":1},"Note 2","Worksheet A01"]
["Dose","Dose","= ConcFish × AmntFish × Prop ÷ BW"]
[null,"Central ",{"$f":"C18*C34*C38/C$22","v":1.4310270466839738E-4},"mg/kg","Eq"]
[null,"Lower ",{"$f":"C19*C35*C39/C$22","v":8.5180181350236542E-10},"mg/kg","Eq"]
[null,"Upper ",4.6338018654528681E-3,"mg/kg","Eq"]
[null,null,null,null,"FishKcalV6"]

{"sheet":"F17c","index":70,"n_rows":50,"n_cols":5,"rows_kept":50,"cut":false,"hidden":false,"merged":[[36,0,39,0],[41,0,44,0],[45,0,48,0],[12,0,15,0],[16,0,19,0],[22,0,24,0],[27,0,28,0],[30,0,31,0],[32,0,33,0],[7,0,10,0],[0,0,0,4],[1,1,1,3],[2,1,2,3],[3,1,3,3],[4,1,4,3]]}
["Chronic scenario for the consumption of Contaminated Fish (Longer-term) by Bird, piscivorous "]
["Short Title","Fish consumption, accidental spill",null,null,"FishKcalV6"]
["Predator","Bird, piscivorous"]
["Food Item (Prey)","Fish"]
["Duration","Chronic",null,null,"Scenario parameter"]
["Parameter/Assumption","Code / Range","Equation/   Value","Units","Reference/Designation"]
["Water"]
["Concentration in water","ConcWat"]
[null,"Central ",{"$f":"B04a!Chronic_C","v":3.3600000000000001E-3},"mg/L","='B04a'!Chronic_C"]
[null,"Lower ",{"$f":"B04a!Chronic_L","v":1.9999999999999999E-7},null,"='B04a'!Chronic_L"]
[null,"Upper ",{"$f":"B04a!Chronic_U","v":1.9200000000000002E-2},null,"='B04a'!Chronic_U"]
["Fish"]
["Bioconcentration factor","BCF"]
[null,"Central ",{"$f":"'B01'!$C$6","v":1},"L/kg","Section 3.2.3.5."]
[null,"Lower ",{"$f":"'B01'!$C$6","v":1},null,"Section 3.2.3.5."]
[null,"Upper ",{"$f":"'B01'!$C$6","v":1},null,"Section 3.2.3.5."]
["Concentration in fish","ConcFish","ConcWat × BCF"]
[null,"Central ",{"$f":"C9*C14","v":3.3600000000000001E-3},"mg/kg","Eq"]
[null,"Lower ",{"$f":"C10*C15","v":1.9999999999999999E-7},null,"Eq"]
[null,"Upper ",{"$f":"C11*C16","v":1.9200000000000002E-2},null,"Eq"]
["Receptor"]
["Body weight","BW",{"$f":"A02b!$C$24","v":2.4},"kg","Sibley 2000"]
["Allometric coefficients for caloric requirement per day in kilocalories and BW in grams"]
[null,"alpha",{"$f":"A02b!$C$27","v":1.9159999999999999},null,"U.S. EPA/ORD 1993"]
[null,"beta",{"$f":"A02b!$C$28","v":0.70399999999999996},null,"U.S. EPA/ORD 1993"]
["Caloric requirement per day","KR",{"$f":"C24*(C22*1000)^C25","v":459.26591923752829},"kcal/day","Eq"]
["Caloric content of commodity (dry weight)","KCD",{"$f":"'A03'!$E$36","v":3.87},"kcal/gdw [Note 1]","U.S. EPA/ORD 1993"]
["Food consumed per day (dry weight)","AmntDry"," = KR ÷ KCD"]
[null,null,{"$f":"C26/C27","v":118.67336414406415},"gdry/day","Eq"]
["Water content of vegetation as a proportion","PropWater",{"$f":"'A03'!$E$37","v":0.7},"gwater/gfood","Ali et al. 2005"]
["Dry weight content of vegetation as a proportion","PropDry"," = 1-PropWater"]
[null,null,{"$f":"1-C30","v":0.30000000000000004},"gdry/gfood","Eq"]
["Amount of fish consumed per day,  wet weight","AmntFish"," = (AmntDry ÷ PropDry) ÷ (1000g/kg)"]
[null,"Central ",{"$f":"(C29/C32)/1000","v":0.39557788048021375},"kgfood/day","Eq"]
[null,"Lower ",{"$f":"C34*0.3","v":0.11867336414406413},"Note 1","Eq"]
[null,"Upper ",{"$f":"C34*1.7","v":0.67248239681636335},"Note 1","Eq"]
["Proportion of diet that is contaminated","Prop"]
[null,"Central ",0.3,"Unitless","Scenario parameter"]
[null,"Lower ",0.1,null,"Scenario parameter"]
[null,"Upper ",1,null,"Scenario parameter"]
["Dose"]
["Toxic Equivalency Factor for formulation:  (See risk assessment if this has a value other than 1.)","TEF"]
[null,"Central ",{"$f":"'A01'!C$35","v":1},"Unitless","Worksheet A01"]
[null,"Lower ",{"$f":"'A01'!C$36","v":1},"Note 2","Worksheet A01"]
[null,"Upper ",{"$f":"'A01'!C$37","v":1},"Note 2","Worksheet A01"]
["Dose","Dose","= ConcFish × AmntFish × Prop ÷ BW"]
[null,"Central ",{"$f":"C18*C34*C38/C$22","v":1.6614270980168979E-4},"mg/kg","Eq"]
[null,"Lower ",{"$f":"C19*C35*C39/C$22","v":9.8894470120053453E-10},"mg/kg","Eq"]
[null,"Upper ",5.3798591745309078E-3,"mg/kg","Eq"]
[null,null,null,null,"FishKcalV6"]

{"sheet":"G01a","index":71,"n_rows":71,"n_cols":14,"rows_kept":71,"cut":false,"hidden":false,"merged":[[2,5,3,5],[0,0,0,4],[1,2,1,4],[2,0,3,0],[2,1,3,1],[2,2,2,4]]}
["Summary of Exposure Assessments for the Mammals",null,null,null,null,"G01V6Mam"]
["Application Rate:",{"$f":"'A01'!ApRt_C","v":0.4}," lb a.i./acre",null,null,"G01V6Mam"]
["Scenario","Receptor","mg/kg/day or mg/kg/event",null,null,"Detail Worksheet"]
[null,null,"Central","Lower","Upper",null,null,null,null,null,"Lower","Central","Upper"]
["Accidental Acute Exposures"]
["   Direct Spray",null,null,null,null,null,null,null,null,"SPRAY------------"]
["first-order absorption","Small mammal (20g)","No exposure assessment",null,null,null,null,null,null,"1st-Order Abs",{"$f":"IF(D7>0,  D7, \"\")","v":""},{"$f":"IF(ISERROR(C7-K7), \"\", C7-K7)","v":""},{"$f":"IF(ISERROR(E7-C7), \"\", E7-C7)","v":""},{"$f":"E7-SUM(K7:M7)","v":0}]
["100% absorption","Small mammal (20g)","No exposure assessment",null,null,null,null,null,null,"100% Abs.","","","",{"$f":"E8-SUM(K8:M8)","v":0}]
["   Contaminated Water",null,null,null,null,null,null,null,null,"SPILL--------------"]
["Spill","Small mammal (20g)",{"$f":"F02a!Dose_C","v":2.6597408054840569E-2},{"$f":"F02a!Dose_L","v":1.0638963221936231E-3},{"$f":"F02a!Dose_U","v":0.21277926443872455},"F02a",null,null,null,"Sm Mam",{"$f":"IF(D10>0,  D10, \"\")","v":1.0638963221936231E-3},{"$f":"IF(ISERROR(C10-K10), \"\", C10-K10)","v":2.5533511732646945E-2},{"$f":"IF(ISERROR(E10-C10), \"\", E10-C10)","v":0.18618185638388399},{"$f":"E10-SUM(K10:M10)","v":0}]
["Spill","Larger Mammal (400g)",{"$f":"F02b!Dose_C","v":1.9712255366396966E-2},{"$f":"F02b!Dose_L","v":7.8849021465587866E-4},{"$f":"F02b!Dose_U","v":0.15769804293117573},"F02b",null,null,null,"400 g Mam",7.8849021465587866E-4,1.8923765151741087E-2,0.13798578756477875,0]
["Spill","Canid (5 kg)",{"$f":"F02c!Dose_C","v":1.5312472275234041E-2},{"$f":"F02c!Dose_L","v":6.1249889100936162E-4},{"$f":"F02c!Dose_U","v":0.12249977820187233},"F02c",null,null,null,"Canid",6.1249889100936162E-4,1.469997338422468E-2,0.10718730592663829,0]
["Spill","Large Mammal (70 kg)",{"$f":"F02d!Dose_C","v":1.1760682126528485E-2},{"$f":"F02d!Dose_L","v":4.7042728506113945E-4},{"$f":"F02d!Dose_U","v":9.4085457012227883E-2},"F02d",null,null,null,"Lrg Mam",4.7042728506113945E-4,1.1290254841467347E-2,8.2324774885699392E-2,0]
["   Consumption of contaminated Fish",null,null,null,null,null,null,null,null,"FISH--------------"]
["Spill","Large Mammalian Carnivore (70 kg)",{"$f":"F03a!Dose_C","v":5.3758855841532999E-3},{"$f":"F03a!Dose_L","v":2.15035423366132E-5},{"$f":"F03a!Dose_U","v":0.24370681314828291},"F03a",null,null,null,"Lrg Mam",{"$f":"IF(D15>0,  D15, \"\")","v":2.15035423366132E-5},{"$f":"IF(ISERROR(C15-K15), \"\", C15-K15)","v":5.3543820418166868E-3},{"$f":"IF(ISERROR(E15-C15), \"\", E15-C15)","v":0.2383309275641296},{"$f":"E15-SUM(K15:M15)","v":0}]
["Spill","Canid (5 kg)",{"$f":"F03b!Dose_C","v":7.7377676738554875E-3},{"$f":"F03b!Dose_L","v":3.0951070695421951E-5},{"$f":"F03b!Dose_U","v":0.35077880121478211},"F03b",null,null,null,"Canid",3.0951070695421951E-5,7.7068166031600653E-3,0.34304103354092663,0]
["Non-Accidental Acute Exposures"]
["   Contaminated Fruit [Lowest Residue Rates]",null,null,null,null,null,null,null,null,"FRUIT-------------"]
[null,"Small mammal (20g)","No exposure assessment",null,null,null,null,null,null,"Sm Mam",{"$f":"IF(D19>0,  D19, \"\")","v":""},{"$f":"IF(ISERROR(C19-K19), \"\", C19-K19)","v":""},{"$f":"IF(ISERROR(E19-C19), \"\", E19-C19)","v":""},{"$f":"E19-SUM(K19:M19)","v":0}]
[null,"Larger Mammal (400g)","No exposure assessment",null,null,null,null,null,null,"400g Mam","","","",0]
[null,"Large Mammal (70 kg)","No exposure assessment",null,null,null,null,null,null,"Lrg Mam","","","",0]
["   Contaminated Broadleaf Foliage",null,null,null,null,null,null,null,null,"BROADLEAF-----"]
[null,"Small mammal (20g)","No exposure assessment",null,null,null,null,null,null,"Sm Mam",{"$f":"IF(D23>0,  D23, \"\")","v":""},{"$f":"IF(ISERROR(C23-K23), \"\", C23-K23)","v":""},{"$f":"IF(ISERROR(E23-C23), \"\", E23-C23)","v":""},{"$f":"E23-SUM(K23:M23)","v":0}]
[null,"Larger Mammal (400g)","No exposure assessment",null,null,null,null,null,null,"400g Mam","","","",0]
[null,"Large Mammal (70 kg)","No exposure assessment",null,null,null,null,null,null,"Lrg Mam","","","",0]
["  Contaminated Tall Grass",null,null,null,null,null,null,null,null,"TALL GRASS -----"]
[null,"Small mammal (20g)","No exposure assessment",null,null,null,null,null,null,"Sm Mam",{"$f":"IF(D27>0,  D27, \"\")","v":""},{"$f":"IF(ISERROR(C27-K27), \"\", C27-K27)","v":""},{"$f":"IF(ISERROR(E27-C27), \"\", E27-C27)","v":""},{"$f":"E27-SUM(K27:M27)","v":0}]
[null,"Larger Mammal (400g)","No exposure assessment",null,null,null,null,null,null,"400g Mam","","","",0]
[null,"Large Mammal (70 kg)","No exposure assessment",null,null,null,null,null,null,"Lrg Mam","","","",0]
["   Contaminated Short Grass [Highest Residue Rate]",null,null,null,null,null,null,null,null,"SHORT GRASS---"]
[null,"Small mammal (20g)","No exposure assessment",null,null,null,null,null,null,"Sm Mam",{"$f":"IF(D31>0,  D31, \"\")","v":""},{"$f":"IF(ISERROR(C31-K31), \"\", C31-K31)","v":""},{"$f":"IF(ISERROR(E31-C31), \"\", E31-C31)","v":""},{"$f":"E31-SUM(K31:M31)","v":0}]
[null,"Larger Mammal (400g)","No exposure assessment",null,null,null,null,null,null,"400g Mam","","","",0]
[null,"Large Mammal (70 kg)","No exposure assessment",null,null,null,null,null,null,"Lrg Mam","","","",0]
["   Contaminated Water",null,null,null,null,null,null,null,null,"WATER------------"]
[null,"Small mammal (20g)",{"$f":"F08a!Dose_C","v":7.6126443133625588E-4},{"$f":"F08a!Dose_L","v":7.0270562892577453E-8},{"$f":"F08a!Dose_U","v":9.9549964097818081E-3},"F08a",null,null,null,"Sm Mam",{"$f":"IF(D35>0,  D35, \"\")","v":7.0270562892577453E-8},{"$f":"IF(ISERROR(C35-K35), \"\", C35-K35)","v":7.6119416077336335E-4},{"$f":"IF(ISERROR(E35-C35), \"\", E35-C35)","v":9.1937319784455521E-3},{"$f":"E35-SUM(K35:M35)","v":0}]
[null,"Larger Mammal (400g)",{"$f":"F08b!Dose_C","v":5.641992949431099E-4},{"$f":"F08b!Dose_L","v":5.2079934917825525E-8},{"$f":"F08b!Dose_U","v":7.3779907800252849E-3},"F08b",null,null,null,"400g Mam",5.2079934917825525E-8,5.6414721500819211E-4,6.8137914850821754E-3,0]
[null,"Canid (5 kg)",{"$f":"F08c!Dose_C","v":4.3826979211369996E-4},{"$f":"F08c!Dose_L","v":4.0455673118187685E-8},{"$f":"F08c!Dose_U","v":5.7312203584099228E-3},"F08c",null,null,null,"Canid",4.0455673118187685E-8,4.3822933644058177E-4,5.2929505662962228E-3,0]
[null,"Large Mammal (70 kg)",{"$f":"F08d!Dose_C","v":3.3661133343212306E-4},{"$f":"F08d!Dose_L","v":3.1071815393734437E-8},{"$f":"F08d!Dose_U","v":4.4018405141123792E-3},"F08d",null,null,null,"Lrg Mam",3.1071815393734437E-8,3.3658026161672932E-4,4.0652291806802564E-3,0]
["   Contaminated Insects",null,null,null,null,null,null,null,null,"INSECTS------------"]
[null,"Small mammal (20g)","No exposure assessment",null,null,null,null,null,null,"Sm Mam",{"$f":"IF(D40>0,  D40, \"\")","v":""},{"$f":"IF(ISERROR(C40-K40), \"\", C40-K40)","v":""},{"$f":"IF(ISERROR(E40-C40), \"\", E40-C40)","v":""},{"$f":"E40-SUM(K40:M40)","v":0}]
[null,"Larger Mammal (400g)","No exposure assessment",null,null,null,null,null,null,"Lrg Mam","","","",0]
["   Consumption of small mammal (after direct spray) by predator",null,null,null,null,null,null,null,null,"SMALL MAMMAL-"]
[null,"Canid (5 kg)","No exposure assessment",null,null,null,null,null,null,"Canid",{"$f":"IF(D43>0,  D43, \"\")","v":""},{"$f":"IF(ISERROR(C43-K43), \"\", C43-K43)","v":""},{"$f":"IF(ISERROR(E43-C43), \"\", E43-C43)","v":""},{"$f":"E43-SUM(K43:M43)","v":0}]
["   Consumption of contaminated Fish",null,null,null,null,null,null,null,null,"FISH----------------"]
[null,"Large Mammalian Carnivore (70 kg)",{"$f":"F11a!Dose_C","v":1.5386726682957484E-4},{"$f":"F11a!Dose_L","v":1.4203132322729984E-9},{"$f":"F11a!Dose_U","v":1.1401959003524906E-2},"F11a",null,null,null,"Lrg Mam",{"$f":"IF(D45>0,  D45, \"\")","v":1.4203132322729984E-9},{"$f":"IF(ISERROR(C45-K45), \"\", C45-K45)","v":1.5386584651634258E-4},{"$f":"IF(ISERROR(E45-C45), \"\", E45-C45)","v":1.1248091736695331E-2},{"$f":"E45-SUM(K45:M45)","v":0}]
[null,"Canid (5 kg)",{"$f":"F11b!Dose_C","v":2.2146847151061498E-4},{"$f":"F11b!Dose_L","v":2.0443243524056769E-9},{"$f":"F11b!Dose_U","v":1.6411381606812242E-2},"F11b",null,null,null,"Canid",2.0443243524056769E-9,2.2146642718626257E-4,1.6189913135301628E-2,0]
["Chronic/Longer Term Exposures"]
["   Contaminated Fruit [Lowest Residue Rates]",null,null,null,null,null,null,null,null,"FRUIT-------------"]
[null,"Small mammal (20g)","No exposure assessment",null,null,null,null,null,null,"Sm Mam",{"$f":"IF(D49>0,  D49, \"\")","v":""},{"$f":"IF(ISERROR(C49-K49), \"\", C49-K49)","v":""},{"$f":"IF(ISERROR(E49-C49), \"\", E49-C49)","v":""},{"$f":"E49-SUM(K49:M49)","v":0}]
[null,"Larger Mammal (400g)","No exposure assessment",null,null,null,null,null,null,"400g Mam","","","",0]
[null,"Large Mammal (70 kg)","No exposure assessment",null,null,null,null,null,null,"Lrg Mam","","","",0]
["   Contaminated Broadleaf Foliage",null,null,null,null,null,null,null,null,"BROADLEAF-----"]
[null,"Small mammal (20g)","No exposure assessment",null,null,null,null,null,null,"Sm Mam",{"$f":"IF(D53>0,  D53, \"\")","v":""},{"$f":"IF(ISERROR(C53-K53), \"\", C53-K53)","v":""},{"$f":"IF(ISERROR(E53-C53), \"\", E53-C53)","v":""},{"$f":"E53-SUM(K53:M53)","v":0}]
[null,"Larger Mammal (400g)","No exposure assessment",null,null,null,null,null,null,"400g Mam","","","",0]
[null,"Large Mammal (70 kg)","No exposure assessment",null,null,null,null,null,null,"Lrg Mam","","","",0]
["  Contaminated Tall Grass",null,null,null,null,null,null,null,null,"TALL GRASS -----"]
[null,"Small mammal (20g)","No exposure assessment",null,null,null,null,null,null,"Sm Mam",{"$f":"IF(D57>0,  D57, \"\")","v":""},{"$f":"IF(ISERROR(C57-K57), \"\", C57-K57)","v":""},{"$f":"IF(ISERROR(E57-C57), \"\", E57-C57)","v":""},{"$f":"E57-SUM(K57:M57)","v":0}]
[null,"Larger Mammal (400g)","No exposure assessment",null,null,null,null,null,null,"400g Mam","","","",0]
[null,"Large Mammal (70 kg)","No exposure assessment",null,null,null,null,null,null,"Lrg Mam","","","",0]
["   Contaminated Short Grass [Highest Residue Rate]",null,null,null,null,null,null,null,null,"SHORT GRASS---"]
[null,"Small mammal (20g)","No exposure assessment",null,null,null,null,null,null,"Sm Mam",{"$f":"IF(D61>0,  D61, \"\")","v":""},{"$f":"IF(ISERROR(C61-K61), \"\", C61-K61)","v":""},{"$f":"IF(ISERROR(E61-C61), \"\", E61-C61)","v":""},{"$f":"E61-SUM(K61:M61)","v":0}]
[null,"Larger Mammal (400g)","No exposure assessment",null,null,null,null,null,null,"400g Mam","","","",0]
[null,"Large Mammal (70 kg)","No exposure assessment",null,null,null,null,null,null,"Lrg Mam","","","",0]
["   Contaminated Water",null,null,null,null,null,null,null,null,"WATER------------"]
[null,"Small mammal (20g)",{"$f":"F16a!Dose_C","v":4.9189394024804227E-4},{"$f":"F16a!Dose_L","v":2.9279401205240612E-8},{"$f":"F16a!Dose_U","v":2.8108225157030989E-3},"F16a",null,null,null,"Sm Mam",{"$f":"IF(D65>0,  D65, \"\")","v":2.9279401205240612E-8},{"$f":"IF(ISERROR(C65-K65), \"\", C65-K65)","v":4.9186466084683706E-4},{"$f":"IF(ISERROR(E65-C65), \"\", E65-C65)","v":2.3189285754550565E-3},{"$f":"E65-SUM(K65:M65)","v":0}]
[null,"Larger Mammal (400g)",{"$f":"F16b!Dose_C","v":3.6455954442477873E-4},{"$f":"F16b!Dose_L","v":2.1699972882427301E-8},{"$f":"F16b!Dose_U","v":2.0831973967130215E-3},"F16b",null,null,null,"400g Mam",2.1699972882427301E-8,3.6453784445189628E-4,1.7186378522882429E-3,0]
[null,"Canid (5 kg)",{"$f":"F16c!Dose_C","v":2.8318971182731382E-4},{"$f":"F16c!Dose_L","v":1.6856530465911537E-8},{"$f":"F16c!Dose_U","v":1.6182269247275078E-3},"F16c",null,null,null,"Canid",1.6856530465911537E-8,2.8317285529684793E-4,1.3350372129001941E-3,0]
[null,"Large Mammal (70 kg)",{"$f":"F16d!Dose_C","v":2.1750270775614108E-4},{"$f":"F16d!Dose_L","v":1.2946589747389349E-8},{"$f":"F16d!Dose_U","v":1.2428726157493776E-3},"F16d",null,null,null,"Lrg Mam",1.2946589747389349E-8,2.1748976116639369E-4,1.0253699079932365E-3,0]
["   Consumption of contaminated Fish",null,null,null,null,null,null,null,null,"FISH----------------"]
[null,"Large Mammalian Carnivore (70 kg)",{"$f":"F17a!Dose_C","v":9.9421926259109908E-5},{"$f":"F17a!Dose_L","v":5.9179718011374934E-10},{"$f":"F17a!Dose_U","v":3.2193766598187967E-3},"F17a",null,null,null,"Lrg Mam",{"$f":"IF(D70>0,  D70, \"\")","v":5.9179718011374934E-10},{"$f":"IF(ISERROR(C70-K70), \"\", C70-K70)","v":9.94213344619298E-5},{"$f":"IF(ISERROR(E70-C70), \"\", E70-C70)","v":3.1199547335596868E-3},{"$f":"E70-SUM(K70:M70)","v":0}]
[null,"Canid (5 kg)",{"$f":"F17b!Dose_C","v":1.4310270466839738E-4},{"$f":"F17b!Dose_L","v":8.5180181350236542E-10},{"$f":"F17b!Dose_U","v":4.6338018654528681E-3},"F17b",null,null,null,"Canid",{"$f":"IF(D71>0,  D71, \"\")","v":8.5180181350236542E-10},{"$f":"IF(ISERROR(C71-K71), \"\", C71-K71)","v":1.4310185286658389E-4},{"$f":"IF(ISERROR(E71-C71), \"\", E71-C71)","v":4.4906991607844707E-3},0]

{"sheet":"G01b","index":72,"n_rows":50,"n_cols":14,"rows_kept":50,"cut":false,"hidden":false,"merged":[[2,5,3,5],[0,0,0,4],[1,2,1,4],[2,0,3,0],[2,1,3,1],[2,2,2,4]]}
["Summary of Exposure Assessments for the Birds",null,null,null,null,"G01V6Brd"]
["Application Rate:",{"$f":"'A01'!ApRt_C","v":0.4}," lb a.i./acre",null,null,"G01V6Brd"]
["Scenario","Receptor","mg/kg/day or mg/kg/event",null,null,"Detail Worksheet"]
[null,null,"Central","Lower","Upper"]
["Accidental Acute Exposures",null,null,null,null,null,null,null,null,null,"Lower","Central","Upper","Check"]
["   Contaminated Water",null,null,null,null,null,null,null,null,"SPILL----"]
["Spill","Small bird (10g)",{"$f":"F02e!Dose_C","v":4.8995831550645991E-2},{"$f":"F02e!Dose_L","v":1.9598332620258396E-3},{"$f":"F02e!Dose_U","v":0.39196665240516793},"F02e",null,null,null,"Sm Brd",{"$f":"IF(D7>0,  D7, \"\")","v":1.9598332620258396E-3},{"$f":"IF(ISERROR(C7-K7), \"\", C7-K7)","v":4.7035998288620151E-2},{"$f":"IF(ISERROR(E7-C7), \"\", E7-C7)","v":0.34297082085452191},{"$f":"E7-SUM(K7:M7)","v":0}]
["Spill","Large Bird (4 kg)",{"$f":"F02f!Dose_C","v":6.7838984107793541E-3},{"$f":"F02f!Dose_L","v":2.7135593643117417E-4},{"$f":"F02f!Dose_U","v":5.4271187286234833E-2},"F02f",null,null,null,"Lrg Brd",2.7135593643117417E-4,6.5125424743481802E-3,4.7487288875455481E-2,{"$f":"E8-SUM(K8:M8)","v":0}]
["   Consumption of contaminated Fish",null,null,null,null,null,null,null,null,"FISH------"]
["Spill","Fish-eating bird (2.4 kg)",{"$f":"F03c!Dose_C","v":8.9835736657056554E-3},{"$f":"F03c!Dose_L","v":3.5934294662822623E-5},{"$f":"F03c!Dose_U","v":0.40725533951198967},"F03c",null,null,null,"Pisc Brd",{"$f":"IF(D10>0,  D10, \"\")","v":3.5934294662822623E-5},{"$f":"IF(ISERROR(C10-K10), \"\", C10-K10)","v":8.9476393710428322E-3},{"$f":"IF(ISERROR(E10-C10), \"\", E10-C10)","v":0.39827176584628399},{"$f":"E10-SUM(K10:M10)","v":0}]
["Non-Accidental Acute Exposures"]
["   Contaminated Fruit [Lowest Residue Rates]",null,null,null,null,null,null,null,null,"FRUIT-------------"]
[null,"Small bird (10g)","No exposure assessment",null,null,null,null,null,null,"Sm Brd",{"$f":"IF(D13>0,  D13, \"\")","v":""},{"$f":"IF(ISERROR(C13-K13), \"\", C13-K13)","v":""},{"$f":"IF(ISERROR(E13-C13), \"\", E13-C13)","v":""},{"$f":"E13-SUM(K13:M13)","v":0}]
[null,"Large Bird (4 kg)","No exposure assessment",null,null,null,null,null,null,"Lrg Brd","","","",0]
["   Contaminated Broadleaf Foliage",null,null,null,null,null,null,null,null,"BROADLEAF-----"]
[null,"Small bird (10g)","No exposure assessment",null,null,null,null,null,null,"Sm Brd",{"$f":"IF(D16>0,  D16, \"\")","v":""},{"$f":"IF(ISERROR(C16-K16), \"\", C16-K16)","v":""},{"$f":"IF(ISERROR(E16-C16), \"\", E16-C16)","v":""},{"$f":"E16-SUM(K16:M16)","v":0}]
[null,"Large Bird (4 kg)","No exposure assessment",null,null,null,null,null,null,"Lrg Brd","","","",0]
["  Contaminated Tall Grass",null,null,null,null,null,null,null,null,"TALL GRASS -----"]
[null,"Small bird (10g)","No exposure assessment",null,null,null,null,null,null,"Sm Brd",{"$f":"IF(D19>0,  D19, \"\")","v":""},{"$f":"IF(ISERROR(C19-K19), \"\", C19-K19)","v":""},{"$f":"IF(ISERROR(E19-C19), \"\", E19-C19)","v":""},{"$f":"E19-SUM(K19:M19)","v":0}]
[null,"Large Bird (4 kg)","No exposure assessment",null,null,null,null,null,null,"Lrg Brd","","","",0]
["   Contaminated Short Grass [Highest Residue Rate]",null,null,null,null,null,null,null,null,"SHORT GRASS---"]
[null,"Small bird (10g)","No exposure assessment",null,null,null,null,null,null,"Sm Brd",{"$f":"IF(D22>0,  D22, \"\")","v":""},{"$f":"IF(ISERROR(C22-K22), \"\", C22-K22)","v":""},{"$f":"IF(ISERROR(E22-C22), \"\", E22-C22)","v":""},{"$f":"E22-SUM(K22:M22)","v":0}]
[null,"Large Bird (4 kg)","No exposure assessment",null,null,null,null,null,null,"Lrg Brd","","","",0]
["   Contaminated Water",null,null,null,null,null,null,null,null,"WATER------------"]
[null,"Small bird (10g)",{"$f":"F08e!Dose_C","v":1.4023465657384364E-3},{"$f":"F08e!Dose_L","v":1.2944737529893258E-7},{"$f":"F08e!Dose_U","v":1.8338378167348787E-2},"F08e",null,null,null,"Sm Brd",{"$f":"IF(D25>0,  D25, \"\")","v":1.2944737529893258E-7},{"$f":"IF(ISERROR(C25-K25), \"\", C25-K25)","v":1.4022171183631375E-3},{"$f":"IF(ISERROR(E25-C25), \"\", E25-C25)","v":1.6936031601610349E-2},{"$f":"E25-SUM(K25:M25)","v":0}]
[null,"Large Bird (4 kg)",{"$f":"F08f!Dose_C","v":1.9416706151504092E-4},{"$f":"F08f!Dose_L","v":1.7923113370619161E-8},{"$f":"F08f!Dose_U","v":2.5391077275043819E-3},"F08f",null,null,null,"Lrg Brd",1.7923113370619161E-8,1.9414913840167029E-4,2.3449406659893412E-3,0]
["   Contaminated Insects",null,null,null,null,null,null,null,null,"INSECTS------------"]
[null,"Small bird (10g)","No exposure assessment",null,null,null,null,null,null,"Sm Brd",{"$f":"IF(D28>0,  D28, \"\")","v":""},{"$f":"IF(ISERROR(C28-K28), \"\", C28-K28)","v":""},{"$f":"IF(ISERROR(E28-C28), \"\", E28-C28)","v":""},{"$f":"E28-SUM(K28:M28)","v":0}]
["   Consumption of small mammal (after direct spray) by predator",null,null,null,null,null,null,null,null,"SMALL MAMMAL-"]
[null,"Carnivorous bird (640 g)","No exposure assessment",null,null,null,null,null,null,"Crn Brd",{"$f":"IF(D30>0,  D30, \"\")","v":""},{"$f":"IF(ISERROR(C30-K30), \"\", C30-K30)","v":""},{"$f":"IF(ISERROR(E30-C30), \"\", E30-C30)","v":""},{"$f":"E30-SUM(K30:M30)","v":0}]
["   Consumption of contaminated Fish",null,null,null,null,null,null,null,null,"FISH----------------"]
[null,"Fish-eating bird (2.4 kg)",{"$f":"F11c!Dose_C","v":2.5712562231213892E-4},{"$f":"F11c!Dose_L","v":2.3734672828812826E-9},{"$f":"F11c!Dose_U","v":1.9053667909796963E-2},"F11c",null,null,null,"Psc Brd",{"$f":"IF(D32>0,  D32, \"\")","v":2.3734672828812826E-9},{"$f":"IF(ISERROR(C32-K32), \"\", C32-K32)","v":2.5712324884485601E-4},{"$f":"IF(ISERROR(E32-C32), \"\", E32-C32)","v":1.8796542287484824E-2},{"$f":"E32-SUM(K32:M32)","v":0}]
["Chronic/Longer Term Exposures"]
["   Contaminated Fruit (Lowest Residue Rate)",null,null,null,null,null,null,null,null,"FRUIT-------------"]
[null,"Small bird (10g)","No exposure assessment",null,null,null,null,null,null,"Sm Brd",{"$f":"IF(D35>0,  D35, \"\")","v":""},{"$f":"IF(ISERROR(C35-K35), \"\", C35-K35)","v":""},{"$f":"IF(ISERROR(E35-C35), \"\", E35-C35)","v":""},{"$f":"E35-SUM(K35:M35)","v":0}]
[null,"Large Bird (4 kg)","No exposure assessment",null,null,null,null,null,null,"Lrg Brd","","","",0]
["   Contaminated Broadleaf Foliage",null,null,null,null,null,null,null,null,"BROADLEAF-----"]
[null,"Small bird (10g)","No exposure assessment",null,null,null,null,null,null,"Sm Brd",{"$f":"IF(D38>0,  D38, \"\")","v":""},{"$f":"IF(ISERROR(C38-K38), \"\", C38-K38)","v":""},{"$f":"IF(ISERROR(E38-C38), \"\", E38-C38)","v":""},{"$f":"E38-SUM(K38:M38)","v":0}]
[null,"Large Bird (4 kg)","No exposure assessment",null,null,null,null,null,null,"Lrg Brd",{"$f":"IF(D39>0,  D39, \"\")","v":""},{"$f":"IF(ISERROR(C39-K39), \"\", C39-K39)","v":""},{"$f":"IF(ISERROR(E39-C39), \"\", E39-C39)","v":""},0]
["  Contaminated Tall Grass",null,null,null,null,null,null,null,null,"TALL GRASS -----"]
[null,"Small bird (10g)","No exposure assessment",null,null,null,null,null,null,"Sm Brd",{"$f":"IF(D41>0,  D41, \"\")","v":""},{"$f":"IF(ISERROR(C41-K41), \"\", C41-K41)","v":""},{"$f":"IF(ISERROR(E41-C41), \"\", E41-C41)","v":""},{"$f":"E41-SUM(K41:M41)","v":0}]
[null,"Large Bird (4 kg)","No exposure assessment",null,null,null,null,null,null,"Lrg Brd","","","",0]
["   Contaminated Vegetation (Short Grass - Highest Residue Rate)",null,null,null,null,null,null,null,null,"SHORT GRASS---"]
[null,"Small bird (10g)","No exposure assessment",null,null,null,null,null,null,"Sm Brd",{"$f":"IF(D44>0,  D44, \"\")","v":""},{"$f":"IF(ISERROR(C44-K44), \"\", C44-K44)","v":""},{"$f":"IF(ISERROR(E44-C44), \"\", E44-C44)","v":""},{"$f":"E44-SUM(K44:M44)","v":0}]
[null,"Large Bird (4 kg)","No exposure assessment",null,null,null,null,null,null,"Lrg Brd","","","",0]
["   Contaminated Water",null,null,null,null,null,null,null,null,"WATER------------"]
[null,"Small bird (10g)",{"$f":"F16e!Dose_C","v":9.061316270925282E-4},{"$f":"F16e!Dose_L","v":5.3936406374555247E-8},{"$f":"F16e!Dose_U","v":5.1778950119573041E-3},"F16e",null,null,null,"Sm Brd",{"$f":"IF(D47>0,  D47, \"\")","v":5.3936406374555247E-8},{"$f":"IF(ISERROR(C47-K47), \"\", C47-K47)","v":9.0607769068615359E-4},{"$f":"IF(ISERROR(E47-C47), \"\", E47-C47)","v":4.2717633848647759E-3},{"$f":"E47-SUM(K47:M47)","v":0}]
[null,"Large Bird (4 kg)",{"$f":"F16f!Dose_C","v":1.2546179359433415E-4},{"$f":"F16f!Dose_L","v":7.4679639044246515E-9},{"$f":"F16f!Dose_U","v":7.1692453482476658E-4},"F16f",null,null,null,"Lrg Brd",7.4679639044246515E-9,1.2545432563042973E-4,5.9146274123043246E-4,0]
["   Consumption of contaminated Fish",null,null,null,null,null,null,null,null,"FISH----------------"]
[null,"Fish-eating bird (2.4 kg)",{"$f":"F17c!Dose_C","v":1.6614270980168979E-4},{"$f":"F17c!Dose_L","v":9.8894470120053453E-10},{"$f":"F17c!Dose_U","v":5.3798591745309078E-3},"F17c",null,null,null,"Psc Brd",{"$f":"IF(D50>0,  D50, \"\")","v":9.8894470120053453E-10},{"$f":"IF(ISERROR(C50-K50), \"\", C50-K50)","v":1.661417208569886E-4},{"$f":"IF(ISERROR(E50-C50), \"\", E50-C50)","v":5.213716464729218E-3},{"$f":"E50-SUM(K50:M50)","v":0}]

{"sheet":"G02a","index":73,"n_rows":71,"n_cols":14,"rows_kept":71,"cut":false,"hidden":false,"merged":[[2,5,3,5],[0,0,0,4],[1,2,1,4],[2,0,3,0],[2,1,3,1],[2,2,2,4]]}
["Summary of Hazard Quotients (Toxicity) for the Mammals",null,null,null,null,"G01V6Mam"]
["Application Rate:",{"$f":"'A01'!ApRt_C","v":0.4}," lb a.i./acre",null,null,"G01V6Mam"]
["Scenario","Receptor","Hazard Quotients",null,null,"Toxicity Value"]
[null,null,"Central","Lower","Upper",null,null,null,null,null,"Lower","Central","Upper"]
["Accidental Acute Exposures"]
["   Direct Spray",null,null,null,null,null,null,null,null,"SPRAY------------"]
["first-order absorption","Small mammal (20g)","No exposure assessment",null,null,null,null,null,null,"1st-Order Abs",{"$f":"IF(D7>0,  D7, \"\")","v":""},{"$f":"IF(ISERROR(C7-K7), \"\", C7-K7)","v":""},{"$f":"IF(ISERROR(E7-C7), \"\", E7-C7)","v":""},{"$f":"E7-SUM(K7:M7)","v":0}]
["100% absorption","Small mammal (20g)","No exposure assessment",null,null,null,null,null,null,"100% Abs.","","","",{"$f":"E8-SUM(K8:M8)","v":0}]
["   Contaminated Water",null,null,null,null,null,null,null,null,"SPILL--------------"]
["Spill","Small mammal (20g)",{"$f":"F02a!$C$18/$F$10","v":1.8998148610600406E-3},{"$f":"F02a!$C$19/$F$10","v":7.5992594442401648E-5},{"$f":"F02a!$C$20/$F$10","v":1.5198518888480325E-2},{"$f":"'B02'!$E$6","v":14},"NOAEL",null,null,"Sm Mam",{"$f":"IF(D10>0,  D10, \"\")","v":7.5992594442401648E-5},{"$f":"IF(ISERROR(C10-K10), \"\", C10-K10)","v":1.8238222666176391E-3},{"$f":"IF(ISERROR(E10-C10), \"\", E10-C10)","v":1.3298704027420285E-2},{"$f":"E10-SUM(K10:M10)","v":0}]
["Spill","Larger Mammal (400g)",{"$f":"F02b!$C$18/$F$11","v":1.4080182404569261E-3},{"$f":"F02b!$C$19/$F$11","v":5.6320729618277047E-5},{"$f":"F02b!$C$20/$F$11","v":1.1264145923655409E-2},{"$f":"'B02'!$E$6","v":14},"NOAEL",null,null,"400 g Mam",5.6320729618277047E-5,1.351697510838649E-3,9.8561276831984831E-3,0]
["Spill","Canid (5 kg)",{"$f":"F02c!$C$18/$F$12","v":1.0937480196595744E-3},{"$f":"F02c!$C$19/$F$12","v":4.374992078638297E-5},{"$f":"F02c!$C$20/$F$12","v":8.7499841572765951E-3},{"$f":"'B02'!$E$6","v":14},"NOAEL",null,null,"Canid",4.374992078638297E-5,1.0499980988731914E-3,7.6562361376170205E-3,0]
["Spill","Large Mammal (70 kg)",{"$f":"F02d!$C$18/$F$13","v":8.4004872332346322E-4},{"$f":"F02d!$C$19/$F$13","v":3.3601948932938533E-5},{"$f":"F02d!$C$20/$F$13","v":6.7203897865877058E-3},{"$f":"'B02'!$E$6","v":14},"NOAEL",null,null,"Lrg Mam",3.3601948932938533E-5,8.0644677439052474E-4,5.8803410632642427E-3,0]
["   Consumption of contaminated Fish",null,null,null,null,null,null,null,null,"FISH--------------"]
["Spill","Large Mammalian Carnivore (70 kg)",{"$f":"F03a!$C$47/$F$15","v":3.8399182743952144E-4},{"$f":"F03a!$C$48/$F$15","v":1.5359673097580857E-6},{"$f":"F03a!$C$49/$F$15","v":1.7407629510591636E-2},{"$f":"'B02'!$E$6","v":14},"NOAEL",null,null,"Lrg Mam",{"$f":"IF(D15>0,  D15, \"\")","v":1.5359673097580857E-6},{"$f":"IF(ISERROR(C15-K15), \"\", C15-K15)","v":3.8245586012976334E-4},{"$f":"IF(ISERROR(E15-C15), \"\", E15-C15)","v":1.7023637683152116E-2},{"$f":"E15-SUM(K15:M15)","v":0}]
["Spill","Canid (5 kg)",{"$f":"F03b!$C$47/$F$16","v":5.5269769098967769E-4},{"$f":"F03b!$C$48/$F$16","v":2.210790763958711E-6},{"$f":"F03b!$C$49/$F$16","v":2.5055628658198721E-2},{"$f":"'B02'!$E$6","v":14},"NOAEL",null,null,"Canid",2.210790763958711E-6,5.5048690022571894E-4,2.4502930967209045E-2,0]
["Non-Accidental Acute Exposures"]
["   Contaminated Fruit [Lowest Residue Rates]",null,null,null,null,null,null,null,null,"FRUIT-------------"]
[null,"Small mammal (20g)","No exposure assessment",null,null,null,null,null,null,"Sm Mam",{"$f":"IF(D19>0,  D19, \"\")","v":""},{"$f":"IF(ISERROR(C19-K19), \"\", C19-K19)","v":""},{"$f":"IF(ISERROR(E19-C19), \"\", E19-C19)","v":""},{"$f":"E19-SUM(K19:M19)","v":0}]
[null,"Larger Mammal (400g)","No exposure assessment",null,null,null,null,null,null,"400g Mam","","","",0]
[null,"Large Mammal (70 kg)","No exposure assessment",null,null,null,null,null,null,"Lrg Mam","","","",0]
["   Contaminated Broadleaf Foliage",null,null,null,null,null,null,null,null,"BROADLEAF-----"]
[null,"Small mammal (20g)","No exposure assessment",null,null,null,null,null,null,"Sm Mam",{"$f":"IF(D23>0,  D23, \"\")","v":""},{"$f":"IF(ISERROR(C23-K23), \"\", C23-K23)","v":""},{"$f":"IF(ISERROR(E23-C23), \"\", E23-C23)","v":""},{"$f":"E23-SUM(K23:M23)","v":0}]
[null,"Larger Mammal (400g)","No exposure assessment",null,null,null,null,null,null,"400g Mam","","","",0]
[null,"Large Mammal (70 kg)","No exposure assessment",null,null,null,null,null,null,"Lrg Mam","","","",0]
["  Contaminated Tall Grass",null,null,null,null,null,null,null,null,"TALL GRASS -----"]
[null,"Small mammal (20g)","No exposure assessment",null,null,null,null,null,null,"Sm Mam",{"$f":"IF(D27>0,  D27, \"\")","v":""},{"$f":"IF(ISERROR(C27-K27), \"\", C27-K27)","v":""},{"$f":"IF(ISERROR(E27-C27), \"\", E27-C27)","v":""},{"$f":"E27-SUM(K27:M27)","v":0}]
[null,"Larger Mammal (400g)","No exposure assessment",null,null,null,null,null,null,"400g Mam","","","",0]
[null,"Large Mammal (70 kg)","No exposure assessment",null,null,null,null,null,null,"Lrg Mam","","","",0]
["   Contaminated Short Grass [Highest Residue Rate]",null,null,null,null,null,null,null,null,"SHORT GRASS---"]
[null,"Small mammal (20g)","No exposure assessment",null,null,null,null,null,null,"Sm Mam",{"$f":"IF(D31>0,  D31, \"\")","v":""},{"$f":"IF(ISERROR(C31-K31), \"\", C31-K31)","v":""},{"$f":"IF(ISERROR(E31-C31), \"\", E31-C31)","v":""},{"$f":"E31-SUM(K31:M31)","v":0}]
[null,"Larger Mammal (400g)","No exposure assessment",null,null,null,null,null,null,"400g Mam","","","",0]
[null,"Large Mammal (70 kg)","No exposure assessment",null,null,null,null,null,null,"Lrg Mam","","","",0]
["   Contaminated Water",null,null,null,null,null,null,null,null,"WATER------------"]
[null,"Small mammal (20g)",{"$f":"F08a!$C$18/$F$35","v":5.4376030809732562E-5},{"$f":"F08a!$C$19/$F$35","v":5.0193259208983896E-9},{"$f":"F08a!$C$20/$F$35","v":7.1107117212727204E-4},{"$f":"'B02'!$E$6","v":14},"NOAEL",null,null,"Sm Mam",{"$f":"IF(D35>0,  D35, \"\")","v":5.0193259208983896E-9},{"$f":"IF(ISERROR(C35-K35), \"\", C35-K35)","v":5.4371011483811662E-5},{"$f":"IF(ISERROR(E35-C35), \"\", E35-C35)","v":6.5669514131753948E-4},{"$f":"E35-SUM(K35:M35)","v":0}]
[null,"Larger Mammal (400g)",{"$f":"F08b!$C$18/$F$36","v":4.0299949638793567E-5},{"$f":"F08b!$C$19/$F$36","v":3.719995351273252E-9},{"$f":"F08b!$C$20/$F$36","v":5.2699934143037746E-4},{"$f":"'B02'!$E$6","v":14},"NOAEL",null,null,"400g Mam",3.719995351273252E-9,4.0296229643442292E-5,4.8669939179158387E-4,0]
[null,"Canid (5 kg)",{"$f":"F08c!$C$18/$F$37","v":3.1304985150978566E-5},{"$f":"F08c!$C$19/$F$37","v":2.8896909370134059E-9},{"$f":"F08c!$C$20/$F$37","v":4.0937288274356593E-4},{"$f":"'B02'!$E$6","v":14},"NOAEL",null,null,"Canid",2.8896909370134059E-9,3.130209546004155E-5,3.7806789759258738E-4,0]
[null,"Large Mammal (70 kg)",{"$f":"F08d!$C$18/$F$38","v":2.4043666673723076E-5},{"$f":"F08d!$C$19/$F$38","v":2.2194153852667457E-9},{"$f":"F08d!$C$20/$F$38","v":3.1441717957945563E-4},{"$f":"'B02'!$E$6","v":14},"NOAEL",null,null,"Lrg Mam",2.2194153852667457E-9,2.404144725833781E-5,2.9037351290573255E-4,0]
["   Contaminated Insects",null,null,null,null,null,null,null,null,"INSECTS------------"]
[null,"Small mammal (20g)","No exposure assessment",null,null,null,null,null,null,"Sm Mam",{"$f":"IF(D40>0,  D40, \"\")","v":""},{"$f":"IF(ISERROR(C40-K40), \"\", C40-K40)","v":""},{"$f":"IF(ISERROR(E40-C40), \"\", E40-C40)","v":""},{"$f":"E40-SUM(K40:M40)","v":0}]
[null,"Larger Mammal (400g)","No exposure assessment",null,null,null,null,null,null,"Lrg Mam","","","",0]
["   Consumption of small mammal (after direct spray) by predator",null,null,null,null,null,null,null,null,"SMALL MAMMAL-"]
[null,"Canid (5 kg)","No exposure assessment",null,null,null,null,null,null,"Canid",{"$f":"IF(D43>0,  D43, \"\")","v":""},{"$f":"IF(ISERROR(C43-K43), \"\", C43-K43)","v":""},{"$f":"IF(ISERROR(E43-C43), \"\", E43-C43)","v":""},{"$f":"E43-SUM(K43:M43)","v":0}]
["   Consumption of contaminated Fish",null,null,null,null,null,null,null,null,"FISH----------------"]
[null,"Large Mammalian Carnivore (70 kg)",{"$f":"F11a!$C$47/$F$45","v":1.0990519059255346E-5},{"$f":"F11a!$C$48/$F$45","v":1.0145094516235703E-10},{"$f":"F11a!$C$49/$F$45","v":8.1442564310892183E-4},{"$f":"'B02'!$E$6","v":14},"NOAEL",null,null,"Lrg Mam",{"$f":"IF(D45>0,  D45, \"\")","v":1.0145094516235703E-10},{"$f":"IF(ISERROR(C45-K45), \"\", C45-K45)","v":1.0990417608310184E-5},{"$f":"IF(ISERROR(E45-C45), \"\", E45-C45)","v":8.034351240496665E-4},{"$f":"E45-SUM(K45:M45)","v":0}]
[null,"Canid (5 kg)",{"$f":"F11b!$C$47/$F$46","v":1.5819176536472498E-5},{"$f":"F11b!$C$48/$F$46","v":1.4602316802897694E-10},{"$f":"F11b!$C$49/$F$46","v":1.1722415433437316E-3},{"$f":"'B02'!$E$6","v":14},"NOAEL",null,null,"Canid",1.4602316802897694E-10,1.5819030513304471E-5,1.1564223668072591E-3,0]
["Chronic/Longer Term Exposures"]
["   Contaminated Fruit [Lowest Residue Rates]",null,null,null,null,null,null,null,null,"FRUIT-------------"]
[null,"Small mammal (20g)","No exposure assessment",null,null,null,null,null,null,"Sm Mam",{"$f":"IF(D49>0,  D49, \"\")","v":""},{"$f":"IF(ISERROR(C49-K49), \"\", C49-K49)","v":""},{"$f":"IF(ISERROR(E49-C49), \"\", E49-C49)","v":""},{"$f":"E49-SUM(K49:M49)","v":0}]
[null,"Larger Mammal (400g)","No exposure assessment",null,null,null,null,null,null,"400g Mam","","","",0]
[null,"Large Mammal (70 kg)","No exposure assessment",null,null,null,null,null,null,"Lrg Mam","","","",0]
["   Contaminated Broadleaf Foliage",null,null,null,null,null,null,null,null,"BROADLEAF-----"]
[null,"Small mammal (20g)","No exposure assessment",null,null,null,null,null,null,"Sm Mam",{"$f":"IF(D53>0,  D53, \"\")","v":""},{"$f":"IF(ISERROR(C53-K53), \"\", C53-K53)","v":""},{"$f":"IF(ISERROR(E53-C53), \"\", E53-C53)","v":""},{"$f":"E53-SUM(K53:M53)","v":0}]
[null,"Larger Mammal (400g)","No exposure assessment",null,null,null,null,null,null,"400g Mam","","","",0]
[null,"Large Mammal (70 kg)","No exposure assessment",null,null,null,null,null,null,"Lrg Mam","","","",0]
["  Contaminated Tall Grass",null,null,null,null,null,null,null,null,"TALL GRASS -----"]
[null,"Small mammal (20g)","No exposure assessment",null,null,null,null,null,null,"Sm Mam",{"$f":"IF(D57>0,  D57, \"\")","v":""},{"$f":"IF(ISERROR(C57-K57), \"\", C57-K57)","v":""},{"$f":"IF(ISERROR(E57-C57), \"\", E57-C57)","v":""},{"$f":"E57-SUM(K57:M57)","v":0}]
[null,"Larger Mammal (400g)","No exposure assessment",null,null,null,null,null,null,"400g Mam","","","",0]
[null,"Large Mammal (70 kg)","No exposure assessment",null,null,null,null,null,null,"Lrg Mam","","","",0]
["   Contaminated Short Grass [Highest Residue Rate]",null,null,null,null,null,null,null,null,"SHORT GRASS---"]
[null,"Small mammal (20g)","No exposure assessment",null,null,null,null,null,null,"Sm Mam",{"$f":"IF(D61>0,  D61, \"\")","v":""},{"$f":"IF(ISERROR(C61-K61), \"\", C61-K61)","v":""},{"$f":"IF(ISERROR(E61-C61), \"\", E61-C61)","v":""},{"$f":"E61-SUM(K61:M61)","v":0}]
[null,"Larger Mammal (400g)","No exposure assessment",null,null,null,null,null,null,"400g Mam","","","",0]
[null,"Large Mammal (70 kg)","No exposure assessment",null,null,null,null,null,null,"Lrg Mam","","","",0]
["   Contaminated Water",null,null,null,null,null,null,null,null,"WATER------------"]
[null,"Small mammal (20g)",{"$f":"F16a!$C$18/$F$65","v":8.6297182499656531E-5},{"$f":"F16a!$C$19/$F$65","v":5.1367370535509843E-9},{"$f":"F16a!$C$20/$F$65","v":4.9312675714089456E-4},{"$f":"'B02'!$E$7","v":5.7},"NOAEL",null,null,"Sm Mam",{"$f":"IF(D65>0,  D65, \"\")","v":5.1367370535509843E-9},{"$f":"IF(ISERROR(C65-K65), \"\", C65-K65)","v":8.6292045762602983E-5},{"$f":"IF(ISERROR(E65-C65), \"\", E65-C65)","v":4.0682957464123801E-4},{"$f":"E65-SUM(K65:M65)","v":0}]
[null,"Larger Mammal (400g)",{"$f":"F16b!$C$18/$F$66","v":6.3957814811364686E-5},{"$f":"F16b!$C$19/$F$66","v":3.8070127863907544E-9},{"$f":"F16b!$C$20/$F$66","v":3.6547322749351253E-4},{"$f":"'B02'!$E$7","v":5.7},"NOAEL",null,null,"400g Mam",3.8070127863907544E-9,6.3954007798578289E-5,3.0151541268214782E-4,0]
[null,"Canid (5 kg)",{"$f":"F16c!$C$18/$F$67","v":4.9682405583739265E-5},{"$f":"F16c!$C$19/$F$67","v":2.9572860466511467E-9},{"$f":"F16c!$C$20/$F$67","v":2.8389946047851014E-4},{"$f":"'B02'!$E$7","v":5.7},"NOAEL",null,null,"Canid",2.9572860466511467E-9,4.9679448297692611E-5,2.3421705489477088E-4,0]
[null,"Large Mammal (70 kg)",{"$f":"F16d!$C$18/$F$68","v":3.8158369781779134E-5},{"$f":"F16d!$C$19/$F$68","v":2.2713315346297103E-9},{"$f":"F16d!$C$20/$F$68","v":2.1804782732445221E-4},{"$f":"'B02'!$E$7","v":5.7},"NOAEL",null,null,"Lrg Mam",2.2713315346297103E-9,3.8156098450244503E-5,1.7988945754267307E-4,0]
["   Consumption of contaminated Fish",null,null,null,null,null,null,null,null,"FISH----------------"]
[null,"Large Mammalian Carnivore (70 kg)",{"$f":"F17a!$C$47/$F$70","v":1.7442443203352616E-5},{"$f":"F17a!$C$48/$F$70","v":1.0382406668662269E-10},{"$f":"F17a!$C$49/$F$70","v":5.6480292277522753E-4},{"$f":"'B02'!$E$7","v":5.7},"NOAEL",null,null,"Lrg Mam",{"$f":"IF(D70>0,  D70, \"\")","v":1.0382406668662269E-10},{"$f":"IF(ISERROR(C70-K70), \"\", C70-K70)","v":1.7442339379285928E-5},{"$f":"IF(ISERROR(E70-C70), \"\", E70-C70)","v":5.4736047957187493E-4},{"$f":"E70-SUM(K70:M70)","v":0}]
[null,"Canid (5 kg)",{"$f":"F17b!$C$47/$F$71","v":2.5105737661122345E-5},{"$f":"F17b!$C$48/$F$71","v":1.494389146495378E-10},{"$f":"F17b!$C$49/$F$71","v":8.1294769569348563E-4},{"$f":"'B02'!$E$7","v":5.7},"NOAEL",null,null,"Canid",{"$f":"IF(D71>0,  D71, \"\")","v":1.494389146495378E-10},{"$f":"IF(ISERROR(C71-K71), \"\", C71-K71)","v":2.5105588222207696E-5},{"$f":"IF(ISERROR(E71-C71), \"\", E71-C71)","v":7.8784195803236325E-4},0]

{"sheet":"G02b","index":74,"n_rows":50,"n_cols":14,"rows_kept":50,"cut":false,"hidden":false,"merged":[[2,5,3,5],[0,0,0,4],[1,2,1,4],[2,0,3,0],[2,1,3,1],[2,2,2,4]]}
["Summary of Hazard Quotients (Toxicity) for the Birds",null,null,null,null,"G01V6Brd"]
["Application Rate:",{"$f":"'A01'!ApRt_C","v":0.4}," lb a.i./acre",null,null,"G01V6Brd"]
["Scenario","Receptor","Hazard Quotients",null,null,"Toxicity Value"]
[null,null,"Central","Lower","Upper"]
["Accidental Acute Exposures",null,null,null,null,null,null,null,null,null,"Lower","Central","Upper","Check"]
["   Contaminated Water",null,null,null,null,null,null,null,null,"SPILL----"]
["Spill","Small bird (10g)",{"$f":"F02e!$C$18/$F$7","v":1.633194385021533E-2},{"$f":"F02e!$C$19/$F$7","v":6.5327775400861321E-4},{"$f":"F02e!$C$20/$F$7","v":0.13065555080172264},{"$f":"'B02'!$E$8","v":3},"NOAEL",null,null,"Sm Brd",{"$f":"IF(D7>0,  D7, \"\")","v":6.5327775400861321E-4},{"$f":"IF(ISERROR(C7-K7), \"\", C7-K7)","v":1.5678666096206717E-2},{"$f":"IF(ISERROR(E7-C7), \"\", E7-C7)","v":0.11432360695150731},{"$f":"E7-SUM(K7:M7)","v":0}]
["Spill","Large Bird (4 kg)",{"$f":"F02f!$C$18/$F$8","v":2.2612994702597847E-3},{"$f":"F02f!$C$19/$F$8","v":9.0451978810391387E-5},{"$f":"F02f!$C$20/$F$8","v":1.8090395762078278E-2},{"$f":"'B02'!$E$8","v":3},"NOAEL",null,null,"Lrg Brd",9.0451978810391387E-5,2.1708474914493934E-3,1.5829096291818494E-2,{"$f":"E8-SUM(K8:M8)","v":0}]
["   Consumption of contaminated Fish",null,null,null,null,null,null,null,null,"FISH------"]
["Spill","Fish-eating bird (2.4 kg)",{"$f":"F03c!$C$47/$F$10","v":2.9945245552352186E-3},{"$f":"F03c!$C$48/$F$10","v":1.1978098220940874E-5},{"$f":"F03c!$C$49/$F$10","v":0.13575177983732989},{"$f":"'B02'!$E$8","v":3},"NOAEL",null,null,"Pisc Brd",{"$f":"IF(D10>0,  D10, \"\")","v":1.1978098220940874E-5},{"$f":"IF(ISERROR(C10-K10), \"\", C10-K10)","v":2.982546457014278E-3},{"$f":"IF(ISERROR(E10-C10), \"\", E10-C10)","v":0.13275725528209467},{"$f":"E10-SUM(K10:M10)","v":0}]
["Non-Accidental Acute Exposures"]
["   Contaminated Fruit [Lowest Residue Rates]",null,null,null,null,null,null,null,null,"FRUIT-------------"]
[null,"Small bird (10g)","No exposure assessment",null,null,null,null,null,null,"Sm Brd",{"$f":"IF(D13>0,  D13, \"\")","v":""},{"$f":"IF(ISERROR(C13-K13), \"\", C13-K13)","v":""},{"$f":"IF(ISERROR(E13-C13), \"\", E13-C13)","v":""},{"$f":"E13-SUM(K13:M13)","v":0}]
[null,"Large Bird (4 kg)","No exposure assessment",null,null,null,null,null,null,"Lrg Brd","","","",0]
["   Contaminated Broadleaf Foliage",null,null,null,null,null,null,null,null,"BROADLEAF-----"]
[null,"Small bird (10g)","No exposure assessment",null,null,null,null,null,null,"Sm Brd",{"$f":"IF(D16>0,  D16, \"\")","v":""},{"$f":"IF(ISERROR(C16-K16), \"\", C16-K16)","v":""},{"$f":"IF(ISERROR(E16-C16), \"\", E16-C16)","v":""},{"$f":"E16-SUM(K16:M16)","v":0}]
[null,"Large Bird (4 kg)","No exposure assessment",null,null,null,null,null,null,"Lrg Brd","","","",0]
["  Contaminated Tall Grass",null,null,null,null,null,null,null,null,"TALL GRASS -----"]
[null,"Small bird (10g)","No exposure assessment",null,null,null,null,null,null,"Sm Brd",{"$f":"IF(D19>0,  D19, \"\")","v":""},{"$f":"IF(ISERROR(C19-K19), \"\", C19-K19)","v":""},{"$f":"IF(ISERROR(E19-C19), \"\", E19-C19)","v":""},{"$f":"E19-SUM(K19:M19)","v":0}]
[null,"Large Bird (4 kg)","No exposure assessment",null,null,null,null,null,null,"Lrg Brd","","","",0]
["   Contaminated Short Grass [Highest Residue Rate]",null,null,null,null,null,null,null,null,"SHORT GRASS---"]
[null,"Small bird (10g)","No exposure assessment",null,null,null,null,null,null,"Sm Brd",{"$f":"IF(D22>0,  D22, \"\")","v":""},{"$f":"IF(ISERROR(C22-K22), \"\", C22-K22)","v":""},{"$f":"IF(ISERROR(E22-C22), \"\", E22-C22)","v":""},{"$f":"E22-SUM(K22:M22)","v":0}]
[null,"Large Bird (4 kg)","No exposure assessment",null,null,null,null,null,null,"Lrg Brd","","","",0]
["   Contaminated Water",null,null,null,null,null,null,null,null,"WATER------------"]
[null,"Small bird (10g)",{"$f":"F08e!$C$18/$F$25","v":4.6744885524614547E-4},{"$f":"F08e!$C$19/$F$25","v":4.3149125099644196E-8},{"$f":"F08e!$C$20/$F$25","v":6.1127927224495955E-3},{"$f":"'B02'!$E$8","v":3},"NOAEL",null,null,"Sm Brd",{"$f":"IF(D25>0,  D25, \"\")","v":4.3149125099644196E-8},{"$f":"IF(ISERROR(C25-K25), \"\", C25-K25)","v":4.6740570612104581E-4},{"$f":"IF(ISERROR(E25-C25), \"\", E25-C25)","v":5.6453438672034503E-3},{"$f":"E25-SUM(K25:M25)","v":0}]
[null,"Large Bird (4 kg)",{"$f":"F08f!$C$18/$F$26","v":6.4722353838346977E-5},{"$f":"F08f!$C$19/$F$26","v":5.97437112353972E-9},{"$f":"F08f!$C$20/$F$26","v":8.4636924250146067E-4},{"$f":"'B02'!$E$8","v":3},"NOAEL",null,null,"Lrg Brd",5.97437112353972E-9,6.471637946722344E-5,7.8164688866311368E-4,0]
["   Contaminated Insects",null,null,null,null,null,null,null,null,"INSECTS------------"]
[null,"Small bird (10g)","No exposure assessment",null,null,null,null,null,null,"Sm Brd",{"$f":"IF(D28>0,  D28, \"\")","v":""},{"$f":"IF(ISERROR(C28-K28), \"\", C28-K28)","v":""},{"$f":"IF(ISERROR(E28-C28), \"\", E28-C28)","v":""},{"$f":"E28-SUM(K28:M28)","v":0}]
["   Consumption of small mammal (after direct spray) by predator",null,null,null,null,null,null,null,null,"SMALL MAMMAL-"]
[null,"Carnivorous bird (640 g)","No exposure assessment",null,null,null,null,null,null,"Crn Brd",{"$f":"IF(D30>0,  D30, \"\")","v":""},{"$f":"IF(ISERROR(C30-K30), \"\", C30-K30)","v":""},{"$f":"IF(ISERROR(E30-C30), \"\", E30-C30)","v":""},{"$f":"E30-SUM(K30:M30)","v":0}]
["   Consumption of contaminated Fish",null,null,null,null,null,null,null,null,"FISH----------------"]
[null,"Fish-eating bird (2.4 kg)",{"$f":"F11c!$C$47/$F$32","v":8.5708540770712972E-5},{"$f":"F11c!$C$48/$F$32","v":7.9115576096042754E-10},{"$f":"F11c!$C$49/$F$32","v":6.3512226365989881E-3},{"$f":"'B02'!$E$8","v":3},"NOAEL",null,null,"Psc Brd",{"$f":"IF(D32>0,  D32, \"\")","v":7.9115576096042754E-10},{"$f":"IF(ISERROR(C32-K32), \"\", C32-K32)","v":8.5707749614952005E-5},{"$f":"IF(ISERROR(E32-C32), \"\", E32-C32)","v":6.2655140958282748E-3},{"$f":"E32-SUM(K32:M32)","v":0}]
["Chronic/Longer Term Exposures"]
["   Contaminated Fruit (Lowest Residue Rate)",null,null,null,null,null,null,null,null,"FRUIT-------------"]
[null,"Small bird (10g)","No exposure assessment",null,null,null,null,null,null,"Sm Brd",{"$f":"IF(D35>0,  D35, \"\")","v":""},{"$f":"IF(ISERROR(C35-K35), \"\", C35-K35)","v":""},{"$f":"IF(ISERROR(E35-C35), \"\", E35-C35)","v":""},{"$f":"E35-SUM(K35:M35)","v":0}]
[null,"Large Bird (4 kg)","No exposure assessment",null,null,null,null,null,null,"Lrg Brd","","","",0]
["   Contaminated Broadleaf Foliage",null,null,null,null,null,null,null,null,"BROADLEAF-----"]
[null,"Small bird (10g)","No exposure assessment",null,null,null,null,null,null,"Sm Brd",{"$f":"IF(D38>0,  D38, \"\")","v":""},{"$f":"IF(ISERROR(C38-K38), \"\", C38-K38)","v":""},{"$f":"IF(ISERROR(E38-C38), \"\", E38-C38)","v":""},{"$f":"E38-SUM(K38:M38)","v":0}]
[null,"Large Bird (4 kg)","No exposure assessment",null,null,null,null,null,null,"Lrg Brd",{"$f":"IF(D39>0,  D39, \"\")","v":""},{"$f":"IF(ISERROR(C39-K39), \"\", C39-K39)","v":""},{"$f":"IF(ISERROR(E39-C39), \"\", E39-C39)","v":""},0]
["  Contaminated Tall Grass",null,null,null,null,null,null,null,null,"TALL GRASS -----"]
[null,"Small bird (10g)","No exposure assessment",null,null,null,null,null,null,"Sm Brd",{"$f":"IF(D41>0,  D41, \"\")","v":""},{"$f":"IF(ISERROR(C41-K41), \"\", C41-K41)","v":""},{"$f":"IF(ISERROR(E41-C41), \"\", E41-C41)","v":""},{"$f":"E41-SUM(K41:M41)","v":0}]
[null,"Large Bird (4 kg)","No exposure assessment",null,null,null,null,null,null,"Lrg Brd","","","",0]
["   Contaminated Vegetation (Short Grass - Highest Residue Rate)",null,null,null,null,null,null,null,null,"SHORT GRASS---"]
[null,"Small bird (10g)","No exposure assessment",null,null,null,null,null,null,"Sm Brd",{"$f":"IF(D44>0,  D44, \"\")","v":""},{"$f":"IF(ISERROR(C44-K44), \"\", C44-K44)","v":""},{"$f":"IF(ISERROR(E44-C44), \"\", E44-C44)","v":""},{"$f":"E44-SUM(K44:M44)","v":0}]
[null,"Large Bird (4 kg)","No exposure assessment",null,null,null,null,null,null,"Lrg Brd","","","",0]
["   Contaminated Water",null,null,null,null,null,null,null,null,"WATER------------"]
[null,"Small bird (10g)",{"$f":"F16e!$C$18/$F$47","v":3.5957604249703499E-4},{"$f":"F16e!$C$19/$F$47","v":2.140333586291875E-8},{"$f":"F16e!$C$20/$F$47","v":2.0547202428402001E-3},{"$f":"'B02'!$E$9","v":2.52},"NOAEL",null,null,"Sm Brd",{"$f":"IF(D47>0,  D47, \"\")","v":2.140333586291875E-8},{"$f":"IF(ISERROR(C47-K47), \"\", C47-K47)","v":3.5955463916117206E-4},{"$f":"IF(ISERROR(E47-C47), \"\", E47-C47)","v":1.6951442003431652E-3},{"$f":"E47-SUM(K47:M47)","v":0}]
[null,"Large Bird (4 kg)",{"$f":"F16f!$C$18/$F$48","v":4.9786426029497678E-5},{"$f":"F16f!$C$19/$F$48","v":2.9634777398510521E-9},{"$f":"F16f!$C$20/$F$48","v":2.8449386302570101E-4},{"$f":"'B02'!$E$9","v":2.52},"NOAEL",null,null,"Lrg Brd",2.9634777398510521E-9,4.9783462551757829E-5,2.3470743699620334E-4,0]
["   Consumption of contaminated Fish",null,null,null,null,null,null,null,null,"FISH----------------"]
[null,"Fish-eating bird (2.4 kg)",{"$f":"F17c!$C$47/$F$50","v":6.5929646746702293E-5},{"$f":"F17c!$C$48/$F$50","v":3.9243837349227561E-10},{"$f":"F17c!$C$49/$F$50","v":2.1348647517979791E-3},{"$f":"'B02'!$E$9","v":2.52},"NOAEL",null,null,"Psc Brd",{"$f":"IF(D50>0,  D50, \"\")","v":3.9243837349227561E-10},{"$f":"IF(ISERROR(C50-K50), \"\", C50-K50)","v":6.5929254308328802E-5},{"$f":"IF(ISERROR(E50-C50), \"\", E50-C50)","v":2.0689351050512768E-3},{"$f":"E50-SUM(K50:M50)","v":0}]

{"sheet":"G03","index":75,"n_rows":42,"n_cols":14,"rows_kept":42,"cut":false,"hidden":false,"merged":[[7,6,8,6],[0,0,0,5],[2,2,2,4],[7,0,8,0],[7,1,8,1],[7,2,7,4],[7,5,8,5]]}
["Worksheet G03: Summary of Hazard Quotients for Aquatic Species"]
["Application Rate:",0.4," lb a.i./acre",null,null,"AqToxSumV6"]
["Exposures",null,"Concentrations (mg/L)"]
[null,"Scenario","Central","Lower","Upper","Worksheet"]
[null,"Accidental Spill",{"$f":"B04b!Acute_C","v":0.18168000000000001},{"$f":"B04b!Acute_L","v":7.2672000000000006E-3},{"$f":"B04b!Acute_U","v":1.4534400000000001},"B04b"]
[null,"Peak EEC",{"$f":"B04a!Acute_C","v":5.1999999999999998E-3},{"$f":"B04a!Acute_L","v":4.7999999999999996E-7},{"$f":"B04a!Acute_U","v":6.8000000000000005E-2},"B04a"]
[null,"Chronic",{"$f":"B04a!Chronic_C","v":3.3600000000000001E-3},{"$f":"B04a!Chronic_L","v":1.9999999999999999E-7},{"$f":"B04a!Chronic_U","v":1.9200000000000002E-2},"B04a"]
["Receptor","Type","Hazard Quotients",null,null,"Toxicity Value","Toxicity Endpoint"]
[null,null,"Central","Lower","Upper"]
["Accidental Acute Exposures",null,null,null,null,null,null,null,null,null,"Lower","Central","Upper","Check"]
["Fish","Sensitive",{"$f":"C$5/$F11","v":7.2672000000000006E-3},{"$f":"D$5/$F11","v":2.9068800000000005E-4},{"$f":"E$5/$F11","v":5.8137600000000005E-2},{"$f":"'B02'!$E$11","v":25},"NOEC",null,null,"Fish Sn",{"$f":"IF(D11>0,  D11, \"\")","v":2.9068800000000005E-4},{"$f":"IF(ISERROR(C11-K11), \"\", C11-K11)","v":6.9765120000000007E-3},{"$f":"IF(ISERROR(E11-C11), \"\", E11-C11)","v":5.0870400000000003E-2},{"$f":"E11-SUM(K11:M11)","v":0}]
[null,"Tolerant",{"$f":"C$5/$F12","v":3.6336000000000003E-3},1.4534400000000002E-4,2.9068800000000002E-2,{"$f":"'B02'!$E$12","v":50},"NOEC",null,null,"Fish Tl",1.4534400000000002E-4,3.4882560000000003E-3,2.5435200000000002E-2,{"$f":"E12-SUM(K12:M12)","v":0}]
["Amphibian","Sensitive",4.6704370179948586E-2,1.8681748071979435E-3,0.37363496143958869,{"$f":"'B02'!$E$14","v":3.89},"NOEC",null,null,"Amph Sn",1.8681748071979435E-3,4.4836195372750645E-2,0.32693059125964008,{"$f":"E13-SUM(K13:M13)","v":0}]
[null,"Tolerant",1.0879041916167665E-2,4.3516167664670665E-4,8.703233532934132E-2,{"$f":"'B02'!$E$21","v":16.7},"NOEC",null,null,"Amph To",4.3516167664670665E-4,1.0443880239520958E-2,7.6153293413173659E-2,0]
["Invertebrate","Sensitive",559.01538461538462,22.360615384615386,4472.123076923077,{"$f":"'B02'!$E$15","v":3.2499999999999999E-4},"NOEC",null,null,"Invt Sn",22.360615384615386,536.65476923076926,3913.1076923076926,0]
[null,"Tolerant",4.325714285714286E-3,1.7302857142857144E-4,3.4605714285714288E-2,{"$f":"'B02'!$E$16","v":42},"NOEC",null,null,"Invt Tl",1.7302857142857144E-4,4.1526857142857145E-3,3.0280000000000001E-2,0]
["Macrophyte","Sensitive","No toxicity data.",null,null,"N/A",null,null,null,"Plant Sn","","","",0]
[null,"Tolerant",4.9102702702702701E-3,1.9641081081081082E-4,3.9282162162162161E-2,{"$f":"'B02'!$E$24","v":37},"NOAEC*",null,null,"Plant Tl",1.9641081081081082E-4,4.7138594594594591E-3,3.4371891891891888E-2,0]
["Algae","Sensitive",3.2442857142857148E-2,1.2977142857142859E-3,0.25954285714285719,{"$f":"'B02'!$E$19","v":5.6},"NOEC",null,null,"Algae Sn",1.2977142857142859E-3,3.1145142857142861E-2,0.22710000000000002,0]
[null,"Tolerant",1.5267226890756304E-3,6.1068907563025212E-5,1.2213781512605043E-2,{"$f":"'B02'!$E$20","v":119},"NOEC",null,null,"Algae Tl",6.1068907563025212E-5,1.4656537815126052E-3,1.0687058823529412E-2,0]
["Non-Accidental Acute Exposures"]
["Fish","Sensitive",{"$f":"C$6/$F22","v":2.0799999999999999E-4},{"$f":"D$6/$F22","v":1.92E-8},2.7200000000000002E-3,{"$f":"'B02'!$E$11","v":25},"NOEC",null,null,"Fish Sn",{"$f":"IF(D22>0,  D22, \"\")","v":1.92E-8},{"$f":"IF(ISERROR(C22-K22), \"\", C22-K22)","v":2.079808E-4},{"$f":"IF(ISERROR(E22-C22), \"\", E22-C22)","v":2.5120000000000003E-3},0]
[null,"Tolerant",{"$f":"C$6/$F23","v":1.0399999999999999E-4},9.5999999999999999E-9,1.3600000000000001E-3,{"$f":"'B02'!$E$12","v":50},"NOEC",null,null,"Fish Tl",9.5999999999999999E-9,1.039904E-4,1.2560000000000002E-3,0]
["Amphibian","Sensitive",1.3367609254498715E-3,1.2339331619537274E-7,1.7480719794344474E-2,{"$f":"'B02'!$E$14","v":3.89},"NOEC",null,null,"Amph Sn",1.2339331619537274E-7,1.336637532133676E-3,1.6143958868894602E-2,0]
[null,"Tolerant",3.1137724550898201E-4,2.8742514970059879E-8,4.0718562874251501E-3,{"$f":"'B02'!$E$21","v":16.7},"NOEC",null,null,"Amph To",2.8742514970059879E-8,3.1134850299401198E-4,3.7604790419161682E-3,0]
["Invertebrate","Sensitive",16,1.4769230769230768E-3,209.23076923076925,{"$f":"'B02'!$E$15","v":3.2499999999999999E-4},"NOEC",null,null,"Invt Sn",1.4769230769230768E-3,15.998523076923076,193.23076923076925,0]
[null,"Tolerant",1.2380952380952381E-4,1.1428571428571427E-8,1.6190476190476191E-3,{"$f":"'B02'!$E$16","v":42},"NOEC",null,null,"Invt Tl",1.1428571428571427E-8,1.2379809523809524E-4,1.4952380952380953E-3,0]
["Macrophyte","Sensitive","No toxicity data.",null,null,"N/A",null,null,null,"Plant Sn","","","",0]
[null,"Tolerant",1.4054054054054053E-4,1.2972972972972971E-8,1.8378378378378379E-3,{"$f":"'B02'!$E$24","v":37},"NOAEC*",null,null,"Plant Tl",1.2972972972972971E-8,1.4052756756756756E-4,1.6972972972972974E-3,0]
["Algae","Sensitive",9.2857142857142856E-4,8.5714285714285716E-8,1.2142857142857144E-2,{"$f":"'B02'!$E$19","v":5.6},"NOEC",null,null,"Algae Sn",8.5714285714285716E-8,9.2848571428571429E-4,1.1214285714285717E-2,0]
[null,"Tolerant",4.3697478991596636E-5,4.0336134453781506E-9,5.7142857142857147E-4,{"$f":"'B02'!$E$20","v":119},"NOEC",null,null,"Algae Tl",4.0336134453781506E-9,4.369344537815126E-5,5.2773109243697488E-4,0]
["Chronic/Longer Term Exposures"]
["Fish","Sensitive",{"$f":"C$7/$F33","v":2.8000000000000004E-3},{"$f":"D$7/$F33","v":1.6666666666666668E-7},1.6000000000000004E-2,{"$f":"'B02'!$E$13","v":1.2},"NOEC",null,null,"Fish Sn",{"$f":"IF(D33>0,  D33, \"\")","v":1.6666666666666668E-7},{"$f":"IF(ISERROR(C33-K33), \"\", C33-K33)","v":2.7998333333333339E-3},{"$f":"IF(ISERROR(E33-C33), \"\", E33-C33)","v":1.3200000000000003E-2},0]
[null,"Tolerant","No toxicity data.",null,null,"N/A",null,null,null,"Fish Tl","","","",0]
["Amphibian","Sensitive","No toxicity data.",null,null,"N/A",null,null,null,"Amph Sn","","","",0]
[null,"Tolerant","No toxicity data.",null,null,"N/A",null,null,null,"Amph To","","","",0]
["Invertebrate","Sensitive",{"$f":"C$7/$F37","v":140},8.3333333333333332E-3,800,{"$f":"'B02'!$E$17","v":2.4000000000000001E-5},"NOEC",null,null,"Invt Sn",8.3333333333333332E-3,139.99166666666667,660,0]
[null,"Tolerant",2.9734513274336286E-3,1.7699115044247788E-7,1.6991150442477881E-2,{"$f":"'B02'!$E$18","v":1.1299999999999999},"NOEC",null,null,"Invt Tl",1.7699115044247788E-7,2.9732743362831863E-3,1.4017699115044252E-2,0]
["Macrophyte","Sensitive","No toxicity data.",null,null,"N/A",null,null,null,"Plant Sn","","","",0]
[null,"Tolerant",9.0810810810810819E-5,5.4054054054054049E-9,5.1891891891891898E-4,{"$f":"'B02'!$E$24","v":37},"NOAEC*",null,null,"Plant Tl",5.4054054054054049E-9,9.0805405405405408E-5,4.2810810810810815E-4,0]
["Algae","Sensitive",6.0000000000000006E-4,3.5714285714285712E-8,3.4285714285714293E-3,{"$f":"'B02'!$E$19","v":5.6},"NOEC",null,null,"Algae Sn",3.5714285714285712E-8,5.9996428571428581E-4,2.8285714285714294E-3,0]
[null,"Tolerant",2.823529411764706E-5,1.680672268907563E-9,1.6134453781512607E-4,{"$f":"'B02'!$E$20","v":119},"NOEC",null,null,"Algae Tl",{"$f":"IF(D42>0,  D42, \"\")","v":1.680672268907563E-9},{"$f":"IF(ISERROR(C42-K42), \"\", C42-K42)","v":2.8233613445378153E-5},{"$f":"IF(ISERROR(E42-C42), \"\", E42-C42)","v":1.3310924369747901E-4},0]

{"sheet":"G07a","index":76,"n_rows":21,"n_cols":5,"rows_kept":21,"cut":false,"hidden":false,"merged":[[17,0,20,0],[0,0,0,4],[2,1,2,3],[7,0,10,0],[8,3,10,3],[12,0,15,0],[13,3,15,3]]}
["Consumption of Maple Leaves by a Herbivorous Insect, Acute exposure."]
["Short Title","Consumpiton of maple vegetation",null,null,"FdPropBWV6"]
["Receptor","Herbivorous Insect"]
["Duration","Acute",null,null,"Scenario parameter"]
["Material consumed","Maple"]
["Parameter/Assumption","Code / Range","Equation/   Value","Units","Reference/Designation"]
["Commodity"]
["Concentration on vegetation","Conc"]
[null,"Central ",14,"mg/kg food","Section 4.2.3.2.2.1 of risk assessment"]
[null,"Lower ",6.2,null,"Section 4.2.3.2.2.1 of risk assessment"]
[null,"Upper ",49,null,"Section 4.2.3.2.2.1 of risk assessment"]
["Receptor"]
["Amount consumed per day  per unit body weight","Amnt"]
[null,"Central ",{"$f":"'A03'!$E$50","v":1.3},"kg food/kg BW per day","Waldbauer 1968"]
[null,"Lower ",{"$f":"'A03'!$E$51","v":0.6},null,"Reichle et al. 1973"]
[null,"Upper ",{"$f":"'A03'!$E$52","v":2.2000000000000002},null,"Waldbauer 1968"]
["Estimate"]
["Dose","Dose","Conc × Amnt"]
[null,"Central",{"$f":"C14*C9","v":18.2},"mg/kg bw","Eq"]
[null,"Lower",{"$f":"C15*C10","v":3.7199999999999998},null,"Eq"]
[null,"Upper",{"$f":"C16*C11","v":107.80000000000001},null,"Eq"]

{"sheet":"G07b","index":77,"n_rows":21,"n_cols":5,"rows_kept":21,"cut":false,"hidden":false,"merged":[[17,0,20,0],[0,0,0,4],[2,1,2,3],[7,0,10,0],[8,3,10,3],[12,0,15,0],[13,3,15,3]]}
["Consumption of Ash Leaves by a Herbivorous Insect, Acute exposure."]
["Short Title","Ash Leaves",null,null,"FdPropBWV6"]
["Receptor","Herbivorous Insect"]
["Duration","Acute",null,null,"Scenario parameter"]
["Material consumed","Ash Leaves"]
["Parameter/Assumption","Code / Range","Equation/   Value","Units","Reference/Designation"]
["Commodity"]
["Concentration on vegetation","Conc",null,null,"Section 4.2.3.2.2.1 of risk assessment"]
[null,"Central ",0.85,"mg/kg food","Ugine et al. (2013)"]
[null,"Lower ",0.1,null,"Ugine et al. (2013)"]
[null,"Upper ",1.28,null,"Ugine et al. (2013)"]
["Receptor"]
["Amount consumed per day  per unit body weight","Amnt"]
[null,"Central ",{"$f":"'A03'!$E$47","v":1.3},"kg food/kg BW per day","Waldbauer 1968"]
[null,"Lower ",{"$f":"'A03'!$E$48","v":0.6},null,"Reichle et al. 1973"]
[null,"Upper ",{"$f":"'A03'!$E$49","v":2.2000000000000002},null,"Waldbauer 1968"]
["Estimate"]
["Dose","Dose","Conc × Amnt"]
[null,"Central",{"$f":"C14*C9","v":1.105},"mg/kg bw","Eq"]
[null,"Lower",{"$f":"C15*C10","v":0.06},null,"Eq"]
[null,"Upper",{"$f":"C16*C11","v":2.8160000000000003},null,"Eq"]

{"sheet":"G07c","index":78,"n_rows":21,"n_cols":5,"rows_kept":21,"cut":false,"hidden":false,"merged":[[17,0,20,0],[0,0,0,4],[2,1,2,3],[7,0,10,0],[8,3,10,3],[12,0,15,0],[13,3,15,3]]}
["Consumption of Hemlock needles by a Herbivorous Insect, Acute exposure."]
["Short Title","Hemlock needles",null,null,"FdPropBWV6"]
["Receptor","Herbivorous Insect"]
["Duration","Acute",null,null,"Scenario parameter"]
["Material consumed","Hemlock needles"]
["Parameter/Assumption","Code / Range","Equation/   Value","Units","Reference/Designation"]
["Commodity"]
["Concentration on vegetation","Conc"]
[null,"Central ",0.1,"mg/kg food","Section 4.2.3.2.2.1 of risk assessment"]
[null,"Lower ",0.03,null,"Section 4.2.3.2.2.1 of risk assessment"]
[null,"Upper ",0.2,null,"Section 4.2.3.2.2.1 of risk assessment"]
["Receptor"]
["Amount consumed per day  per unit body weight","Amnt"]
[null,"Central ",{"$f":"'A03'!$E$53","v":1.3},"kg food/kg BW per day","Waldbauer 1968"]
[null,"Lower ",{"$f":"'A03'!$E$54","v":0.6},null,"Reichle et al. 1973"]
[null,"Upper ",{"$f":"'A03'!$E$55","v":2.2000000000000002},null,"Waldbauer 1968"]
["Estimate"]
["Dose","Dose","Conc × Amnt"]
[null,"Central",{"$f":"C14*C9","v":0.13},"mg/kg bw","Eq"]
[null,"Lower",{"$f":"C15*C10","v":1.7999999999999999E-2},null,"Eq"]
[null,"Upper",{"$f":"C16*C11","v":0.44000000000000006},null,"Eq"]

{"sheet":"G07d","index":79,"n_rows":21,"n_cols":5,"rows_kept":21,"cut":false,"hidden":false,"merged":[[17,0,20,0],[0,0,0,4],[2,1,2,3],[7,0,10,0],[8,3,10,3],[12,0,15,0],[13,3,15,3]]}
["Consumption of [Placeholder] by a Herbivorous Insect, Acute exposure."]
["Short Title","Place holder",null,null,"FdPropBWV6"]
["Receptor","Herbivorous Insect"]
["Duration","Acute",null,null,"Scenario parameter"]
["Material consumed","Tall Grass"]
["Parameter/Assumption","Code / Range","Equation/   Value","Units","Reference/Designation"]
["Commodity"]
["Concentration on vegetation","Conc"]
[null,"Central ",0,"mg/kg food"]
[null,"Lower ",0]
[null,"Upper ",0]
["Receptor"]
["Amount consumed per day  per unit body weight","Amnt"]
[null,"Central ",{"$f":"'A03'!$E$56","v":1.3},"kg food/kg BW per day","Waldbauer 1968"]
[null,"Lower ",{"$f":"'A03'!$E$57","v":0.6},null,"Reichle et al. 1973"]
[null,"Upper ",{"$f":"'A03'!$E$58","v":2.2000000000000002},null,"Waldbauer 1968"]
["Estimate"]
["Dose","Dose","Conc × Amnt"]
[null,"Central",{"$f":"C14*C9","v":0},"mg/kg bw","Eq"]
[null,"Lower",{"$f":"C15*C10","v":0},null,"Eq"]
[null,"Upper",{"$f":"C16*C11","v":0},null,"Eq"]

{"sheet":"G08a","index":80,"n_rows":9,"n_cols":6,"rows_kept":9,"cut":false,"hidden":false,"merged":[[0,0,0,5],[2,0,3,0],[2,1,3,1],[2,2,2,4],[2,5,3,5]]}
["Summary of Exposure Assessments for the Herbivorous or Predatory Insects"]
["Application Rate:",{"$f":"'A01'!ApRt_C","v":0.4}," lb a.i./acre",null,null,"InstHerbSum"]
["Food Item","Receptor","mg/kg/day or mg/kg/event",null,null,"Detail Worksheet"]
[null,null,"Central","Lower","Upper"]
["Acute Exposures"]
["Maple","Insect",{"$f":"G07a!Dose_C","v":18.2},{"$f":"G07a!Dose_L","v":3.7199999999999998},{"$f":"G07a!Dose_U","v":107.80000000000001},"G07a"]
["Ash","Insect",{"$f":"G07b!Dose_C","v":1.105},{"$f":"G07b!Dose_L","v":0.06},{"$f":"G07b!Dose_U","v":2.8160000000000003},"G07b"]
["Hemlock","Insect",{"$f":"G07c!Dose_C","v":0.13},{"$f":"G07c!Dose_L","v":1.7999999999999999E-2},{"$f":"G07c!Dose_U","v":0.44000000000000006},"G07c"]
["Placeholder","Insect",{"$f":"G07d!Dose_C","v":0},{"$f":"G07d!Dose_L","v":0},{"$f":"G07d!Dose_U","v":0},"G07d"]

{"sheet":"G08b","index":81,"n_rows":9,"n_cols":7,"rows_kept":9,"cut":false,"hidden":false,"merged":[[0,0,0,5],[2,0,3,0],[2,1,3,1],[2,2,2,4],[2,5,3,5]]}
["Summary of Hazard Quotients (Toxicity) for the Herbivorous or Predatory Insects"]
["Application Rate:",{"$f":"'A01'!ApRt_C","v":0.4}," lb a.i./acre",null,null,"InstHerbSum"]
["Food Item","Receptor","Hazard Quotients",null,null,"Toxicity Value"]
[null,null,"Central","Lower","Upper"]
["Acute Exposures"]
["Maple","Insect",{"$f":"G07a!$C$19/$F$6","v":79130.434782608689},{"$f":"G07a!$C$20/$F$6","v":16173.91304347826},{"$f":"G07a!$C$21/$F$6","v":468695.65217391308},{"$f":"'B02'!$E$23","v":2.3000000000000001E-4},"NOAEL*"]
["Ash","Insect",{"$f":"G07b!$C$19/$F$7","v":4804.347826086956},{"$f":"G07b!$C$20/$F$7","v":260.86956521739131},{"$f":"G07b!$C$21/$F$7","v":12243.478260869566},{"$f":"'B02'!$E$23","v":2.3000000000000001E-4},"NOAEL*"]
["Hemlock","Insect",{"$f":"G07c!$C$19/$F$8","v":565.21739130434787},{"$f":"G07c!$C$20/$F$8","v":78.260869565217376},{"$f":"G07c!$C$21/$F$8","v":1913.0434782608697},{"$f":"'B02'!$E$23","v":2.3000000000000001E-4},"NOAEL*"]
["Placeholder","Insect",{"$f":"G07d!$C$19/$F$9","v":0},{"$f":"G07d!$C$20/$F$9","v":0},{"$f":"G07d!$C$21/$F$9","v":0},{"$f":"'B02'!$E$23","v":2.3000000000000001E-4},"NOAEL*"]

{"sheet":"G10","index":82,"n_rows":69,"n_cols":5,"rows_kept":69,"cut":false,"hidden":false,"merged":[[53,0,56,0],[57,0,60,0],[61,0,64,0],[28,0,31,0],[33,0,36,0],[37,0,40,0],[41,0,44,0],[45,0,48,0],[49,0,52,0],[16,0,19,0],[0,0,0,4],[2,1,2,3],[4,1,4,3],[8,0,11,0],[12,0,15,0]]}
["Risks to Honeybee Foraging for Nectar based Nutritional Requirements"]
["Short Title","Nectar and Bees",null,null,"NectConsumpRRT"]
["Receptor","Honeybee"]
["Duration","Acute"]
["Material consumed","Nectar"]
["Parameter/Assumption","Code / Range","Equation/   Value","Units","Reference/Designation"]
["Receptor Inputs"]
["Body weight of bee","BW",{"$f":"A02b!$C$36","v":1.16E-4},"kg","Winston 1987"]
["Hours of flight per day","HourFlt"]
[null,"Central ",6.5,"hr","Modified from Rortais et al. 2005"]
[null,"Lower ",4]
[null,"Upper ",10.7]
["Rate of sugar (mg/h) required for flight","RtSugarFlt"]
[null,"Central ",10,"mg/hr","Modified from Rortais et al. 2005"]
[null,"Lower ",8]
[null,"Upper ",12]
["Rate of sugar (mg/h) required at other times","RtSugarOth"]
[null,"Central ",0.7,"mg/hr","Winston (1987), p. 61."]
[null,"Lower ",0.7]
[null,"Upper ",0.7]
["Toxicity Value","ToxV",{"$f":"'B02'!$E$22","v":9.5000000000000005E-5},"mg/kg bw","NOAEL"]
["Nectar/Honey Inputs"]
["Sugar content of nectar","NectSug"]
[null,"Central ",0.4,"Proportion(w/w)"]
[null,"Lower ",0.4]
[null,"Upper ",0.4]
["Chemical Inputs"]
["Application Rate","ApRt",{"$f":"'A01'!ApRt_C","v":0.4},"lb/acre","Worksheet A01"]
["Concentration Rate in Nectar","ConcRRTNec"]
[null,"Central ",{"$f":"'A01'!C$39","v":2.9000000000000001E-2},"mg/kg per lb/ac","Worksheet A01"]
[null,"Lower ",{"$f":"'A01'!C$40","v":1.4E-2},null,"Worksheet A01"]
[null,"Upper ",{"$f":"'A01'!C$41","v":4.5999999999999999E-2},null,"Worksheet A01"]
["Calculations"]
["Concentration in nectar","ConcNec","ApRt x ConcRRTNec"]
[null,"Central ",{"$f":"C$28*C30","v":1.1600000000000001E-2},"mg/kg Nectar","Eq"]
[null,"Lower ",{"$f":"C$28*C31","v":5.6000000000000008E-3},null,"Eq"]
[null,"Upper ",{"$f":"C$28*C32","v":1.84E-2},null,"Eq"]
["Amount of sugar (mg) required for flight","AmSugarFlt","RtSugarFlt x HourFlt"]
[null,"Central ",{"$f":"C14*C10","v":65},"mg/day","Eq"]
[null,"Lower ",{"$f":"C15*C11","v":32},null,"Eq"]
[null,"Upper ",{"$f":"C16*C12","v":128.39999999999998},null,"Eq"]
["Amount of sugar (mg) required for other activities","AmSugarOth","RtSugarOth x (24-HourFlt)"]
[null,"Central ",{"$f":"C18*(24-C10)","v":12.25},"mg/day","Eq"]
[null,"Upper",{"$f":"C19*(24-C11)","v":14},null,"Eq"]
[null,"Lower",{"$f":"C20*(24-C12)","v":9.31},null,"Eq"]
["Total Daily Sugar Requirement","AmSugarTot","AmSugarFlt + AmSugarOth"]
[null,"Central ",{"$f":"C39+C43","v":77.25},"mg Sugar/day","Eq"]
[null,"Lower ",{"$f":"C40+C44","v":46},null,"Eq"]
[null,"Upper ",{"$f":"C41+C45","v":137.70999999999998},null,"Eq"]
["Total Daily Consumption Requirement in Nectar Equivalents (mg)","NectEqMg","AmSugarTot ÷ NectSug"]
[null,"Central ",{"$f":"C47/C24","v":193.125},"mg Nectar/day","Eq"]
[null,"Lower ",{"$f":"C48/C25","v":115},null,"Eq"]
[null,"Upper ",{"$f":"C49/C26","v":344.27499999999992},null,"Eq"]
["Total Daily Consumption Requirement in Nectar Equivalents (kg)","NectEqkg","NectEqMg ÷ 1,000,000 mg/kg"]
[null,"Central ",{"$f":"C51/1000000","v":1.9312499999999999E-4},"kg","Eq"]
[null,"Lower ",{"$f":"C52/1000000","v":1.15E-4},null,"Eq"]
[null,"Upper ",{"$f":"C53/1000000","v":3.442749999999999E-4},null,"Eq"]
["Total Daily Consumption of Chemical (mg)","ChemMg","NectEqkg × ConcNec "]
[null,"Central ",{"$f":"C55*C35","v":2.2402500000000003E-6},"mg","Eq"]
[null,"Lower ",{"$f":"C56*C36","v":6.440000000000001E-7},null,"Eq"]
[null,"Upper ",{"$f":"C57*C37","v":6.3346599999999977E-6},null,"Eq"]
["Daily Dose (mg/kg bw)","Dose","ChemMg ÷ BW"]
[null,"Central",{"$f":"C59/C$8","v":1.9312500000000003E-2},null,"Eq"]
[null,"Lower",{"$f":"C60/C$8","v":5.5517241379310356E-3},null,"Eq"]
[null,"Upper",{"$f":"C61/C$8","v":5.460913793103446E-2},null,"Eq"]
["Hazard Quotients","HQ","Dose ÷ ToxV"]
[null,"Central",{"$f":"C63/C$21","v":203.28947368421055}]
[null,"Lower",{"$f":"C64/C$21","v":58.439201451905632}]
[null,"Upper",{"$f":"C65/C$21","v":574.83303085299428}]

{"sheet":"G11","index":83,"n_rows":44,"n_cols":19,"rows_kept":44,"cut":false,"hidden":false,"merged":[[0,0,0,4]]}
["Residue rates in nectar and pollen from Dively and Kamel 2012",null,null,null,null,null,null,null,null,null,"Residue rates in nectar from Dively and Kamel 2012"]
["NECTAR 2009",null,null,null,null,null,null,null,null,null,"POLLEN 2009"]
["Adapted from Table 2","All concentrations are in ng/g (ppb) nectar.",null,null,null,null,null,null,null,null,"Adapted from Table 1","All concentrations are in ng/g (ppb) pollen."]
["Application Method","Application Rate (kg a.i./ha)","Application Rate (lb a.i./acre)","Parent (mean)","Parent (min.)","Parent (max.)","Metabolites (mean)","Metabolites (min.)","Metabolites (Max)",null,"Application Method","Application Rate (kg a.i./ha)","Application Rate (lb a.i./acre)","Parent (mean)","Parent (min.)","Parent (max.)","Metabolites (mean)","Metabolites (min.)","Metabolites (Max)"]
["Bedding tray drench",0.03,{"$f":"B5*0.892","v":2.6759999999999999E-2},0.4,0.3,0.5,0.1,0.1,0.2,null,"Bedding tray drench",0.03,{"$f":"L5*0.892","v":2.6759999999999999E-2},4.9000000000000004,3.3,6.7,0.7,0.1,2.7]
["Transplant water treatment, low rate",0.28100000000000003,{"$f":"B6*0.892","v":0.25065200000000004},5.7,3.8,7.3,1.8,0.1,4,null,"Transplant water treatment, low rate",0.28100000000000003,{"$f":"L6*0.892","v":0.25065200000000004},36.700000000000003,30.1,40.1,11.4,8.3000000000000007,16.600000000000001]
["Transplant water treatment, high rate",0.42199999999999999,{"$f":"B7*0.892","v":0.37642399999999998},7.4,4.7,11.9,3.4,0.2,5.9,null,"Transplant water treatment, high rate",0.42199999999999999,{"$f":"L7*0.892","v":0.37642399999999998},60.9,40.5,86.6,17.5,10.6,21.9]
[]
[null,null,null,"Total (mean)","Total (min.)","Total (max.)","Rate (mean)","Rate (min.)","Rate (max.)",null,null,null,null,"Total (mean)","Total (min.)","Total (max.)","Rate (mean)","Rate (min.)","Rate (max.)"]
[null,null,null,{"$f":"D5+G5","v":0.5},{"$f":"E5+H5","v":0.4},0.7,{"$f":"D10/$M5","v":18.68460388639761},14.947683109118088,26.158445440956651,null,null,null,null,{"$f":"N5+Q5","v":5.6000000000000005},{"$f":"O5+R5","v":3.4},9.4,{"$f":"N10/$M5","v":209.26756352765324},127.05530642750374,351.27055306427508]
[null,null,null,{"$f":"D6+G6","v":7.5},3.9,11.3,29.921963519142071,15.559421029953878,45.082425035507391,null,null,null,null,{"$f":"N6+Q6","v":48.1},38.400000000000006,56.7,191.89952603609782,153.20045321800742,226.21004420471408]
[null,null,null,10.8,4.9000000000000004,17.8,28.691050517501544,13.017235882940515,47.287101778845134,null,null,null,null,78.400000000000006,51.1,108.5,208.27577412704824,135.75117420780822,288.23879455082567]
[null,null,null,null,null,"Average Rates:",{"$f":"AVERAGE(G11:G12)","v":29.30650701832181},{"$f":"AVERAGE(H11:H12)","v":14.288328456447196},46.184763407176263]
["NECTAR 2010",null,null,null,null,null,null,null,null,null,"POLLEN 2010"]
["Adapted from Table 4","All concentrations are in ng/g (ppb) nectar.",null,null,null,null,null,null,null,null,"Adapted from Table 3","All concentrations are in ng/g (ppb) pollen."]
["Application Method","Application Rate (kg a.i./ha)","Application Rate (lb a.i./acre)","Parent (mean)","Parent (min.)","Parent (max.)","Metabolites (mean)","Metabolites (min.)","Metabolites (Max)",null,"Application Method","Application Rate (kg a.i./ha)","Application Rate (lb a.i./acre)","Parent (mean)","Parent (min.)","Parent (max.)","Metabolites (mean)","Metabolites (min.)","Metabolites (Max)"]
["Bedding tray drench",0.03,{"$f":"B17*0.892","v":2.6759999999999999E-2},0.1,0.1,0.1,0.1,0.1,0.1,null,"Bedding tray drench",0.03,{"$f":"L17*0.892","v":2.6759999999999999E-2},0.1,0.1,0.1,0.1,0.1,0.1]
["Transplant water treatment, low rate",0.28100000000000003,{"$f":"B18*0.892","v":0.25065200000000004},6.1,4.8,6.7,0.1,0.1,0.1,null,"Transplant water treatment, low rate",0.28100000000000003,{"$f":"L18*0.892","v":0.25065200000000004},18.2,13.2,23.9,0.1,0.1,0.1]
["Transplant water treatment, high rate",0.42199999999999999,{"$f":"B19*0.892","v":0.37642399999999998},9.1,6.7,16,0.1,0.1,0.1,null,"Transplant water treatment, high rate",0.42199999999999999,{"$f":"L19*0.892","v":0.37642399999999998},31.8,23.9,44,0.1,0.1,0.1]
[]
[null,null,null,"Total (mean)","Total (min.)","Total (max.)","Rate (mean)","Rate (min.)","Rate (max.)",null,null,null,null,"Total (mean)","Total (min.)","Total (max.)","Rate (mean)","Rate (min.)","Rate (max.)"]
[null,null,null,{"$f":"D17+G17","v":0.2},{"$f":"E17+H17","v":0.2},0.2,{"$f":"D22/$C17","v":7.4738415545590442},{"$f":"E22/$C17","v":7.4738415545590442},7.4738415545590442,null,null,null,null,{"$f":"N17+Q17","v":0.2},{"$f":"O17+R17","v":0.2},0.2,{"$f":"N22/$M17","v":7.4738415545590442},7.4738415545590442,7.4738415545590442]
[null,null,null,{"$f":"D18+G18","v":6.1999999999999993},4.8999999999999995,6.8,{"$f":"D23/$C18","v":24.735489842490779},19.549016165839486,27.129246924022144,null,null,null,null,{"$f":"N18+Q18","v":18.3},13.299999999999999,24,73.009590986706655,53.061615307278608,95.750283261254637]
[null,null,null,9.1999999999999993,6.8,16.100000000000001,24.44052451490872,18.064735511019489,42.770917901090264,null,null,null,null,31.900000000000002,24,44.1,84.744862176694369,63.757890038892313,117.15512294646463]
[null,null,"2009/2010",{"$f":"D11/D23","v":1.2096774193548387}]
["Leaf Tissue 2010",null,null,{"$f":"D12/D24","v":1.173913043478261}]
["Adapted from Table 5","All concentrations are in ng/g (ppb) leaf tissue."]
["Application Method","Application Rate (kg a.i./ha)","Application Rate (lb a.i./acre)","Parent (mean)","Parent (min.)","Parent (max.)","Metabolites (mean)","Metabolites (min.)","Metabolites (Max)"]
["Bedding tray drench",0.03,{"$f":"B29*0.892","v":2.6759999999999999E-2},5,4,6,8,5,10.5]
["Transplant water treatment, low rate",0.28100000000000003,{"$f":"B30*0.892","v":0.25065200000000004},22.7,18.3,31,39.1,18,77.5]
["Transplant water treatment, high rate",0.42199999999999999,{"$f":"B31*0.892","v":0.37642399999999998},39.5,22,53,34.4,27.5,40.5]
[]
[null,null,null,"Total (mean)","Total (min.)","Total (max.)","Rate (mean)","Rate (min.)","Rate (max.)"]
[null,null,null,{"$f":"D29+G29","v":13},{"$f":"E29+H29","v":9},16.5,{"$f":"D34/$C29","v":485.79970104633782},{"$f":"E34/$C29","v":336.32286995515699},616.59192825112109]
[null,null,null,{"$f":"D30+G30","v":61.8},36.299999999999997,108.5,{"$f":"D35/$C30","v":246.55697939773066},144.82230343264763,432.87107224358863]
[null,null,null,73.900000000000006,49.5,93.5,196.32116974475593,131.50064820521541,248.39011327651798]
[]
["Ratio of Nectar to Leaf Tissue 2010"]
[]
["Application Method","Application Rate (kg a.i./ha)","Application Rate (lb a.i./acre)","Mean","Min.","Max."]
["Bedding tray drench",0.03,{"$f":"B41*0.892","v":2.6759999999999999E-2},{"$f":"D22/D34","v":1.5384615384615385E-2},{"$f":"E22/E34","v":2.2222222222222223E-2},1.2121212121212121E-2]
["Transplant water treatment, low rate",0.28100000000000003,{"$f":"B42*0.892","v":0.25065200000000004},{"$f":"D23/D35","v":0.10032362459546924},0.13498622589531681,6.2672811059907838E-2]
["Transplant water treatment, high rate",0.42199999999999999,{"$f":"B43*0.892","v":0.37642399999999998},0.12449255751014883,0.13737373737373737,0.17219251336898397]
[null,null,"Average of Low and High rates:",{"$f":"AVERAGE(D42:D43)","v":0.11240809105280904},{"$f":"AVERAGE(E42:E43)","v":0.1361799816345271},0.1174326622144459]

{"sheet":"References","index":84,"n_rows":43,"n_cols":2,"rows_kept":43,"cut":false,"hidden":false,"merged":[[0,0,0,1]]}
["References cited in workbook"]
["Citation","Full Reference"]
["Ali et al. 2005","Ali M; Iqbat F; Salam A; Iram S; Athar M.  2005.  Comparative study of body composition of different fish species from brackish water pond.  Int J Environ Sci Tech.  2(3): 229-232."]
["Boxenbaum and D’Souza 1990","Boxenbaum J; D'Souza R.  1990.  Interspecies pharmacokinetic scaling, biological design and neoteny.  Adv. Drug Res.  19: 139-195."]
["Budavari  1989","Budavari S. (Ed).  1989.  The Merck Index: An Encyclopedia of Chemicals, Drugs,and Biologicals, 11th ed.  Merck & Co., Inc., Rahway, New Jersey."]
["Burnmaster 1998","Burnmaster DE.  1998.  Lognormal distribution for total water intake and tap water intake by pregnant and lactating women in the United States.  Risk Analysis.  18(5): 215-219"]
["Chapman 1998","Chapman P.  1998.  The Insects: Structure and Function.  4th Edition.  Cambridge University Press, Cambridge, UK.  788 pp."]
["Default","These are plausible default values that are typically used in SERA risk assessments."]
["Dunning 1993","Dunning JB.  1993.  CRC Handbook of Avian Body Masses.  CRC Press, Boca Raton FL, 371 pp."]
["Durkin et al. 1995","Durkin PR; Rubin L; Withey J; Meylan W.  1995.  Methods of assessing dermal absorption with emphasis on uptake from contaminated vegetation.  Toxicol. Indust. Health.  11(1): 63-79."]
["Fletcher et al. 1994","Fletcher JS; Nellessen JE; Pfleeger TG. 1994. Literature review and evaluation of the EPA food-chain (Kenega) nomogram, an instrument for estimating pesticide residues on plants. Environ.  Toxicol. Chem. 13(9):1383-1391."]
["Harris and Solomon 1992","Harris SA; Solomon KR.  1992.  Human exposure to 2,4-D following controlled activities on recently sprayed turf.  J. Environ. Sci. Health.  B27(1): 9-22."]
["Hoerger and Kenaga 1972","Hoerger F; Kenaga EE.  1972.  Pesticide residues on plants: Correlation of representative data as a basis for estimation of their magnitude in the environment.  In: Environmental Quality and Safety, Volume I:  Global Aspects of Toxicology and Technology as Applied to the Environment.  F. Coulston and F. Kerte (eds.).  Academic Press, New York, NY.  pp. 9-28."]
["Humphery and Dykes 2008","Humphrey JAC; Dykes ES.  2008.  Thermal energy conduction in a honey bee comb due to cell-heating bees.  J Theoretical Biology.  250 (1): 194-208."]
["ICRP 1975","ICRP (International Commission on Radiologic Protection).  1975. Report of the Task Group on Reference Man.  Recommendations of the International Commission on Radiological Protection (ICRP) Publ. No. 23.   Pergamon Press, New York, NY."]
["Knisel et al. 1992","Knisel WG; Davis FM; Leonard RA.  1992.  GLEAMS Version 2.0 User Manual. U.S. Department of Agriculture, Agricultural Research Service, Southeast Watershed Research Laboratory, Tifton, GA.  202pp"]
["Manugistics 1995","Manugistics.  1995.  Statgraphics Plus for Windows. Version 3.  Available from Manugistics, Inc.  Rockville, Maryland."]
["Mason and Johnson 1987","Mason RW; Johnson BL.  1987.  Ergonomic factors in chemical hazard control.  In: Handbook of Human Factors.  Salveny, G; ed.  John Wiley and Sons, New York, NY.  pp. 772-741."]
["Mendenhall and Scheaffer 1973","Mendenhall W; Scheaffer RF.  1973.  Mathematical Statistics with Applications.  Duxbury Press, North Scituate, Massachusetts. 461 pp. plus appendices."]
["N/A","Not applicable"]
["Nagy 2005","Nagy KA.  2005.  Field metabolic rate and body size.  Journal of Experimental Biology.  208: 1621-1625."]
["Ratnapalan et al. 2003","Ratnapalan S; Potylitsina Y; Tan LH; Roifman M; Koren G.  2003.  Measuring a toddler's mouthful: toxicologic considerations.  J Pediatr.  142(6):729-30."]
["Reichle et al. 1973","Reichle DE, Goldstein RA; Van Hook RI; Dodson DJ.  1973.  Analysis of Insect Consumption in a Forest Canopy.  Ecology.  54: 1076-1084."]
["Reid 2006"," Reid FA. 2006.  A Field Guide to Mammals of North America North of Mexico.  Fourth Edition.  The Peterson Field Guide Series.  Houghton Mifflin Company, Boston MA.  570 pp."]
["Ruffle et al. 1994","Ruffle B; Burmaster DE; Anderson PD; Gordon HD.  1994.  Lognormal distributions for fish consumption by the general U.S. population.  Risk Analy.  14(4): 395-404."]
["SERA 1997","SERA (Syracuse Environmental Research Associates, Inc.).  1997. Reevaluation of Methods for Assessing Worker Exposure to Pesticides, SERA TR 96-21-08-01, draft dated December 31, 1997.  Prepared under USDA/FS Contract 53-3187-5-12.  Syracuse Environmental Research Associates, Inc., Fayetteville, NY."]
["SERA 2005","SERA (Syracuse Environmental Research Associates, Inc.).  2005. Hexazinone - Human Health and Ecological Risk Assessment– Final Report, SERA SERA TR 05-43-20-03d, Final Report dated October 25, 2005.  Available at: http://www.fs.fed.us/foresthealth/pesticide/risk.shtml."]
["SERA 2007","SERA (Syracuse Environmental Research Associates, Inc.).  2007. Preparation of Environmental Documentation and Risk Assessments, SERA MD 2007-01a, draft dated July 2001.  Syracuse Environmental Research Associates, Inc., Fayetteville, NY.  Available at www.sera-inc.com."]
["SERA 2010","SERA (Syracuse Environmental Research Associates, Inc.).  2010. Strychnine Human Health and Ecological Risk Assessment, SERA TR-052-17-02a, draft dated February 22, 2010.  Syracuse Environmental Research Associates, Inc., Manlius, NY.  Available at www.sera-inc.com."]
["Sibley 2000","Sibley DA.  2000.  The Sibley Guide to Birds.  National Audubon Society, Chanticleer Press Edition.  Alfred A. Knopf Inc., New York.  545 pp."]
["Teske et al. 2001","Teske ME; Bird SL; Esterly DM; Ray SL; Perry SG.  2001.  A User’s Guide for AgDRIFT 2.0: A Tiered Approach for the Assesment of Spray Drift.  Continuum Dynamics, Inc. Public Use Version.  C.D.I. Report No. 01-01.  Available, with executable model at: http://www.agdrift.com"]
["U.S. EPA/OPP 1999","U.S. EPA/OPP ((U.S. Environmental Protection Agency/Office of Pesticide Programs).  1999.  ECOFRAM:  Terrestrial ECOFRAM Terrestrial Draft Report.  Ecological Committee on FIFRA Risk Assessment Methods(ECOFRAM).  Report dated May 10, 1999.  Available at:  http://www.epa.gov/oppefed1/ ecorisk/terrreport.pdf."]
["U.S. EPA/ORD 1985","U.S. EPA/ORD (U.S. Environmental Protection Agency/Office of Research and Development).  1985. Development of Statistical Distributions or Ranges of Standard Factors Used in Exposure Assessments,  Report prepared by GCA Corp., Chapel Hill.  Available from NTIS: PB85-242667."]
["U.S. EPA/ORD 1992","U.S. EPA/ORD (U.S. Environmental Protection Agency/Office of Research and Development).  1992.  Dermal Exposure Assessment: Principles and Applications.  EPA/600/8-91/011B.  Interim Report.  Exposure Assessment Group, Office of Health and Environmental Assessment, Washington, DC."]
["U.S. EPA/ORD 1993","U.S. EPA/ORD (U.S. Environmental Protection Agency/Office of Research and Development).  1993.  Wildlife Exposure Factors Handbook.  Volumes 1 and 2.  EPA/600/R-93/187a,b.  Pagination not continuous.  Available NTIS: PB94-174778 and PB94-174779."]
["U.S. EPA/ORD 1996","U.S. EPA (U.S. Environmental Protection Agency/Office of Research and Development).  1996.  Exposure Factors Handbook. National Center for Environmental Assessment, U.S. EPA, Washington, DC.  EPA/600/P-95/002Ba-c.  Avail. NTIS: PB97-117683, 97-117691, PB97-117709."]
["U.S. EPA/ORD 1997","U.S. EPA (U.S. Environmental Protection Agency/Office of Research and Development).  1997.  Exposure Factors Handbook. National Center for Environmental Assessment, U.S. EPA, Washington, DC.  EPA/600/P-95/002Fa.  Available at: http://rais.ornl.gov/homepage/EFH_Final_1997_EPA600P95002Fa.pdf"]
["USDA 1989a","USDA (U.S. Department of Agriculture/Forest Service).  1989a.  Final Environmental Impact Statement: Vegetation Management in the Coastal Plain/Piedmont, Management Bulletin R8-MB-23, dated January, 1989.  1213 pp."]
["USDA 1989b","USDA (U.S. Department of Agriculture/Forest Service).  1989b.  Draft Environmental Impact Statement: Vegetation Management in the Ozark/Ouachita Mountains, Management Bulletin R8-MB-23, dated June, 1989.  499 pp."]
["USDA 1989c","USDA (U.S. Department of Agriculture/Forest Service).  1989c.  Final Environmental Impact Statement: Vegetation Management in the Appalachian Mountains, Management Bulletin R8-MB-38, dated July, 1989. 1104 pp."]
["Waldbauer 1968","Waldbauer GP.  1968.  The consumption and utilization of food by insects.  Advan Insect Physiol.  5: 229-288"]
["Winston 1987","Winston ML.  1987.  The Biology of the Honey Bee.  Harvard University Press, Cambridge, MA.  ISBN 0-674-07409-2  280 pp."]
["Wolfram Research 1997","Wolfram Research.  1997. Mathematica Version 3.0.1.  Available from Wolfram Research, Inc.  Champaign, IL."]

{"sheet":"PlntRunoV5","index":85,"n_rows":31,"n_cols":5,"rows_kept":31,"cut":false,"hidden":true,"merged":[[15,0,18,0],[19,0,22,0],[24,0,24,1],[0,0,0,4],[2,1,2,3],[3,1,3,3],[4,1,4,4],[8,1,8,3],[10,0,13,0]]}
["Summary of Exposure Assessment and Risk Characterization for Terrestrial Plants from Runoff"]
["Short Title","Runoff to terrestrial plants"]
["Receptor","Terrestrial vegetation"]
["Duration","Acute"]
["User-Specified Gleams-Driver File","None"]
["Parameter/Assumption","Code / Range","Value","Units","Reference"]
["Worksheet Application Rate","ApRtWB",0.2,"lb/acre","Prog!ApRt"]
["Offsite Application Rates Inputs"]
["Run ID:","See Risk Assessment"]
["Application Rate Used in Run:","ApRtRun",1,"lb/acre"]
["Functional Off-site Application Rate","ApRtOffsite"]
[null,"Central",2.7E-2,"lb/acre"]
[null,"Lower",9.4999999999999998E-3]
[null,"Upper",5.7000000000000002E-2]
["Calculated Values"]
["Normalized Off-site Functional Application Rate ","NormApRtOffsite","ApRtOffsite / ApRtRun"]
[null,"Central",{"$f":"C12/C$10","v":2.7E-2},"Unitless","Eq"]
[null,"Lower",{"$f":"C13/C$10","v":9.4999999999999998E-3},null,"Eq"]
[null,"Upper",{"$f":"C14/C$10","v":5.7000000000000002E-2},null,"Eq"]
["Off-site Application Rate at Workbook Application Rate","ApRtWB","ApRtWB x NormApRtOffsite"]
[null,"Central",{"$f":"C17*C$7","v":5.4000000000000003E-3},"lb/acre","Eq"]
[null,"Lower",{"$f":"C18*C$7","v":1.9E-3},null,"Eq"]
[null,"Upper",{"$f":"C19*C$7","v":1.14E-2},null,"Eq"]
["Toxicity Values  (seedling emergence) in units of lbs/acre"]
[null,null,"Sensitive","Tolerant"]
[null,"Endpoint"]
[null,null,3.7000000000000002E-3,0.37]
["Hazard Quotients"]
[null,"Central",{"$f":"IF(ISNUMBER(C$27), $C21/C$27, \"N/A\")","v":1.4594594594594594},1.4594594594594595E-2]
[null,"Lower",0.51351351351351349,5.1351351351351356E-3]
[null,"Upper",3.0810810810810811,3.0810810810810812E-2]